Workbook

Sheet K2
E2: Namsosrennet i hopp og kombinert 01.02.2026
E5: ="K"&F6 -> K2 | G5: Åpen klasse
E6: K-punkt: | F6: 2 | G6: meter
E7: Meterverdi: | F7: =VLOOKUP(F6,Meterverdier!A:B,2,FALSE) -> 5.2 | G7: poeng/meter
H9: 1. omgang | M9: 2. omgang
C10: Start- | F10: Hopp/ | R10: Poeng
B11: Plassering | C11: nr. | D11: Navn | E11: Klubb | F11: Komb | G11: F.år | H11: Lengde | I11: A | J11: B | K11: C | L11: Poeng | M11: Lengde | N11: A | O11: B | P11: C | Q11: Poeng | R11: totalt
B12: =IF(R12="","",RANK(R12,$R$12:$R$12,0)+COUNTIFS($R$12:R12,R12)-1) -> 1 | C12: 109 | D12: Elvira Hanssen Otterbekk | E12: Namsos Idrettslag hopp | F12: Hopp | G12: J7 | H12: 4 | L12: =IF(H12="",0,60+$F$7*(H12-$F$6)+SUM(I12:K12)) -> 70.4 | M12: 5 | Q12: =IF(M12="","",60+'K5-K8'!$F$7*(M12-'K5-K8'!$F$6)+SUM(N12:P12)) -> 44.4 | R12: =IF(AND(ISNUMBER(L12),ISNUMBER(Q12)),L12+Q12,0) -> 114.8
B13: =IF(R13="","",RANK(R13,$R$12:$R$27,0)+COUNTIFS($R$12:R13,R13)-1) -> 2 | L13: 0 | Q13: =IF(M13="","",60+$F$7*(M13-$F$6)+SUM(N13:P13)) ->  | R13: =IF(AND(ISNUMBER(L13),ISNUMBER(Q13)),L13+Q13,0) -> 0
B14: =IF(R14="","",RANK(R14,$R$12:$R$27,0)+COUNTIFS($R$12:R14,R14)-1) -> 3 | L14: 0 | R14: 0
B15: =IF(R15="","",RANK(R15,$R$12:$R$27,0)+COUNTIFS($R$12:R15,R15)-1) -> 4 | L15: 0 | R15: 0
B16: =IF(R16="","",RANK(R16,$R$12:$R$27,0)+COUNTIFS($R$12:R16,R16)-1) -> 5 | L16: 0 | R16: 0
B17: =IF(R17="","",RANK(R17,$R$12:$R$27,0)+COUNTIFS($R$12:R17,R17)-1) -> 6 | L17: 0 | R17: 0
B18: =IF(R18="","",RANK(R18,$R$12:$R$27,0)+COUNTIFS($R$12:R18,R18)-1) -> 7 | L18: 0 | R18: 0
B19: =IF(R19="","",RANK(R19,$R$12:$R$27,0)+COUNTIFS($R$12:R19,R19)-1) -> 8 | L19: 0 | R19: 0
B20: =IF(R20="","",RANK(R20,$R$12:$R$27,0)+COUNTIFS($R$12:R20,R20)-1) -> 9 | L20: 0 | R20: 0
B21: =IF(R21="","",RANK(R21,$R$12:$R$27,0)+COUNTIFS($R$12:R21,R21)-1) -> 10 | L21: 0 | R21: 0
B22: =IF(R22="","",RANK(R22,$R$12:$R$27,0)+COUNTIFS($R$12:R22,R22)-1) -> 11 | L22: 0 | R22: 0
B23: =IF(R23="","",RANK(R23,$R$12:$R$27,0)+COUNTIFS($R$12:R23,R23)-1) -> 12 | L23: 0 | R23: 0
B24: =IF(R24="","",RANK(R24,$R$12:$R$27,0)+COUNTIFS($R$12:R24,R24)-1) -> 13 | L24: 0 | R24: 0
B25: =IF(R25="","",RANK(R25,$R$12:$R$27,0)+COUNTIFS($R$12:R25,R25)-1) -> 14 | L25: 0 | R25: 0
B26: =IF(R26="","",RANK(R26,$R$12:$R$27,0)+COUNTIFS($R$12:R26,R26)-1) -> 15 | L26: 0 | R26: 0
B27: =IF(R27="","",RANK(R27,$R$12:$R$27,0)+COUNTIFS($R$12:R27,R27)-1) -> 16 | L27: 0 | R27: 0
K28: =IF(G28="","",60+$F$7*(G28-$F$6)+SUM(H28:J28)) ->  | P28: =IF(L28="","",60+$F$7*(L28-$F$6)+SUM(M28:O28)) ->  | Q28: =IF(AND(ISNUMBER(K28),ISNUMBER(P28)),K28+P28,"") -> 
E30: Startliste kombinert - individuell kompakt
B32: Plass. Hopp 1. omg | C32: Start nr. | D32: Navn | E32: Klubb | F32: F.år | G32: Poeng hopp | H32: Start tid | I32: Tid i mål MM:SS,T | L32: Plassering
B33: =IF(COUNTIF($F$12:$F$27,"Komb")>0,1,"") ->  | C33: =_xlfn._xlws.SORT(_xlfn.HSTACK(_xlfn._xlws.FILTER($C$12:$E$27,$F$12:$F$27="Komb",$L$12:$L$27>0),_xlfn._xlws.FILTER($G$12:$G$27,$F$12:$F$27="Komb",$L$12:$L$27>0),_xlfn._xlws.FILTER($L$12:$L$27,$F$12:$F$27="Komb",$L$12:$L$27>0)),5,-1) ->  | H33: =TIME(0,0,0) -> 00:00:00 | I33: 00:01:40.500 | L33: =IF(C33="","",RANK(I33,$I$33:$I$48,1)+COUNTIF($I$33:I33,I33)-1) -> 
B34: =IFERROR(IF(B33+1>COUNTIF($F$12:$F$27,"Komb"),"",B33+1),"") ->  | H34: =IF(B34="","",H33+TIME(0,0,6)) ->  | I34: 00:01:38 | L34: =IF(C34="","",RANK(I34,$I$33:$I$48,1)+COUNTIF($I$33:I34,I34)-1) -> 
B35: =IFERROR(IF(B34+1>COUNTIF($F$12:$F$27,"Komb"),"",B34+1),"") ->  | H35: =IF(B35="","",H34+TIME(0,0,6)) ->  | L35: =IF(C35="","",RANK(I35,$I$33:$I$48,1)+COUNTIF($I$33:I35,I35)-1) -> 
B36: =IFERROR(IF(B35+1>COUNTIF($F$12:$F$27,"Komb"),"",B35+1),"") ->  | L36: =IF(C36="","",RANK(I36,$I$33:$I$48,1)+COUNTIF($I$33:I36,I36)-1) -> 
B37: =IFERROR(IF(B36+1>COUNTIF($F$12:$F$27,"Komb"),"",B36+1),"") ->  | L37: =IF(C37="","",RANK(I37,$I$33:$I$48,1)+COUNTIF($I$33:I37,I37)-1) -> 
B38: =IFERROR(IF(B37+1>COUNTIF($F$12:$F$27,"Komb"),"",B37+1),"") ->  | L38: =IF(C38="","",RANK(I38,$I$33:$I$48,1)+COUNTIF($I$33:I38,I38)-1) -> 
B39: =IFERROR(IF(B38+1>COUNTIF($F$12:$F$27,"Komb"),"",B38+1),"") ->  | L39: =IF(C39="","",RANK(I39,$I$33:$I$48,1)+COUNTIF($I$33:I39,I39)-1) -> 
B40: =IFERROR(IF(B39+1>COUNTIF($F$12:$F$27,"Komb"),"",B39+1),"") ->  | L40: =IF(C40="","",RANK(I40,$I$33:$I$48,1)+COUNTIF($I$33:I40,I40)-1) -> 
B41: =IFERROR(IF(B40+1>COUNTIF($F$12:$F$27,"Komb"),"",B40+1),"") ->  | L41: =IF(C41="","",RANK(I41,$I$33:$I$48,1)+COUNTIF($I$33:I41,I41)-1) -> 
B42: =IFERROR(IF(B41+1>COUNTIF($F$12:$F$27,"Komb"),"",B41+1),"") ->  | L42: =IF(C42="","",RANK(I42,$I$33:$I$48,1)+COUNTIF($I$33:I42,I42)-1) -> 
B43: =IFERROR(IF(B42+1>COUNTIF($F$12:$F$27,"Komb"),"",B42+1),"") ->  | L43: =IF(C43="","",RANK(I43,$I$33:$I$48,1)+COUNTIF($I$33:I43,I43)-1) -> 
B44: =IFERROR(IF(B43+1>COUNTIF($F$12:$F$27,"Komb"),"",B43+1),"") ->  | L44: =IF(C44="","",RANK(I44,$I$33:$I$48,1)+COUNTIF($I$33:I44,I44)-1) -> 
B45: =IFERROR(IF(B44+1>COUNTIF($F$12:$F$27,"Komb"),"",B44+1),"") ->  | L45: =IF(C45="","",RANK(I45,$I$33:$I$48,1)+COUNTIF($I$33:I45,I45)-1) -> 
B46: =IFERROR(IF(B45+1>COUNTIF($F$12:$F$27,"Komb"),"",B45+1),"") ->  | L46: =IF(C46="","",RANK(I46,$I$33:$I$48,1)+COUNTIF($I$33:I46,I46)-1) -> 
B47: =IFERROR(IF(B46+1>COUNTIF($F$12:$F$27,"Komb"),"",B46+1),"") ->  | L47: =IF(C47="","",RANK(I47,$I$33:$I$48,1)+COUNTIF($I$33:I47,I47)-1) -> 
B48: =IFERROR(IF(B47+1>COUNTIF($F$12:$F$27,"Komb"),"",B47+1),"") ->  | L48: =IF(C48="","",RANK(I48,$I$33:$I$48,1)+COUNTIF($I$33:I48,I48)-1) -> 
E51: Resultatliste kombinert - individuell kompakt
B53: Plass | C53: Start nr. | D53: Navn | E53: Klubb | F53: F.år | G53: Lengde | H53: A | I53: B | J53: C | K53: Poeng Hopp | L53: Starttid langrenn | M53: Tid langr | O53: Tid i mål
B54: =IF(COUNT($I$33:$I$48)>0,1,"") -> 1 | D54: =IF(C54="","",_xlfn.XLOOKUP($C54,$C$33:$C$48,D$33:D$48,"",0,1)) ->  | E54: =IF(D54="","",_xlfn.XLOOKUP($C54,$C$33:$C$48,E$33:E$48,"",0,1)) ->  | G54: =IF($C54="","",_xlfn.XLOOKUP($C54,$C$12:$C$27,H$12:H$27,"",0,1)) ->  | H54: =IF($C54="","",_xlfn.XLOOKUP($C54,$C$12:$C$27,I$12:I$27,"",0,1)) ->  | I54: =IF($C54="","",_xlfn.XLOOKUP($C54,$C$12:$C$27,J$12:J$27,"",0,1)) ->  | J54: =IF($C54="","",_xlfn.XLOOKUP($C54,$C$12:$C$27,K$12:K$27,"",0,1)) ->  | K54: =IF($C54="","",_xlfn.XLOOKUP($C54,$C$12:$C$27,L$12:L$27,"",0,1)) ->  | L54: =_xlfn.XLOOKUP(C54,$C$32:$C$48,$H$32:$H$48,"",0,1) ->  | M54: =IF(C54="","",_xlfn.XLOOKUP(C54,$C$32:$C$48,$I$32:$I$48,"",0,1)-L54) ->  | O54: =VLOOKUP(C54,C33:I48,7,FALSE) -> 
B55: =IFERROR(IF(B54+1>COUNT($I$33:$I$48),"",B54+1),"") -> 2 | E55: =IF(D55="","",_xlfn.XLOOKUP($C55,$C$33:$C$48,E$33:E$48,"",0,1)) ->  | G55: =IF($C55="","",_xlfn.XLOOKUP($C55,$C$12:$C$27,H$12:H$27,"",0,1)) ->  | H55: =IF($C55="","",_xlfn.XLOOKUP($C55,$C$12:$C$27,I$12:I$27,"",0,1)) ->  | I55: =IF($C55="","",_xlfn.XLOOKUP($C55,$C$12:$C$27,J$12:J$27,"",0,1)) ->  | J55: =IF($C55="","",_xlfn.XLOOKUP($C55,$C$12:$C$27,K$12:K$27,"",0,1)) ->  | K55: =IF($C55="","",_xlfn.XLOOKUP($C55,$C$12:$C$27,L$12:L$27,"",0,1)) ->  | L55: =_xlfn.XLOOKUP(C55,$C$32:$C$48,$H$32:$H$48,"",0,1) ->  | M55: =IF(C55="","",_xlfn.XLOOKUP(C55,$C$32:$C$48,$I$32:$I$48,"",0,1)-L55) ->  | N55: =IF(C55="","","+") ->  | O55: =IF(C55="","",VLOOKUP($C55,$C$33:$I$48,7,0)-VLOOKUP($C$54,$C$33:$I$48,7,0)) -> 
B56: =IFERROR(IF(B55+1>COUNT($I$33:$I$48),"",B55+1),"") ->  | C56: =IF(B56="","",_xlfn.XLOOKUP($B56,$L$33:$L$48,$C$33:$C$48,"",0,1)) ->  | E56: =IF(D56="","",_xlfn.XLOOKUP($C56,$C$33:$C$48,E$33:E$48,"",0,1)) ->  | G56: =IF($C56="","",_xlfn.XLOOKUP($C56,$C$12:$C$27,H$12:H$27,"",0,1)) ->  | H56: =IF($C56="","",_xlfn.XLOOKUP($C56,$C$12:$C$27,I$12:I$27,"",0,1)) ->  | I56: =IF($C56="","",_xlfn.XLOOKUP($C56,$C$12:$C$27,J$12:J$27,"",0,1)) ->  | J56: =IF($C56="","",_xlfn.XLOOKUP($C56,$C$12:$C$27,K$12:K$27,"",0,1)) ->  | K56: =IF($C56="","",_xlfn.XLOOKUP($C56,$C$12:$C$27,L$12:L$27,"",0,1)) ->  | O56: =IF(C56="","",VLOOKUP($C56,$C$33:$I$48,7,0)-VLOOKUP($C$54,$C$33:$I$48,7,0)) -> 
E57: =IF(D57="","",_xlfn.XLOOKUP($C57,$C$33:$C$48,E$33:E$48,"",0,1)) ->  | G57: =IF($C57="","",_xlfn.XLOOKUP($C57,$C$12:$C$27,H$12:H$27,"",0,1)) ->  | H57: =IF($C57="","",_xlfn.XLOOKUP($C57,$C$12:$C$27,I$12:I$27,"",0,1)) ->  | I57: =IF($C57="","",_xlfn.XLOOKUP($C57,$C$12:$C$27,J$12:J$27,"",0,1)) ->  | J57: =IF($C57="","",_xlfn.XLOOKUP($C57,$C$12:$C$27,K$12:K$27,"",0,1)) ->  | K57: =IF($C57="","",_xlfn.XLOOKUP($C57,$C$12:$C$27,L$12:L$27,"",0,1)) -> 
E58: =IF(D58="","",_xlfn.XLOOKUP($C58,$C$33:$C$48,E$33:E$48,"",0,1)) ->  | G58: =IF($C58="","",_xlfn.XLOOKUP($C58,$C$12:$C$27,H$12:H$27,"",0,1)) ->  | H58: =IF($C58="","",_xlfn.XLOOKUP($C58,$C$12:$C$27,I$12:I$27,"",0,1)) ->  | I58: =IF($C58="","",_xlfn.XLOOKUP($C58,$C$12:$C$27,J$12:J$27,"",0,1)) ->  | J58: =IF($C58="","",_xlfn.XLOOKUP($C58,$C$12:$C$27,K$12:K$27,"",0,1)) ->  | K58: =IF($C58="","",_xlfn.XLOOKUP($C58,$C$12:$C$27,L$12:L$27,"",0,1)) -> 
E59: =IF(D59="","",_xlfn.XLOOKUP($C59,$C$33:$C$48,E$33:E$48,"",0,1)) ->  | G59: =IF($C59="","",_xlfn.XLOOKUP($C59,$C$12:$C$27,H$12:H$27,"",0,1)) ->  | H59: =IF($C59="","",_xlfn.XLOOKUP($C59,$C$12:$C$27,I$12:I$27,"",0,1)) ->  | I59: =IF($C59="","",_xlfn.XLOOKUP($C59,$C$12:$C$27,J$12:J$27,"",0,1)) ->  | J59: =IF($C59="","",_xlfn.XLOOKUP($C59,$C$12:$C$27,K$12:K$27,"",0,1)) ->  | K59: =IF($C59="","",_xlfn.XLOOKUP($C59,$C$12:$C$27,L$12:L$27,"",0,1)) -> 
E60: =IF(D60="","",_xlfn.XLOOKUP($C60,$C$33:$C$48,E$33:E$48,"",0,1)) ->  | G60: =IF($C60="","",_xlfn.XLOOKUP($C60,$C$12:$C$27,H$12:H$27,"",0,1)) ->  | H60: =IF($C60="","",_xlfn.XLOOKUP($C60,$C$12:$C$27,I$12:I$27,"",0,1)) ->  | I60: =IF($C60="","",_xlfn.XLOOKUP($C60,$C$12:$C$27,J$12:J$27,"",0,1)) ->  | J60: =IF($C60="","",_xlfn.XLOOKUP($C60,$C$12:$C$27,K$12:K$27,"",0,1)) ->  | K60: =IF($C60="","",_xlfn.XLOOKUP($C60,$C$12:$C$27,L$12:L$27,"",0,1)) -> 
E61: =IF(D61="","",_xlfn.XLOOKUP($C61,$C$33:$C$48,E$33:E$48,"",0,1)) ->  | G61: =IF($C61="","",_xlfn.XLOOKUP($C61,$C$12:$C$27,H$12:H$27,"",0,1)) ->  | H61: =IF($C61="","",_xlfn.XLOOKUP($C61,$C$12:$C$27,I$12:I$27,"",0,1)) ->  | I61: =IF($C61="","",_xlfn.XLOOKUP($C61,$C$12:$C$27,J$12:J$27,"",0,1)) ->  | J61: =IF($C61="","",_xlfn.XLOOKUP($C61,$C$12:$C$27,K$12:K$27,"",0,1)) ->  | K61: =IF($C61="","",_xlfn.XLOOKUP($C61,$C$12:$C$27,L$12:L$27,"",0,1)) -> 
E62: =IF(D62="","",_xlfn.XLOOKUP($C62,$C$33:$C$48,E$33:E$48,"",0,1)) ->  | G62: =IF($C62="","",_xlfn.XLOOKUP($C62,$C$12:$C$27,H$12:H$27,"",0,1)) ->  | H62: =IF($C62="","",_xlfn.XLOOKUP($C62,$C$12:$C$27,I$12:I$27,"",0,1)) ->  | I62: =IF($C62="","",_xlfn.XLOOKUP($C62,$C$12:$C$27,J$12:J$27,"",0,1)) ->  | J62: =IF($C62="","",_xlfn.XLOOKUP($C62,$C$12:$C$27,K$12:K$27,"",0,1)) ->  | K62: =IF($C62="","",_xlfn.XLOOKUP($C62,$C$12:$C$27,L$12:L$27,"",0,1)) -> 
E63: =IF(D63="","",_xlfn.XLOOKUP($C63,$C$33:$C$48,E$33:E$48,"",0,1)) ->  | G63: =IF($C63="","",_xlfn.XLOOKUP($C63,$C$12:$C$27,H$12:H$27,"",0,1)) ->  | H63: =IF($C63="","",_xlfn.XLOOKUP($C63,$C$12:$C$27,I$12:I$27,"",0,1)) ->  | I63: =IF($C63="","",_xlfn.XLOOKUP($C63,$C$12:$C$27,J$12:J$27,"",0,1)) ->  | J63: =IF($C63="","",_xlfn.XLOOKUP($C63,$C$12:$C$27,K$12:K$27,"",0,1)) ->  | K63: =IF($C63="","",_xlfn.XLOOKUP($C63,$C$12:$C$27,L$12:L$27,"",0,1)) -> 
E64: =IF(D64="","",_xlfn.XLOOKUP($C64,$C$33:$C$48,E$33:E$48,"",0,1)) ->  | G64: =IF($C64="","",_xlfn.XLOOKUP($C64,$C$12:$C$27,H$12:H$27,"",0,1)) ->  | H64: =IF($C64="","",_xlfn.XLOOKUP($C64,$C$12:$C$27,I$12:I$27,"",0,1)) ->  | I64: =IF($C64="","",_xlfn.XLOOKUP($C64,$C$12:$C$27,J$12:J$27,"",0,1)) ->  | J64: =IF($C64="","",_xlfn.XLOOKUP($C64,$C$12:$C$27,K$12:K$27,"",0,1)) ->  | K64: =IF($C64="","",_xlfn.XLOOKUP($C64,$C$12:$C$27,L$12:L$27,"",0,1)) -> 
E65: =IF(D65="","",_xlfn.XLOOKUP($C65,$C$33:$C$48,E$33:E$48,"",0,1)) ->  | G65: =IF($C65="","",_xlfn.XLOOKUP($C65,$C$12:$C$27,H$12:H$27,"",0,1)) ->  | H65: =IF($C65="","",_xlfn.XLOOKUP($C65,$C$12:$C$27,I$12:I$27,"",0,1)) ->  | I65: =IF($C65="","",_xlfn.XLOOKUP($C65,$C$12:$C$27,J$12:J$27,"",0,1)) ->  | J65: =IF($C65="","",_xlfn.XLOOKUP($C65,$C$12:$C$27,K$12:K$27,"",0,1)) ->  | K65: =IF($C65="","",_xlfn.XLOOKUP($C65,$C$12:$C$27,L$12:L$27,"",0,1)) -> 
E66: =IF(D66="","",_xlfn.XLOOKUP($C66,$C$33:$C$48,E$33:E$48,"",0,1)) ->  | G66: =IF($C66="","",_xlfn.XLOOKUP($C66,$C$12:$C$27,H$12:H$27,"",0,1)) ->  | H66: =IF($C66="","",_xlfn.XLOOKUP($C66,$C$12:$C$27,I$12:I$27,"",0,1)) ->  | I66: =IF($C66="","",_xlfn.XLOOKUP($C66,$C$12:$C$27,J$12:J$27,"",0,1)) ->  | J66: =IF($C66="","",_xlfn.XLOOKUP($C66,$C$12:$C$27,K$12:K$27,"",0,1)) ->  | K66: =IF($C66="","",_xlfn.XLOOKUP($C66,$C$12:$C$27,L$12:L$27,"",0,1)) -> 
E67: =IF(D67="","",_xlfn.XLOOKUP($C67,$C$33:$C$48,E$33:E$48,"",0,1)) ->  | G67: =IF($C67="","",_xlfn.XLOOKUP($C67,$C$12:$C$27,H$12:H$27,"",0,1)) ->  | H67: =IF($C67="","",_xlfn.XLOOKUP($C67,$C$12:$C$27,I$12:I$27,"",0,1)) ->  | I67: =IF($C67="","",_xlfn.XLOOKUP($C67,$C$12:$C$27,J$12:J$27,"",0,1)) ->  | J67: =IF($C67="","",_xlfn.XLOOKUP($C67,$C$12:$C$27,K$12:K$27,"",0,1)) ->  | K67: =IF($C67="","",_xlfn.XLOOKUP($C67,$C$12:$C$27,L$12:L$27,"",0,1)) -> 
E68: =IF(D68="","",_xlfn.XLOOKUP($C68,$C$33:$C$48,E$33:E$48,"",0,1)) ->  | G68: =IF($C68="","",_xlfn.XLOOKUP($C68,$C$12:$C$27,H$12:H$27,"",0,1)) ->  | H68: =IF($C68="","",_xlfn.XLOOKUP($C68,$C$12:$C$27,I$12:I$27,"",0,1)) ->  | I68: =IF($C68="","",_xlfn.XLOOKUP($C68,$C$12:$C$27,J$12:J$27,"",0,1)) ->  | J68: =IF($C68="","",_xlfn.XLOOKUP($C68,$C$12:$C$27,K$12:K$27,"",0,1)) ->  | K68: =IF($C68="","",_xlfn.XLOOKUP($C68,$C$12:$C$27,L$12:L$27,"",0,1)) -> 
E69: =IF(D69="","",_xlfn.XLOOKUP($C69,$C$33:$C$48,E$33:E$48,"",0,1)) ->  | G69: =IF($C69="","",_xlfn.XLOOKUP($C69,$C$12:$C$27,H$12:H$27,"",0,1)) ->  | H69: =IF($C69="","",_xlfn.XLOOKUP($C69,$C$12:$C$27,I$12:I$27,"",0,1)) ->  | I69: =IF($C69="","",_xlfn.XLOOKUP($C69,$C$12:$C$27,J$12:J$27,"",0,1)) ->  | J69: =IF($C69="","",_xlfn.XLOOKUP($C69,$C$12:$C$27,K$12:K$27,"",0,1)) ->  | K69: =IF($C69="","",_xlfn.XLOOKUP($C69,$C$12:$C$27,L$12:L$27,"",0,1)) -> 

Sheet K5-K8
E2: =+'K2'!E2 -> Namsosrennet i hopp og kombinert 01.02.2026
E5: ="K"&F6 -> K8 | G5: Åpen klasse
E6: K-punkt: | F6: 8 | G6: meter
E7: Meterverdi: | F7: =VLOOKUP(F6,Meterverdier!A:B,2,FALSE) -> 5.2 | G7: poeng/meter
H9: 1. omgang | M9: 2. omgang
C10: Start- | F10: Hopp/ | R10: Poeng
B11: Plassering | C11: nr. | D11: Navn | E11: Klubb | F11: Komb | G11: F.år | H11: Lengde | I11: A | J11: B | K11: C | L11: Poeng | M11: Lengde | N11: A | O11: B | P11: C | Q11: Poeng | R11: totalt
B12: =IF(R12="","",RANK(R12,$R$12:$R$30,0)+COUNTIFS($R$12:R12,R12)-1) -> 8 | C12: 108 | D12: Ane Tranaas | E12: Namsos IL Hopp | F12: Komb | G12: J5 | L12: =IF(IH12="",0,60+$F$7*(H12-$F$6)+SUM(I12:K12)) -> 0 | Q12: =IF(M12="","",60+$F$7*(M12-$F$6)+SUM(N12:P12)) ->  | R12: =IF(AND(ISNUMBER(L12),ISNUMBER(Q12)),L12+Q12,0) -> 0
B13: =IF(R13="","",RANK(R13,$R$12:$R$30,0)+COUNTIFS($R$12:R13,R13)-1) -> 3 | C13: 112 | D13: Katinka Tranaas | E13: Namsos Idrettslag hopp | F13: Komb | G13: J7 | H13: 5.5 | L13: =IF(H13="",0,60+$F$7*(H13-$F$6)+SUM(I13:K13)) -> 47 | M13: 6 | Q13: =IF(M13="","",60+$F$7*(M13-$F$6)+SUM(N13:P13)) -> 49.6 | R13: =IF(AND(ISNUMBER(L13),ISNUMBER(Q13)),L13+Q13,0) -> 96.6
B14: =IF(R14="","",RANK(R14,$R$12:$R$30,0)+COUNTIFS($R$12:R14,R14)-1) -> 1 | C14: 113 | D14: Olivia Hanssen Otterbekk | E14: Namsos Idrettslag hopp | F14: Hopp | G14: J9 | H14: 6 | L14: =IF(H14="",0,60+$F$7*(H14-$F$6)+SUM(I14:K14)) -> 49.6 | M14: 6.5 | Q14: =IF(M14="","",60+$F$7*(M14-$F$6)+SUM(N14:P14)) -> 52.2 | R14: =IF(AND(ISNUMBER(L14),ISNUMBER(Q14)),L14+Q14,0) -> 101.8
B15: =IF(R15="","",RANK(R15,$R$15:$R$15,0)+COUNTIFS($R$15:R15,R15)-1) -> 1 | C15: 93 | D15: Victoria Vøhn Fleischer | E15: Skatval IL | F15: Komb | G15: J7 | H15: 3.5 | L15: =IF(H15="",0,60+$F$7*(H15-$F$6)+SUM(I15:K15)) -> 36.6 | M15: 4 | Q15: 39.2 | R15: =IF(AND(ISNUMBER(L15),ISNUMBER(Q15)),L15+Q15,0) -> 75.8
B16: =IF(R16="","",RANK(R16,$R$16:$R$16,0)+COUNTIFS($R$16:R16,R16)-1) -> 1 | C16: 91 | D16: Enja Wesche Fossheim | E16: Byåsen IL | F16: Komb | G16: J6 | H16: 6 | L16: =IF(H16="",0,60+'K 10'!$F$7*(H16-'K 10'!$F$6)+SUM(I16:K16)) -> 39.2 | M16: 6.5 | Q16: 52.2 | R16: =IF(AND(ISNUMBER(L16),ISNUMBER(Q16)),L16+Q16,0) -> 91.4
B17: =IF(R17="","",RANK(R17,$R$17:$R$17,0)+COUNTIFS($R$17:R17,R17)-1) -> 1 | C17: 92 | D17: Even Krog | E17: Byåsen IL | F17: Komb | G17: G6 | H17: 6.5 | L17: =IF(H17="",0,60+'K 10'!$F$7*(H17-'K 10'!$F$6)+SUM(I17:K17)) -> 41.8 | M17: 7.5 | Q17: 57.4 | R17: =IF(AND(ISNUMBER(L17),ISNUMBER(Q17)),L17+Q17,0) -> 99.2
B18: =IF(R18="","",RANK(R18,$R$18:$R$18,0)+COUNTIFS($R$18:R18,R18)-1) -> 1 | C18: 96 | D18: Maja Hanem Bartnes | E18: Ogndal IL | F18: Komb | G18: J9 | H18: 4 | L18: =IF(H18="",0,60+'K 10'!$F$7*(H18-'K 10'!$F$6)+SUM(I18:K18)) -> 28.8 | M18: 4 | Q18: 39.2 | R18: =IF(AND(ISNUMBER(L18),ISNUMBER(Q18)),L18+Q18,0) -> 68
B19: =IF(R19="","",RANK(R19,$R$19:$R$19,0)+COUNTIFS($R$19:R19,R19)-1) -> 1 | C19: 97 | D19: Vilde Fredagsvik-Johansen | E19: Skogn IL | F19: Komb | G19: J9 | H19: 5 | L19: =IF(H19="",0,60+'K 10'!$F$7*(H19-'K 10'!$F$6)+SUM(I19:K19)) -> 34 | M19: 6 | Q19: 49.6 | R19: =IF(AND(ISNUMBER(L19),ISNUMBER(Q19)),L19+Q19,0) -> 83.6
B20: =IF(R20="","",RANK(R20,$R$12:$R$30,0)+COUNTIFS($R$12:R20,R20)-1) -> 9 | C20: 115 | L20: =IF(H20="",0,60+$F$7*(H20-$F$6)+SUM(I20:K20)) -> 0 | Q20: =IF(M20="","",60+$F$7*(M20-$F$6)+SUM(N20:P20)) ->  | R20: =IF(AND(ISNUMBER(L20),ISNUMBER(Q20)),L20+Q20,0) -> 0
B21: =IF(R21="","",RANK(R21,$R$12:$R$30,0)+COUNTIFS($R$12:R21,R21)-1) -> 10 | C21: 116 | L21: =IF(H21="",0,60+$F$7*(H21-$F$6)+SUM(I21:K21)) -> 0 | Q21: =IF(M21="","",60+$F$7*(M21-$F$6)+SUM(N21:P21)) ->  | R21: =IF(AND(ISNUMBER(L21),ISNUMBER(Q21)),L21+Q21,0) -> 0
B22: =IF(R22="","",RANK(R22,$R$12:$R$30,0)+COUNTIFS($R$12:R22,R22)-1) -> 11 | L22: =IF(H22="",0,60+$F$7*(H22-$F$6)+SUM(I22:K22)) -> 0 | Q22: =IF(M22="","",60+$F$7*(M22-$F$6)+SUM(N22:P22)) ->  | R22: =IF(AND(ISNUMBER(L22),ISNUMBER(Q22)),L22+Q22,0) -> 0
B23: =IF(R23="","",RANK(R23,$R$12:$R$30,0)+COUNTIFS($R$12:R23,R23)-1) -> 12 | L23: =IF(H23="",0,60+$F$7*(H23-$F$6)+SUM(I23:K23)) -> 0 | Q23: =IF(M23="","",60+$F$7*(M23-$F$6)+SUM(N23:P23)) ->  | R23: =IF(AND(ISNUMBER(L23),ISNUMBER(Q23)),L23+Q23,0) -> 0
B24: =IF(R24="","",RANK(R24,$R$12:$R$30,0)+COUNTIFS($R$12:R24,R24)-1) -> 13 | L24: =IF(H24="",0,60+$F$7*(H24-$F$6)+SUM(I24:K24)) -> 0 | Q24: =IF(M24="","",60+$F$7*(M24-$F$6)+SUM(N24:P24)) ->  | R24: =IF(AND(ISNUMBER(L24),ISNUMBER(Q24)),L24+Q24,0) -> 0
B25: =IF(R25="","",RANK(R25,$R$12:$R$30,0)+COUNTIFS($R$12:R25,R25)-1) -> 14 | L25: =IF(H25="",0,60+$F$7*(H25-$F$6)+SUM(I25:K25)) -> 0 | Q25: =IF(M25="","",60+$F$7*(M25-$F$6)+SUM(N25:P25)) ->  | R25: =IF(AND(ISNUMBER(L25),ISNUMBER(Q25)),L25+Q25,0) -> 0
B26: =IF(R26="","",RANK(R26,$R$12:$R$30,0)+COUNTIFS($R$12:R26,R26)-1) -> 15 | L26: =IF(H26="",0,60+$F$7*(H26-$F$6)+SUM(I26:K26)) -> 0 | Q26: =IF(M26="","",60+$F$7*(M26-$F$6)+SUM(N26:P26)) ->  | R26: =IF(AND(ISNUMBER(L26),ISNUMBER(Q26)),L26+Q26,0) -> 0
B27: =IF(R27="","",RANK(R27,$R$12:$R$30,0)+COUNTIFS($R$12:R27,R27)-1) -> 16 | L27: =IF(H27="",0,60+$F$7*(H27-$F$6)+SUM(I27:K27)) -> 0 | Q27: =IF(M27="","",60+$F$7*(M27-$F$6)+SUM(N27:P27)) ->  | R27: =IF(AND(ISNUMBER(L27),ISNUMBER(Q27)),L27+Q27,0) -> 0
B28: =IF(R28="","",RANK(R28,$R$12:$R$30,0)+COUNTIFS($R$12:R28,R28)-1) -> 17 | L28: =IF(H28="",0,60+$F$7*(H28-$F$6)+SUM(I28:K28)) -> 0 | Q28: =IF(M28="","",60+$F$7*(M28-$F$6)+SUM(N28:P28)) ->  | R28: =IF(AND(ISNUMBER(L28),ISNUMBER(Q28)),L28+Q28,0) -> 0
B29: =IF(R29="","",RANK(R29,$R$12:$R$30,0)+COUNTIFS($R$12:R29,R29)-1) -> 18 | L29: =IF(H29="",0,60+$F$7*(H29-$F$6)+SUM(I29:K29)) -> 0 | Q29: =IF(M29="","",60+$F$7*(M29-$F$6)+SUM(N29:P29)) ->  | R29: =IF(AND(ISNUMBER(L29),ISNUMBER(Q29)),L29+Q29,0) -> 0
B30: =IF(R30="","",RANK(R30,$R$12:$R$30,0)+COUNTIFS($R$12:R30,R30)-1) -> 19 | L30: =IF(H30="",0,60+$F$7*(H30-$F$6)+SUM(I30:K30)) -> 0 | Q30: =IF(M30="","",60+$F$7*(M30-$F$6)+SUM(N30:P30)) ->  | R30: =IF(AND(ISNUMBER(L30),ISNUMBER(Q30)),L30+Q30,0) -> 0
K31: =IF(G31="","",60+$F$7*(G31-$F$6)+SUM(H31:J31)) ->  | P31: =IF(L31="","",60+$F$7*(L31-$F$6)+SUM(M31:O31)) ->  | Q31: =IF(AND(ISNUMBER(K31),ISNUMBER(P31)),K31+P31,"") -> 
E33: Startliste kombinert - individuell kompakt
B35: Plass. Hopp 1. omg | C35: Start nr. | D35: Navn | E35: Klubb | F35: F.år | G35: Poeng hopp | H35: Start tid | I35: Tid i mål MM:SS,T | L35: Plassering
B36: =IF(COUNTIF($F$12:$F$32,"Komb")>0,1,"") -> 1 | C36: =_xlfn._xlws.SORT(_xlfn.HSTACK(_xlfn._xlws.FILTER($C$12:$E$32,$F$12:$F$32="Komb",$L$12:$L$32>0),_xlfn._xlws.FILTER($G$12:$G$32,$F$12:$F$32="Komb",$L$12:$L$32>0),_xlfn._xlws.FILTER($L$12:$L$32,$F$12:$F$32="Komb",$L$12:$L$32>0)),5,-1) -> 112 | D36: Katinka Tranaas | E36: Namsos Idrettslag hopp | F36: J7 | G36: 47 | H36: =TIME(0,0,0) -> 00:00:00 | L36: =IF(C36="","",RANK(I36,$I$36:$I$51,1)+COUNTIF($I36:I$36,I36)-1) -> 
B37: =IFERROR(IF(B36+1>COUNTIF($F$12:$F$32,"Komb"),"",B36+1),"") -> 2 | C37: 92 | D37: Even Krog | E37: Byåsen IL | F37: G6 | G37: 41.8 | H37: =IF(B37="","",H36+TIME(0,0,6)) -> 00:00:06 | L37: =IF(C37="","",RANK(I37,$I$36:$I$51,1)+COUNTIF($I$36:I37,I37)-1) -> 
B38: =IFERROR(IF(B37+1>COUNTIF($F$12:$F$32,"Komb"),"",B37+1),"") -> 3 | C38: 91 | D38: Enja Wesche Fossheim | E38: Byåsen IL | F38: J6 | G38: 39.2 | H38: =IF(B38="","",H37+TIME(0,0,6)) -> 00:00:12 | L38: =IF(C38="","",RANK(I38,$I$36:$I$51,1)+COUNTIF($I$36:I38,I38)-1) -> 
B39: =IFERROR(IF(B38+1>COUNTIF($F$12:$F$32,"Komb"),"",B38+1),"") -> 4 | C39: 93 | D39: Victoria Vøhn Fleischer | E39: Skatval IL | F39: J7 | G39: 36.6 | H39: =IF(B39="","",H38+TIME(0,0,6)) -> 00:00:18 | L39: =IF(C39="","",RANK(I39,$I$36:$I$51,1)+COUNTIF($I$36:I39,I39)-1) -> 
B40: =IFERROR(IF(B39+1>COUNTIF($F$12:$F$32,"Komb"),"",B39+1),"") -> 5 | C40: 97 | D40: Vilde Fredagsvik-Johansen | E40: Skogn IL | F40: J9 | G40: 34 | H40: =IF(B40="","",H39+TIME(0,0,6)) -> 00:00:24 | L40: =IF(C40="","",RANK(I40,$I$36:$I$51,1)+COUNTIF($I$36:I40,I40)-1) -> 
B41: =IFERROR(IF(B40+1>COUNTIF($F$12:$F$32,"Komb"),"",B40+1),"") -> 6 | C41: 96 | D41: Maja Hanem Bartnes | E41: Ogndal IL | F41: J9 | G41: 28.8 | H41: =IF(B41="","",H40+TIME(0,0,6)) -> 00:00:30 | L41: =IF(C41="","",RANK(I41,$I$36:$I$51,1)+COUNTIF($I$36:I41,I41)-1) -> 
B42: =IFERROR(IF(B41+1>COUNTIF($F$12:$F$32,"Komb"),"",B41+1),"") -> 7 | C42: 108 | D42: Ane Tranaas | E42: Namsos IL Hopp | F42: J5 | G42: 0 | H42: =IF(B42="","",H41+TIME(0,0,6)) -> 00:00:36 | L42: =IF(C42="","",RANK(I42,$I$36:$I$51,1)+COUNTIF($I$36:I42,I42)-1) -> 
B43: =IFERROR(IF(B42+1>COUNTIF($F$12:$F$32,"Komb"),"",B42+1),"") ->  | H43: =IF(B43="","",H42+TIME(0,0,6)) ->  | L43: =IF(C43="","",RANK(I43,$I$36:$I$51,1)+COUNTIF($I$36:I43,I43)-1) -> 
B44: =IFERROR(IF(B43+1>COUNTIF($F$12:$F$32,"Komb"),"",B43+1),"") ->  | H44: =IF(B44="","",H43+TIME(0,0,6)) ->  | L44: =IF(C44="","",RANK(I44,$I$36:$I$51,1)+COUNTIF($I$36:I44,I44)-1) -> 
B45: =IFERROR(IF(B44+1>COUNTIF($F$12:$F$32,"Komb"),"",B44+1),"") ->  | H45: =IF(B45="","",H44+TIME(0,0,6)) ->  | L45: =IF(C45="","",RANK(I45,$I$36:$I$51,1)+COUNTIF($I$36:I45,I45)-1) -> 
B46: =IFERROR(IF(B45+1>COUNTIF($F$12:$F$32,"Komb"),"",B45+1),"") ->  | H46: =IF(B46="","",H45+TIME(0,0,6)) ->  | L46: =IF(C46="","",RANK(I46,$I$36:$I$51,1)+COUNTIF($I$36:I46,I46)-1) -> 
B47: =IFERROR(IF(B46+1>COUNTIF($F$12:$F$32,"Komb"),"",B46+1),"") ->  | H47: =IF(B47="","",H46+TIME(0,0,6)) ->  | L47: =IF(C47="","",RANK(I47,$I$36:$I$51,1)+COUNTIF($I$36:I47,I47)-1) -> 
B48: =IFERROR(IF(B47+1>COUNTIF($F$12:$F$32,"Komb"),"",B47+1),"") ->  | H48: =IF(B48="","",H47+TIME(0,0,6)) ->  | L48: =IF(C48="","",RANK(I48,$I$36:$I$51,1)+COUNTIF($I$36:I48,I48)-1) -> 
B49: =IFERROR(IF(B48+1>COUNTIF($F$12:$F$32,"Komb"),"",B48+1),"") ->  | H49: =IF(B49="","",H48+TIME(0,0,6)) ->  | L49: =IF(C49="","",RANK(I49,$I$36:$I$51,1)+COUNTIF($I$36:I49,I49)-1) -> 
B50: =IFERROR(IF(B49+1>COUNTIF($F$12:$F$32,"Komb"),"",B49+1),"") ->  | H50: =IF(B50="","",H49+TIME(0,0,6)) ->  | L50: =IF(C50="","",RANK(I50,$I$36:$I$51,1)+COUNTIF($I$36:I50,I50)-1) -> 
B51: =IFERROR(IF(B50+1>COUNTIF($F$12:$F$32,"Komb"),"",B50+1),"") ->  | H51: =IF(B51="","",H50+TIME(0,0,6)) ->  | L51: =IF(C51="","",RANK(I51,$I$36:$I$51,1)+COUNTIF($I$36:I51,I51)-1) -> 
E54: Resultatliste kombinert - individuell kompakt
B56: Plass | C56: Start nr. | D56: Navn | E56: Klubb | F56: F.år | G56: Lengde | H56: A | I56: B | J56: C | K56: Poeng Hopp | L56: Starttid langrenn | M56: Tid langr | O56: Tid i mål
B57: =IF(COUNT($I$36:$I$51)>0,1,"") ->  | C57: =IF(B57="","",_xlfn.XLOOKUP($B57,$L$36:$L$51,$C$36:$C$51,"",0,1)) ->  | D57: =IF(C57="","",_xlfn.XLOOKUP($C57,$C$36:$C$51,D$36:D$51,"",0,1)) ->  | E57: =IF(D57="","",_xlfn.XLOOKUP($C57,$C$36:$C$51,E$36:E$51,"",0,1)) ->  | G57: =IF($C57="","",_xlfn.XLOOKUP($C57,$C$12:$C$30,H$12:H$30,"",0,1)) ->  | H57: =IF($C57="","",_xlfn.XLOOKUP($C57,$C$12:$C$30,I$12:I$30,"",0,1)) ->  | I57: =IF($C57="","",_xlfn.XLOOKUP($C57,$C$12:$C$30,J$12:J$30,"",0,1)) ->  | J57: =IF($C57="","",_xlfn.XLOOKUP($C57,$C$12:$C$30,K$12:K$30,"",0,1)) ->  | K57: =IF($C57="","",_xlfn.XLOOKUP($C57,$C$12:$C$30,L$12:L$30,"",0,1)) ->  | L57: =_xlfn.XLOOKUP(C57,$C$35:$C$51,$H$35:$H$51,"",0,1) ->  | M57: =IF(C57="","",_xlfn.XLOOKUP(C57,$C$35:$C$51,$I$35:$I$51,"",0,1)-L57) ->  | O57: =VLOOKUP(C57,C36:I51,7,FALSE) -> 
B58: =IFERROR(IF(B57+1>COUNT($I$36:$I$51),"",B57+1),"") ->  | C58: =IF(B58="","",_xlfn.XLOOKUP($B58,$L$36:$L$51,$C$36:$C$51,"",0,1)) ->  | G58: =IF($C58="","",_xlfn.XLOOKUP($C58,$C$12:$C$30,H$12:H$30,"",0,1)) ->  | H58: =IF($C58="","",_xlfn.XLOOKUP($C58,$C$12:$C$30,I$12:I$30,"",0,1)) ->  | I58: =IF($C58="","",_xlfn.XLOOKUP($C58,$C$12:$C$30,J$12:J$30,"",0,1)) ->  | J58: =IF($C58="","",_xlfn.XLOOKUP($C58,$C$12:$C$30,K$12:K$30,"",0,1)) ->  | K58: =IF($C58="","",_xlfn.XLOOKUP($C58,$C$12:$C$30,L$12:L$30,"",0,1)) ->  | L58: =_xlfn.XLOOKUP(C58,$C$35:$C$51,$H$35:$H$51,"",0,1) ->  | M58: =IF(C58="","",_xlfn.XLOOKUP(C58,$C$35:$C$51,$I$35:$I$51,"",0,1)-L58) ->  | N58: =IF(C58="","","+") ->  | O58: =IF(C58="","",VLOOKUP($C58,$C$36:$I$51,7,0)-VLOOKUP($C$57,$C$36:$I$51,7,0)) -> 
B59: =IFERROR(IF(B58+1>COUNT($I$36:$I$51),"",B58+1),"") ->  | G59: =IF($C59="","",_xlfn.XLOOKUP($C59,$C$12:$C$30,H$12:H$30,"",0,1)) ->  | H59: =IF($C59="","",_xlfn.XLOOKUP($C59,$C$12:$C$30,I$12:I$30,"",0,1)) ->  | I59: =IF($C59="","",_xlfn.XLOOKUP($C59,$C$12:$C$30,J$12:J$30,"",0,1)) ->  | J59: =IF($C59="","",_xlfn.XLOOKUP($C59,$C$12:$C$30,K$12:K$30,"",0,1)) ->  | K59: =IF($C59="","",_xlfn.XLOOKUP($C59,$C$12:$C$30,L$12:L$30,"",0,1)) ->  | O59: =IF(C59="","",VLOOKUP($C59,$C$36:$I$51,7,0)-VLOOKUP($C$57,$C$36:$I$51,7,0)) -> 
G60: =IF($C60="","",_xlfn.XLOOKUP($C60,$C$12:$C$30,H$12:H$30,"",0,1)) ->  | H60: =IF($C60="","",_xlfn.XLOOKUP($C60,$C$12:$C$30,I$12:I$30,"",0,1)) ->  | I60: =IF($C60="","",_xlfn.XLOOKUP($C60,$C$12:$C$30,J$12:J$30,"",0,1)) ->  | J60: =IF($C60="","",_xlfn.XLOOKUP($C60,$C$12:$C$30,K$12:K$30,"",0,1)) ->  | K60: =IF($C60="","",_xlfn.XLOOKUP($C60,$C$12:$C$30,L$12:L$30,"",0,1)) -> 
G61: =IF($C61="","",_xlfn.XLOOKUP($C61,$C$12:$C$30,H$12:H$30,"",0,1)) ->  | H61: =IF($C61="","",_xlfn.XLOOKUP($C61,$C$12:$C$30,I$12:I$30,"",0,1)) ->  | I61: =IF($C61="","",_xlfn.XLOOKUP($C61,$C$12:$C$30,J$12:J$30,"",0,1)) ->  | J61: =IF($C61="","",_xlfn.XLOOKUP($C61,$C$12:$C$30,K$12:K$30,"",0,1)) ->  | K61: =IF($C61="","",_xlfn.XLOOKUP($C61,$C$12:$C$30,L$12:L$30,"",0,1)) -> 
G62: =IF($C62="","",_xlfn.XLOOKUP($C62,$C$12:$C$30,H$12:H$30,"",0,1)) ->  | H62: =IF($C62="","",_xlfn.XLOOKUP($C62,$C$12:$C$30,I$12:I$30,"",0,1)) ->  | I62: =IF($C62="","",_xlfn.XLOOKUP($C62,$C$12:$C$30,J$12:J$30,"",0,1)) ->  | J62: =IF($C62="","",_xlfn.XLOOKUP($C62,$C$12:$C$30,K$12:K$30,"",0,1)) ->  | K62: =IF($C62="","",_xlfn.XLOOKUP($C62,$C$12:$C$30,L$12:L$30,"",0,1)) -> 
G63: =IF($C63="","",_xlfn.XLOOKUP($C63,$C$12:$C$30,H$12:H$30,"",0,1)) ->  | H63: =IF($C63="","",_xlfn.XLOOKUP($C63,$C$12:$C$30,I$12:I$30,"",0,1)) ->  | I63: =IF($C63="","",_xlfn.XLOOKUP($C63,$C$12:$C$30,J$12:J$30,"",0,1)) ->  | J63: =IF($C63="","",_xlfn.XLOOKUP($C63,$C$12:$C$30,K$12:K$30,"",0,1)) ->  | K63: =IF($C63="","",_xlfn.XLOOKUP($C63,$C$12:$C$30,L$12:L$30,"",0,1)) -> 
G64: =IF($C64="","",_xlfn.XLOOKUP($C64,$C$12:$C$30,H$12:H$30,"",0,1)) ->  | H64: =IF($C64="","",_xlfn.XLOOKUP($C64,$C$12:$C$30,I$12:I$30,"",0,1)) ->  | I64: =IF($C64="","",_xlfn.XLOOKUP($C64,$C$12:$C$30,J$12:J$30,"",0,1)) ->  | J64: =IF($C64="","",_xlfn.XLOOKUP($C64,$C$12:$C$30,K$12:K$30,"",0,1)) ->  | K64: =IF($C64="","",_xlfn.XLOOKUP($C64,$C$12:$C$30,L$12:L$30,"",0,1)) -> 
G65: =IF($C65="","",_xlfn.XLOOKUP($C65,$C$12:$C$30,H$12:H$30,"",0,1)) ->  | H65: =IF($C65="","",_xlfn.XLOOKUP($C65,$C$12:$C$30,I$12:I$30,"",0,1)) ->  | I65: =IF($C65="","",_xlfn.XLOOKUP($C65,$C$12:$C$30,J$12:J$30,"",0,1)) ->  | J65: =IF($C65="","",_xlfn.XLOOKUP($C65,$C$12:$C$30,K$12:K$30,"",0,1)) ->  | K65: =IF($C65="","",_xlfn.XLOOKUP($C65,$C$12:$C$30,L$12:L$30,"",0,1)) -> 
G66: =IF($C66="","",_xlfn.XLOOKUP($C66,$C$12:$C$30,H$12:H$30,"",0,1)) ->  | H66: =IF($C66="","",_xlfn.XLOOKUP($C66,$C$12:$C$30,I$12:I$30,"",0,1)) ->  | I66: =IF($C66="","",_xlfn.XLOOKUP($C66,$C$12:$C$30,J$12:J$30,"",0,1)) ->  | J66: =IF($C66="","",_xlfn.XLOOKUP($C66,$C$12:$C$30,K$12:K$30,"",0,1)) ->  | K66: =IF($C66="","",_xlfn.XLOOKUP($C66,$C$12:$C$30,L$12:L$30,"",0,1)) -> 
G67: =IF($C67="","",_xlfn.XLOOKUP($C67,$C$12:$C$30,H$12:H$30,"",0,1)) ->  | H67: =IF($C67="","",_xlfn.XLOOKUP($C67,$C$12:$C$30,I$12:I$30,"",0,1)) ->  | I67: =IF($C67="","",_xlfn.XLOOKUP($C67,$C$12:$C$30,J$12:J$30,"",0,1)) ->  | J67: =IF($C67="","",_xlfn.XLOOKUP($C67,$C$12:$C$30,K$12:K$30,"",0,1)) ->  | K67: =IF($C67="","",_xlfn.XLOOKUP($C67,$C$12:$C$30,L$12:L$30,"",0,1)) -> 
G68: =IF($C68="","",_xlfn.XLOOKUP($C68,$C$12:$C$30,H$12:H$30,"",0,1)) ->  | H68: =IF($C68="","",_xlfn.XLOOKUP($C68,$C$12:$C$30,I$12:I$30,"",0,1)) ->  | I68: =IF($C68="","",_xlfn.XLOOKUP($C68,$C$12:$C$30,J$12:J$30,"",0,1)) ->  | J68: =IF($C68="","",_xlfn.XLOOKUP($C68,$C$12:$C$30,K$12:K$30,"",0,1)) ->  | K68: =IF($C68="","",_xlfn.XLOOKUP($C68,$C$12:$C$30,L$12:L$30,"",0,1)) -> 
G69: =IF($C69="","",_xlfn.XLOOKUP($C69,$C$12:$C$30,H$12:H$30,"",0,1)) ->  | H69: =IF($C69="","",_xlfn.XLOOKUP($C69,$C$12:$C$30,I$12:I$30,"",0,1)) ->  | I69: =IF($C69="","",_xlfn.XLOOKUP($C69,$C$12:$C$30,J$12:J$30,"",0,1)) ->  | J69: =IF($C69="","",_xlfn.XLOOKUP($C69,$C$12:$C$30,K$12:K$30,"",0,1)) ->  | K69: =IF($C69="","",_xlfn.XLOOKUP($C69,$C$12:$C$30,L$12:L$30,"",0,1)) -> 
G70: =IF($C70="","",_xlfn.XLOOKUP($C70,$C$12:$C$30,H$12:H$30,"",0,1)) ->  | H70: =IF($C70="","",_xlfn.XLOOKUP($C70,$C$12:$C$30,I$12:I$30,"",0,1)) ->  | I70: =IF($C70="","",_xlfn.XLOOKUP($C70,$C$12:$C$30,J$12:J$30,"",0,1)) ->  | J70: =IF($C70="","",_xlfn.XLOOKUP($C70,$C$12:$C$30,K$12:K$30,"",0,1)) ->  | K70: =IF($C70="","",_xlfn.XLOOKUP($C70,$C$12:$C$30,L$12:L$30,"",0,1)) -> 
G71: =IF($C71="","",_xlfn.XLOOKUP($C71,$C$12:$C$30,H$12:H$30,"",0,1)) ->  | H71: =IF($C71="","",_xlfn.XLOOKUP($C71,$C$12:$C$30,I$12:I$30,"",0,1)) ->  | I71: =IF($C71="","",_xlfn.XLOOKUP($C71,$C$12:$C$30,J$12:J$30,"",0,1)) ->  | J71: =IF($C71="","",_xlfn.XLOOKUP($C71,$C$12:$C$30,K$12:K$30,"",0,1)) ->  | K71: =IF($C71="","",_xlfn.XLOOKUP($C71,$C$12:$C$30,L$12:L$30,"",0,1)) -> 
G72: =IF($C72="","",_xlfn.XLOOKUP($C72,$C$12:$C$30,H$12:H$30,"",0,1)) ->  | H72: =IF($C72="","",_xlfn.XLOOKUP($C72,$C$12:$C$30,I$12:I$30,"",0,1)) ->  | I72: =IF($C72="","",_xlfn.XLOOKUP($C72,$C$12:$C$30,J$12:J$30,"",0,1)) ->  | J72: =IF($C72="","",_xlfn.XLOOKUP($C72,$C$12:$C$30,K$12:K$30,"",0,1)) ->  | K72: =IF($C72="","",_xlfn.XLOOKUP($C72,$C$12:$C$30,L$12:L$30,"",0,1)) -> 

Sheet K 10
E2: =+'K2'!E2 -> Namsosrennet i hopp og kombinert 01.02.2026
E5: ="K"&F6 -> K10 | G5: Åpen klasse
E6: K-punkt: | F6: 10 | G6: meter
E7: Meterverdi: | F7: 5.2 | G7: poeng/meter
H9: 1. omgang | M9: 2. omgang
C10: Start- | F10: Hopp/ | R10: Poeng
B11: Plassering | C11: nr. | D11: Navn | E11: Klubb | F11: Komb | G11: F.år | H11: Lengde | I11: A | J11: B | K11: C | L11: Poeng | M11: Lengde | N11: A | O11: B | P11: C | Q11: Poeng | R11: totalt
B12: =IF(R12="","",RANK(R12,$R$12:$R$26,0)+COUNTIFS($R$12:R12,R12)-1) -> 
B13: =IF(R13="","",RANK(R13,$R$12:$R$26,0)+COUNTIFS($R$12:R13,R13)-1) -> 3 | C13: 94 | D13: Trygve Sæther | E13: Namsos IL Hopp | F13: Hopp | G13: G7 | H13: 3 | L13: =IF(H13="",0,60+$F$7*(H13-$F$6)+SUM(I13:K13)) -> 23.6 | M13: 4 | Q13: =IF(M13="","",60+$F$7*(M13-$F$6)+SUM(N13:P13)) -> 28.8 | R13: =IF(AND(ISNUMBER(L13),ISNUMBER(Q13)),L13+Q13,0) -> 52.4
B14: =IF(R14="","",RANK(R14,$R$12:$R$26,0)+COUNTIFS($R$12:R14,R14)-1) -> 1 | C14: 95 | D14: Sigve Olai Bolås | E14: Ogndal IL | F14: Komb | G14: G8 | H14: 4 | L14: =IF(H14="",0,60+$F$7*(H14-$F$6)+SUM(I14:K14)) -> 28.8 | M14: 4.5 | Q14: =IF(M14="","",60+$F$7*(M14-$F$6)+SUM(N14:P14)) -> 31.4 | R14: =IF(AND(ISNUMBER(L14),ISNUMBER(Q14)),L14+Q14,0) -> 60.2
B15: =IF(R15="","",RANK(R15,$R$12:$R$26,0)+COUNTIFS($R$12:R15,R15)-1) -> 4 | C15: 98 | D15: William Abrahamsen Geving | E15: Namsos IL Hopp | F15: Hopp | G15: G10 | H15: 3 | L15: =IF(H15="",0,60+$F$7*(H15-$F$6)+SUM(I15:K15)) -> 23.6 | M15: 3 | Q15: =IF(M15="","",60+$F$7*(M15-$F$6)+SUM(N15:P15)) -> 23.6 | R15: =IF(AND(ISNUMBER(L15),ISNUMBER(Q15)),L15+Q15,0) -> 47.2
B16: =IF(R16="","",RANK(R16,$R$12:$R$26,0)+COUNTIFS($R$12:R16,R16)-1) -> 5 | C16: 99 | D16: Othelie Bolås | E16: Ogndal IL | F16: Komb | G16: J11 | H16: 2.5 | L16: =IF(H16="",0,60+$F$7*(H16-$F$6)+SUM(I16:K16)) -> 21 | M16: 3 | Q16: =IF(M16="","",60+$F$7*(M16-$F$6)+SUM(N16:P16)) -> 23.6 | R16: =IF(AND(ISNUMBER(L16),ISNUMBER(Q16)),L16+Q16,0) -> 44.6
B17: =IF(R17="","",RANK(R17,$R$12:$R$26,0)+COUNTIFS($R$12:R17,R17)-1) -> 2 | C17: 101 | D17: Amalie Hanem Bolås | E17: Ogndal IL | F17: Komb | G17: J12 | H17: 3.5 | L17: =IF(H17="",0,60+$F$7*(H17-$F$6)+SUM(I17:K17)) -> 26.2 | M17: 4.5 | Q17: =IF(M17="","",60+$F$7*(M17-$F$6)+SUM(N17:P17)) -> 31.4 | R17: =IF(AND(ISNUMBER(L17),ISNUMBER(Q17)),L17+Q17,0) -> 57.6
B18: =IF(R18="","",RANK(R18,$R$12:$R$26,0)+COUNTIFS($R$12:R18,R18)-1) -> 6 | C18: 102 | L18: =IF(H18="",0,60+$F$7*(H18-$F$6)+SUM(I18:K18)) -> 0 | Q18: =IF(M18="","",60+$F$7*(M18-$F$6)+SUM(N18:P18)) ->  | R18: =IF(AND(ISNUMBER(L18),ISNUMBER(Q18)),L18+Q18,0) -> 0
B19: =IF(R19="","",RANK(R19,$R$12:$R$26,0)+COUNTIFS($R$12:R19,R19)-1) -> 7 | C19: 106 | L19: =IF(H19="",0,60+$F$7*(H19-$F$6)+SUM(I19:K19)) -> 0 | Q19: =IF(M19="","",60+$F$7*(M19-$F$6)+SUM(N19:P19)) ->  | R19: =IF(AND(ISNUMBER(L19),ISNUMBER(Q19)),L19+Q19,0) -> 0
B20: =IF(R20="","",RANK(R20,$R$12:$R$26,0)+COUNTIFS($R$12:R20,R20)-1) -> 8 | C20: 107 | L20: =IF(H20="",0,60+$F$7*(H20-$F$6)+SUM(I20:K20)) -> 0 | Q20: =IF(M20="","",60+$F$7*(M20-$F$6)+SUM(N20:P20)) ->  | R20: =IF(AND(ISNUMBER(L20),ISNUMBER(Q20)),L20+Q20,0) -> 0
B21: =IF(R21="","",RANK(R21,$R$12:$R$26,0)+COUNTIFS($R$12:R21,R21)-1) -> 9 | L21: =IF(H21="",0,60+$F$7*(H21-$F$6)+SUM(I21:K21)) -> 0 | Q21: =IF(M21="","",60+$F$7*(M21-$F$6)+SUM(N21:P21)) ->  | R21: =IF(AND(ISNUMBER(L21),ISNUMBER(Q21)),L21+Q21,0) -> 0
B22: =IF(R22="","",RANK(R22,$R$12:$R$26,0)+COUNTIFS($R$12:R22,R22)-1) -> 10 | L22: =IF(H22="",0,60+$F$7*(H22-$F$6)+SUM(I22:K22)) -> 0 | Q22: =IF(M22="","",60+$F$7*(M22-$F$6)+SUM(N22:P22)) ->  | R22: =IF(AND(ISNUMBER(L22),ISNUMBER(Q22)),L22+Q22,0) -> 0
B23: =IF(R23="","",RANK(R23,$R$12:$R$26,0)+COUNTIFS($R$12:R23,R23)-1) -> 11 | L23: =IF(H23="",0,60+$F$7*(H23-$F$6)+SUM(I23:K23)) -> 0 | Q23: =IF(M23="","",60+$F$7*(M23-$F$6)+SUM(N23:P23)) ->  | R23: =IF(AND(ISNUMBER(L23),ISNUMBER(Q23)),L23+Q23,0) -> 0
B24: =IF(R24="","",RANK(R24,$R$12:$R$26,0)+COUNTIFS($R$12:R24,R24)-1) -> 12 | L24: =IF(H24="",0,60+$F$7*(H24-$F$6)+SUM(I24:K24)) -> 0 | Q24: =IF(M24="","",60+$F$7*(M24-$F$6)+SUM(N24:P24)) ->  | R24: =IF(AND(ISNUMBER(L24),ISNUMBER(Q24)),L24+Q24,0) -> 0
B25: =IF(R25="","",RANK(R25,$R$12:$R$26,0)+COUNTIFS($R$12:R25,R25)-1) -> 13 | L25: =IF(H25="",0,60+$F$7*(H25-$F$6)+SUM(I25:K25)) -> 0 | Q25: =IF(M25="","",60+$F$7*(M25-$F$6)+SUM(N25:P25)) ->  | R25: =IF(AND(ISNUMBER(L25),ISNUMBER(Q25)),L25+Q25,0) -> 0
B26: =IF(R26="","",RANK(R26,$R$12:$R$26,0)+COUNTIFS($R$12:R26,R26)-1) -> 14 | L26: =IF(H26="",0,60+$F$7*(H26-$F$6)+SUM(I26:K26)) -> 0 | Q26: =IF(M26="","",60+$F$7*(M26-$F$6)+SUM(N26:P26)) ->  | R26: =IF(AND(ISNUMBER(L26),ISNUMBER(Q26)),L26+Q26,0) -> 0
K27: =IF(G27="","",60+$F$7*(G27-$F$6)+SUM(H27:J27)) ->  | P27: =IF(L27="","",60+$F$7*(L27-$F$6)+SUM(M27:O27)) ->  | Q27: =IF(AND(ISNUMBER(K27),ISNUMBER(P27)),K27+P27,"") -> 
E29: Startliste kombinert - individuell kompakt
B31: Plass. Hopp 1. omg | C31: Start nr. | D31: Navn | E31: Klubb | F31: F.år | G31: Poeng hopp | H31: Start tid | I31: Tid i mål MM:SS,T | L31: Plassering
B32: =IF(COUNTIF($F$12:$F$26,"Komb")>0,1,"") -> 1 | C32: =_xlfn._xlws.SORT(_xlfn.HSTACK(_xlfn._xlws.FILTER($C$12:$E$26,$F$12:$F$26="Komb",$L$12:$L$26>0),_xlfn._xlws.FILTER($G$12:$G$26,$F$12:$F$26="Komb",$L$12:$L$26>0),_xlfn._xlws.FILTER($L$12:$L$26,$F$12:$F$26="Komb",$L$12:$L$26>0)),5,-1) -> 95 | D32: Sigve Olai Bolås | E32: Ogndal IL | F32: G8 | G32: 28.8 | H32: =TIME(0,0,0) -> 00:00:00 | L32: =IF(C32="","",RANK(I32,$I$32:$I$47,1)+COUNTIF($I$32:I32,I32)-1) -> 
B33: =IFERROR(IF(B32+1>COUNTIF($F$12:$F$26,"Komb"),"",B32+1),"") -> 2 | C33: 101 | D33: Amalie Hanem Bolås | E33: Ogndal IL | F33: J12 | G33: 26.2 | H33: =IF(B33="","",H32+TIME(0,0,6)) -> 00:00:06 | L33: =IF(C33="","",RANK(I33,$I$32:$I$47,1)+COUNTIF($I$32:I33,I33)-1) -> 
B34: =IFERROR(IF(B33+1>COUNTIF($F$12:$F$26,"Komb"),"",B33+1),"") -> 3 | C34: 99 | D34: Othelie Bolås | E34: Ogndal IL | F34: J11 | G34: 21 | H34: =IF(B34="","",H33+TIME(0,0,6)) -> 00:00:12 | L34: =IF(C34="","",RANK(I34,$I$32:$I$47,1)+COUNTIF($I$32:I34,I34)-1) -> 
B35: =IFERROR(IF(B34+1>COUNTIF($F$12:$F$26,"Komb"),"",B34+1),"") ->  | L35: =IF(C35="","",RANK(I35,$I$32:$I$47,1)+COUNTIF($I$32:I35,I35)-1) -> 
B36: =IFERROR(IF(B35+1>COUNTIF($F$12:$F$26,"Komb"),"",B35+1),"") ->  | L36: =IF(C36="","",RANK(I36,$I$32:$I$47,1)+COUNTIF($I$32:I36,I36)-1) -> 
B37: =IFERROR(IF(B36+1>COUNTIF($F$12:$F$26,"Komb"),"",B36+1),"") ->  | L37: =IF(C37="","",RANK(I37,$I$32:$I$47,1)+COUNTIF($I$32:I37,I37)-1) -> 
B38: =IFERROR(IF(B37+1>COUNTIF($F$12:$F$26,"Komb"),"",B37+1),"") ->  | L38: =IF(C38="","",RANK(I38,$I$32:$I$47,1)+COUNTIF($I$32:I38,I38)-1) -> 
B39: =IFERROR(IF(B38+1>COUNTIF($F$12:$F$26,"Komb"),"",B38+1),"") ->  | L39: =IF(C39="","",RANK(I39,$I$32:$I$47,1)+COUNTIF($I$32:I39,I39)-1) -> 
B40: =IFERROR(IF(B39+1>COUNTIF($F$12:$F$26,"Komb"),"",B39+1),"") ->  | L40: =IF(C40="","",RANK(I40,$I$32:$I$47,1)+COUNTIF($I$32:I40,I40)-1) -> 
B41: =IFERROR(IF(B40+1>COUNTIF($F$12:$F$26,"Komb"),"",B40+1),"") ->  | L41: =IF(C41="","",RANK(I41,$I$32:$I$47,1)+COUNTIF($I$32:I41,I41)-1) -> 
B42: =IFERROR(IF(B41+1>COUNTIF($F$12:$F$26,"Komb"),"",B41+1),"") ->  | L42: =IF(C42="","",RANK(I42,$I$32:$I$47,1)+COUNTIF($I$32:I42,I42)-1) -> 
B43: =IFERROR(IF(B42+1>COUNTIF($F$12:$F$26,"Komb"),"",B42+1),"") ->  | L43: =IF(C43="","",RANK(I43,$I$32:$I$47,1)+COUNTIF($I$32:I43,I43)-1) -> 
B44: =IFERROR(IF(B43+1>COUNTIF($F$12:$F$26,"Komb"),"",B43+1),"") ->  | L44: =IF(C44="","",RANK(I44,$I$32:$I$47,1)+COUNTIF($I$32:I44,I44)-1) -> 
B45: =IFERROR(IF(B44+1>COUNTIF($F$12:$F$26,"Komb"),"",B44+1),"") ->  | L45: =IF(C45="","",RANK(I45,$I$32:$I$47,1)+COUNTIF($I$32:I45,I45)-1) -> 
B46: =IFERROR(IF(B45+1>COUNTIF($F$12:$F$26,"Komb"),"",B45+1),"") ->  | L46: =IF(C46="","",RANK(I46,$I$32:$I$47,1)+COUNTIF($I$32:I46,I46)-1) -> 
B47: =IFERROR(IF(B46+1>COUNTIF($F$12:$F$26,"Komb"),"",B46+1),"") ->  | L47: =IF(C47="","",RANK(I47,$I$32:$I$47,1)+COUNTIF($I$32:I47,I47)-1) -> 
E50: Resultatliste kombinert - individuell kompakt
B52: Plass | C52: Start nr. | D52: Navn | E52: Klubb | F52: F.år | G52: Lengde | H52: A | I52: B | J52: C | K52: Poeng Hopp | L52: Starttid langrenn | M52: Tid langr | O52: Tid i mål
B53: =IF(COUNT($I$32:$I$47)>0,1,"") ->  | C53: =IF(B53="","",_xlfn.XLOOKUP($B53,$L$32:$L$47,$C$32:$C$47,"",0,1)) ->  | D53: =IF(C53="","",_xlfn.XLOOKUP($C53,$C$32:$C$47,D$32:D$47,"",0,1)) ->  | G53: =IF($C53="","",_xlfn.XLOOKUP($C53,$C$12:$C$26,H$12:H$26,"",0,1)) ->  | H53: =IF($C53="","",_xlfn.XLOOKUP($C53,$C$12:$C$26,I$12:I$26,"",0,1)) ->  | I53: =IF($C53="","",_xlfn.XLOOKUP($C53,$C$12:$C$26,J$12:J$26,"",0,1)) ->  | J53: =IF($C53="","",_xlfn.XLOOKUP($C53,$C$12:$C$26,K$12:K$26,"",0,1)) ->  | K53: =IF($C53="","",_xlfn.XLOOKUP($C53,$C$12:$C$26,L$12:L$26,"",0,1)) ->  | L53: =_xlfn.XLOOKUP(C53,$C$31:$C$47,$H$31:$H$47,"",0,1) ->  | M53: =IF(C53="","",_xlfn.XLOOKUP(C53,$C$31:$C$47,$I$31:$I$47,"",0,1)-L53) ->  | O53: =VLOOKUP(C53,C32:I47,7,FALSE) -> 
B54: =IFERROR(IF(B53+1>COUNT($I$32:$I$47),"",B53+1),"") ->  | C54: =IF(B54="","",_xlfn.XLOOKUP($B54,$L$32:$L$47,$C$32:$C$47,"",0,1)) ->  | G54: =IF($C54="","",_xlfn.XLOOKUP($C54,$C$12:$C$26,H$12:H$26,"",0,1)) ->  | H54: =IF($C54="","",_xlfn.XLOOKUP($C54,$C$12:$C$26,I$12:I$26,"",0,1)) ->  | I54: =IF($C54="","",_xlfn.XLOOKUP($C54,$C$12:$C$26,J$12:J$26,"",0,1)) ->  | J54: =IF($C54="","",_xlfn.XLOOKUP($C54,$C$12:$C$26,K$12:K$26,"",0,1)) ->  | K54: =IF($C54="","",_xlfn.XLOOKUP($C54,$C$12:$C$26,L$12:L$26,"",0,1)) ->  | L54: =_xlfn.XLOOKUP(C54,$C$31:$C$47,$H$31:$H$47,"",0,1) ->  | M54: =IF(C54="","",_xlfn.XLOOKUP(C54,$C$31:$C$47,$I$31:$I$47,"",0,1)-L54) ->  | N54: =IF(C54="","","+") ->  | O54: =IF(C54="","",VLOOKUP($C54,$C$32:$I$47,7,0)-VLOOKUP($C$53,$C$32:$I$47,7,0)) -> 
B55: =IFERROR(IF(B54+1>COUNT($I$32:$I$47),"",B54+1),"") ->  | G55: =IF($C55="","",_xlfn.XLOOKUP($C55,$C$12:$C$26,H$12:H$26,"",0,1)) ->  | H55: =IF($C55="","",_xlfn.XLOOKUP($C55,$C$12:$C$26,I$12:I$26,"",0,1)) ->  | I55: =IF($C55="","",_xlfn.XLOOKUP($C55,$C$12:$C$26,J$12:J$26,"",0,1)) ->  | J55: =IF($C55="","",_xlfn.XLOOKUP($C55,$C$12:$C$26,K$12:K$26,"",0,1)) ->  | K55: =IF($C55="","",_xlfn.XLOOKUP($C55,$C$12:$C$26,L$12:L$26,"",0,1)) ->  | O55: =IF(C55="","",VLOOKUP($C55,$C$32:$I$47,7,0)-VLOOKUP($C$53,$C$32:$I$47,7,0)) -> 
G56: =IF($C56="","",_xlfn.XLOOKUP($C56,$C$12:$C$26,H$12:H$26,"",0,1)) ->  | H56: =IF($C56="","",_xlfn.XLOOKUP($C56,$C$12:$C$26,I$12:I$26,"",0,1)) ->  | I56: =IF($C56="","",_xlfn.XLOOKUP($C56,$C$12:$C$26,J$12:J$26,"",0,1)) ->  | J56: =IF($C56="","",_xlfn.XLOOKUP($C56,$C$12:$C$26,K$12:K$26,"",0,1)) ->  | K56: =IF($C56="","",_xlfn.XLOOKUP($C56,$C$12:$C$26,L$12:L$26,"",0,1)) -> 
G57: =IF($C57="","",_xlfn.XLOOKUP($C57,$C$12:$C$26,H$12:H$26,"",0,1)) ->  | H57: =IF($C57="","",_xlfn.XLOOKUP($C57,$C$12:$C$26,I$12:I$26,"",0,1)) ->  | I57: =IF($C57="","",_xlfn.XLOOKUP($C57,$C$12:$C$26,J$12:J$26,"",0,1)) ->  | J57: =IF($C57="","",_xlfn.XLOOKUP($C57,$C$12:$C$26,K$12:K$26,"",0,1)) ->  | K57: =IF($C57="","",_xlfn.XLOOKUP($C57,$C$12:$C$26,L$12:L$26,"",0,1)) -> 
G58: =IF($C58="","",_xlfn.XLOOKUP($C58,$C$12:$C$26,H$12:H$26,"",0,1)) ->  | H58: =IF($C58="","",_xlfn.XLOOKUP($C58,$C$12:$C$26,I$12:I$26,"",0,1)) ->  | I58: =IF($C58="","",_xlfn.XLOOKUP($C58,$C$12:$C$26,J$12:J$26,"",0,1)) ->  | J58: =IF($C58="","",_xlfn.XLOOKUP($C58,$C$12:$C$26,K$12:K$26,"",0,1)) ->  | K58: =IF($C58="","",_xlfn.XLOOKUP($C58,$C$12:$C$26,L$12:L$26,"",0,1)) -> 
G59: =IF($C59="","",_xlfn.XLOOKUP($C59,$C$12:$C$26,H$12:H$26,"",0,1)) ->  | H59: =IF($C59="","",_xlfn.XLOOKUP($C59,$C$12:$C$26,I$12:I$26,"",0,1)) ->  | I59: =IF($C59="","",_xlfn.XLOOKUP($C59,$C$12:$C$26,J$12:J$26,"",0,1)) ->  | J59: =IF($C59="","",_xlfn.XLOOKUP($C59,$C$12:$C$26,K$12:K$26,"",0,1)) ->  | K59: =IF($C59="","",_xlfn.XLOOKUP($C59,$C$12:$C$26,L$12:L$26,"",0,1)) -> 
G60: =IF($C60="","",_xlfn.XLOOKUP($C60,$C$12:$C$26,H$12:H$26,"",0,1)) ->  | H60: =IF($C60="","",_xlfn.XLOOKUP($C60,$C$12:$C$26,I$12:I$26,"",0,1)) ->  | I60: =IF($C60="","",_xlfn.XLOOKUP($C60,$C$12:$C$26,J$12:J$26,"",0,1)) ->  | J60: =IF($C60="","",_xlfn.XLOOKUP($C60,$C$12:$C$26,K$12:K$26,"",0,1)) ->  | K60: =IF($C60="","",_xlfn.XLOOKUP($C60,$C$12:$C$26,L$12:L$26,"",0,1)) -> 
G61: =IF($C61="","",_xlfn.XLOOKUP($C61,$C$12:$C$26,H$12:H$26,"",0,1)) ->  | H61: =IF($C61="","",_xlfn.XLOOKUP($C61,$C$12:$C$26,I$12:I$26,"",0,1)) ->  | I61: =IF($C61="","",_xlfn.XLOOKUP($C61,$C$12:$C$26,J$12:J$26,"",0,1)) ->  | J61: =IF($C61="","",_xlfn.XLOOKUP($C61,$C$12:$C$26,K$12:K$26,"",0,1)) ->  | K61: =IF($C61="","",_xlfn.XLOOKUP($C61,$C$12:$C$26,L$12:L$26,"",0,1)) -> 
G62: =IF($C62="","",_xlfn.XLOOKUP($C62,$C$12:$C$26,H$12:H$26,"",0,1)) ->  | H62: =IF($C62="","",_xlfn.XLOOKUP($C62,$C$12:$C$26,I$12:I$26,"",0,1)) ->  | I62: =IF($C62="","",_xlfn.XLOOKUP($C62,$C$12:$C$26,J$12:J$26,"",0,1)) ->  | J62: =IF($C62="","",_xlfn.XLOOKUP($C62,$C$12:$C$26,K$12:K$26,"",0,1)) ->  | K62: =IF($C62="","",_xlfn.XLOOKUP($C62,$C$12:$C$26,L$12:L$26,"",0,1)) -> 
G63: =IF($C63="","",_xlfn.XLOOKUP($C63,$C$12:$C$26,H$12:H$26,"",0,1)) ->  | H63: =IF($C63="","",_xlfn.XLOOKUP($C63,$C$12:$C$26,I$12:I$26,"",0,1)) ->  | I63: =IF($C63="","",_xlfn.XLOOKUP($C63,$C$12:$C$26,J$12:J$26,"",0,1)) ->  | J63: =IF($C63="","",_xlfn.XLOOKUP($C63,$C$12:$C$26,K$12:K$26,"",0,1)) ->  | K63: =IF($C63="","",_xlfn.XLOOKUP($C63,$C$12:$C$26,L$12:L$26,"",0,1)) -> 
G64: =IF($C64="","",_xlfn.XLOOKUP($C64,$C$12:$C$26,H$12:H$26,"",0,1)) ->  | H64: =IF($C64="","",_xlfn.XLOOKUP($C64,$C$12:$C$26,I$12:I$26,"",0,1)) ->  | I64: =IF($C64="","",_xlfn.XLOOKUP($C64,$C$12:$C$26,J$12:J$26,"",0,1)) ->  | J64: =IF($C64="","",_xlfn.XLOOKUP($C64,$C$12:$C$26,K$12:K$26,"",0,1)) ->  | K64: =IF($C64="","",_xlfn.XLOOKUP($C64,$C$12:$C$26,L$12:L$26,"",0,1)) -> 
G65: =IF($C65="","",_xlfn.XLOOKUP($C65,$C$12:$C$26,H$12:H$26,"",0,1)) ->  | H65: =IF($C65="","",_xlfn.XLOOKUP($C65,$C$12:$C$26,I$12:I$26,"",0,1)) ->  | I65: =IF($C65="","",_xlfn.XLOOKUP($C65,$C$12:$C$26,J$12:J$26,"",0,1)) ->  | J65: =IF($C65="","",_xlfn.XLOOKUP($C65,$C$12:$C$26,K$12:K$26,"",0,1)) ->  | K65: =IF($C65="","",_xlfn.XLOOKUP($C65,$C$12:$C$26,L$12:L$26,"",0,1)) -> 
G66: =IF($C66="","",_xlfn.XLOOKUP($C66,$C$12:$C$26,H$12:H$26,"",0,1)) ->  | H66: =IF($C66="","",_xlfn.XLOOKUP($C66,$C$12:$C$26,I$12:I$26,"",0,1)) ->  | I66: =IF($C66="","",_xlfn.XLOOKUP($C66,$C$12:$C$26,J$12:J$26,"",0,1)) ->  | J66: =IF($C66="","",_xlfn.XLOOKUP($C66,$C$12:$C$26,K$12:K$26,"",0,1)) ->  | K66: =IF($C66="","",_xlfn.XLOOKUP($C66,$C$12:$C$26,L$12:L$26,"",0,1)) -> 
G67: =IF($C67="","",_xlfn.XLOOKUP($C67,$C$12:$C$26,H$12:H$26,"",0,1)) ->  | H67: =IF($C67="","",_xlfn.XLOOKUP($C67,$C$12:$C$26,I$12:I$26,"",0,1)) ->  | I67: =IF($C67="","",_xlfn.XLOOKUP($C67,$C$12:$C$26,J$12:J$26,"",0,1)) ->  | J67: =IF($C67="","",_xlfn.XLOOKUP($C67,$C$12:$C$26,K$12:K$26,"",0,1)) ->  | K67: =IF($C67="","",_xlfn.XLOOKUP($C67,$C$12:$C$26,L$12:L$26,"",0,1)) -> 
G68: =IF($C68="","",_xlfn.XLOOKUP($C68,$C$12:$C$26,H$12:H$26,"",0,1)) ->  | H68: =IF($C68="","",_xlfn.XLOOKUP($C68,$C$12:$C$26,I$12:I$26,"",0,1)) ->  | I68: =IF($C68="","",_xlfn.XLOOKUP($C68,$C$12:$C$26,J$12:J$26,"",0,1)) ->  | J68: =IF($C68="","",_xlfn.XLOOKUP($C68,$C$12:$C$26,K$12:K$26,"",0,1)) ->  | K68: =IF($C68="","",_xlfn.XLOOKUP($C68,$C$12:$C$26,L$12:L$26,"",0,1)) -> 

Sheet K15
E2: =+'K2'!E2 -> Namsosrennet i hopp og kombinert 01.02.2026
E5: ="K"&F6 -> K15 | G5: Åpen klasse
E6: K-punkt: | F6: 15 | G6: meter
E7: Meterverdi: | F7: =VLOOKUP(F6,Meterverdier!A:B,2,FALSE) -> 5.2 | G7: poeng/meter
H9: 1. omgang | M9: 2. omgang
C10: Start- | F10: Hopp/ | R10: Poeng
B11: Plassering | C11: nr. | D11: Navn | E11: Klubb | F11: Komb | G11: F.år | H11: Lengde | I11: A | J11: B | K11: C | L11: Poeng | M11: Lengde | N11: A | O11: B | P11: C | Q11: Poeng | R11: totalt
B12: =IF(R12="","",RANK(R12,$R$12:$R$26,0)+COUNTIFS($R$12:R12,R12)-1) -> 3 | C12: 85 | D12: Niklas Hanem Bartnes | E12: Ogndal IL | F12: Komb | G12: G8 | H12: 12 | L12: =IF(H12="",0,60+$F$7*(H12-$F$6)+SUM(I12:K12)) -> 44.4 | M12: 12 | Q12: =IF(M12="","",60+$F$7*(M12-$F$6)+SUM(N12:P12)) -> 44.4 | R12: =IF(AND(ISNUMBER(L12),ISNUMBER(Q12)),L12+Q12,0) -> 88.8
B13: =IF(R13="","",RANK(R13,$R$12:$R$26,0)+COUNTIFS($R$12:R13,R13)-1) -> 2 | C13: 86 | D13: Inga Eliassen | E13: Namsos IL Hopp | F13: Hopp | G13: J10 | H13: 12.5 | L13: =IF(H13="",0,60+$F$7*(H13-$F$6)+SUM(I13:K13)) -> 47 | M13: 13 | Q13: =IF(M13="","",60+$F$7*(M13-$F$6)+SUM(N13:P13)) -> 49.6 | R13: =IF(AND(ISNUMBER(L13),ISNUMBER(Q13)),L13+Q13,0) -> 96.6
B14: =IF(R14="","",RANK(R14,$R$12:$R$26,0)+COUNTIFS($R$12:R14,R14)-1) -> 1 | C14: 87 | D14: Chrisander Sakarias B Kirknes | E14: Namsos IL Hopp | F14: Komb | G14: G11 | H14: 15 | L14: =IF(H14="",0,60+$F$7*(H14-$F$6)+SUM(I14:K14)) -> 60 | M14: 15.5 | Q14: =IF(M14="","",60+$F$7*(M14-$F$6)+SUM(N14:P14)) -> 62.6 | R14: =IF(AND(ISNUMBER(L14),ISNUMBER(Q14)),L14+Q14,0) -> 122.6
C15: 89
C16: 90
B17: =IF(R17="","",RANK(R17,$R$12:$R$26,0)+COUNTIFS($R$12:R17,R17)-1) -> 4 | L17: =IF(H17="",0,60+$F$7*(H17-$F$6)+SUM(I17:K17)) -> 0 | Q17: =IF(M17="","",60+$F$7*(M17-$F$6)+SUM(N17:P17)) ->  | R17: =IF(AND(ISNUMBER(L17),ISNUMBER(Q17)),L17+Q17,0) -> 0
B18: =IF(R18="","",RANK(R18,$R$12:$R$26,0)+COUNTIFS($R$12:R18,R18)-1) -> 5 | L18: =IF(H18="",0,60+$F$7*(H18-$F$6)+SUM(I18:K18)) -> 0 | Q18: =IF(M18="","",60+$F$7*(M18-$F$6)+SUM(N18:P18)) ->  | R18: 0
B19: =IF(R19="","",RANK(R19,$R$12:$R$26,0)+COUNTIFS($R$12:R19,R19)-1) -> 6 | L19: =IF(H19="",0,60+$F$7*(H19-$F$6)+SUM(I19:K19)) -> 0 | Q19: =IF(M19="","",60+$F$7*(M19-$F$6)+SUM(N19:P19)) ->  | R19: 0
B20: =IF(R20="","",RANK(R20,$R$12:$R$26,0)+COUNTIFS($R$12:R20,R20)-1) -> 7 | L20: =IF(H20="",0,60+$F$7*(H20-$F$6)+SUM(I20:K20)) -> 0 | Q20: =IF(M20="","",60+$F$7*(M20-$F$6)+SUM(N20:P20)) ->  | R20: =IF(AND(ISNUMBER(L20),ISNUMBER(Q20)),L20+Q20,0) -> 0
B21: =IF(R21="","",RANK(R21,$R$12:$R$26,0)+COUNTIFS($R$12:R21,R21)-1) -> 8 | L21: =IF(H21="",0,60+$F$7*(H21-$F$6)+SUM(I21:K21)) -> 0 | Q21: =IF(M21="","",60+$F$7*(M21-$F$6)+SUM(N21:P21)) ->  | R21: 0
B22: =IF(R22="","",RANK(R22,$R$12:$R$26,0)+COUNTIFS($R$12:R22,R22)-1) -> 9 | L22: =IF(H22="",0,60+$F$7*(H22-$F$6)+SUM(I22:K22)) -> 0 | Q22: =IF(M22="","",60+$F$7*(M22-$F$6)+SUM(N22:P22)) ->  | R22: 0
B23: =IF(R23="","",RANK(R23,$R$12:$R$26,0)+COUNTIFS($R$12:R23,R23)-1) -> 10 | L23: =IF(H23="",0,60+$F$7*(H23-$F$6)+SUM(I23:K23)) -> 0 | Q23: =IF(M23="","",60+$F$7*(M23-$F$6)+SUM(N23:P23)) ->  | R23: 0
B24: =IF(R24="","",RANK(R24,$R$12:$R$26,0)+COUNTIFS($R$12:R24,R24)-1) -> 11 | L24: =IF(H24="",0,60+$F$7*(H24-$F$6)+SUM(I24:K24)) -> 0 | Q24: =IF(M24="","",60+$F$7*(M24-$F$6)+SUM(N24:P24)) ->  | R24: 0
B25: =IF(R25="","",RANK(R25,$R$12:$R$26,0)+COUNTIFS($R$12:R25,R25)-1) -> 12 | L25: =IF(H25="",0,60+$F$7*(H25-$F$6)+SUM(I25:K25)) -> 0 | Q25: =IF(M25="","",60+$F$7*(M25-$F$6)+SUM(N25:P25)) ->  | R25: 0
B26: =IF(R26="","",RANK(R26,$R$12:$R$26,0)+COUNTIFS($R$12:R26,R26)-1) -> 13 | L26: =IF(H26="",0,60+$F$7*(H26-$F$6)+SUM(I26:K26)) -> 0 | Q26: =IF(M26="","",60+$F$7*(M26-$F$6)+SUM(N26:P26)) ->  | R26: 0
K27: =IF(G27="","",60+$F$7*(G27-$F$6)+SUM(H27:J27)) ->  | P27: =IF(L27="","",60+$F$7*(L27-$F$6)+SUM(M27:O27)) ->  | Q27: =IF(AND(ISNUMBER(K27),ISNUMBER(P27)),K27+P27,"") -> 
E29: Startliste kombinert - individuell kompakt
B31: Plass. Hopp 1. omg | C31: Start nr. | D31: Navn | E31: Klubb | F31: F.år | G31: Poeng hopp | H31: Start tid | I31: Tid i mål MM:SS,T | L31: Plassering
B32: =IF(COUNTIF($F$12:$F$26,"Komb")>0,1,"") -> 1 | C32: =_xlfn._xlws.SORT(_xlfn.HSTACK(_xlfn._xlws.FILTER($C$12:$E$26,$F$12:$F$26="Komb",$L$12:$L$26>0),_xlfn._xlws.FILTER($G$12:$G$26,$F$12:$F$26="Komb",$L$12:$L$26>0),_xlfn._xlws.FILTER($L$12:$L$26,$F$12:$F$26="Komb",$L$12:$L$26>0)),5,-1) -> 87 | D32: Chrisander Sakarias B Kirknes | E32: Namsos IL Hopp | F32: G11 | G32: 60 | H32: =TIME(0,0,0) -> 00:00:00 | L32: =IF(C32="","",RANK(I32,$I$32:$I$47,1)+COUNTIF($I$32:I32,I32)-1) -> 
B33: =IFERROR(IF(B32+1>COUNTIF($F$12:$F$26,"Komb"),"",B32+1),"") -> 2 | C33: 85 | D33: Niklas Hanem Bartnes | E33: Ogndal IL | F33: G8 | G33: 44.4 | H33: =IF(B33="","",H32+TIME(0,0,6)) -> 00:00:06 | L33: =IF(C33="","",RANK(I33,$I$32:$I$47,1)+COUNTIF($I$32:I33,I33)-1) -> 
B34: =IFERROR(IF(B33+1>COUNTIF($F$12:$F$26,"Komb"),"",B33+1),"") ->  | H34: =IF(B34="","",H33+TIME(0,0,6)) ->  | L34: =IF(C34="","",RANK(I34,$I$32:$I$47,1)+COUNTIF($I$32:I34,I34)-1) -> 
B35: =IFERROR(IF(B34+1>COUNTIF($F$12:$F$26,"Komb"),"",B34+1),"") ->  | L35: =IF(C35="","",RANK(I35,$I$32:$I$47,1)+COUNTIF($I$32:I35,I35)-1) -> 
B36: =IFERROR(IF(B35+1>COUNTIF($F$12:$F$26,"Komb"),"",B35+1),"") ->  | L36: =IF(C36="","",RANK(I36,$I$32:$I$47,1)+COUNTIF($I$32:I36,I36)-1) -> 
B37: =IFERROR(IF(B36+1>COUNTIF($F$12:$F$26,"Komb"),"",B36+1),"") ->  | L37: =IF(C37="","",RANK(I37,$I$32:$I$47,1)+COUNTIF($I$32:I37,I37)-1) -> 
B38: =IFERROR(IF(B37+1>COUNTIF($F$12:$F$26,"Komb"),"",B37+1),"") ->  | L38: =IF(C38="","",RANK(I38,$I$32:$I$47,1)+COUNTIF($I$32:I38,I38)-1) -> 
B39: =IFERROR(IF(B38+1>COUNTIF($F$12:$F$26,"Komb"),"",B38+1),"") ->  | L39: =IF(C39="","",RANK(I39,$I$32:$I$47,1)+COUNTIF($I$32:I39,I39)-1) -> 
B40: =IFERROR(IF(B39+1>COUNTIF($F$12:$F$26,"Komb"),"",B39+1),"") ->  | L40: =IF(C40="","",RANK(I40,$I$32:$I$47,1)+COUNTIF($I$32:I40,I40)-1) -> 
B41: =IFERROR(IF(B40+1>COUNTIF($F$12:$F$26,"Komb"),"",B40+1),"") ->  | L41: =IF(C41="","",RANK(I41,$I$32:$I$47,1)+COUNTIF($I$32:I41,I41)-1) -> 
B42: =IFERROR(IF(B41+1>COUNTIF($F$12:$F$26,"Komb"),"",B41+1),"") ->  | L42: =IF(C42="","",RANK(I42,$I$32:$I$47,1)+COUNTIF($I$32:I42,I42)-1) -> 
B43: =IFERROR(IF(B42+1>COUNTIF($F$12:$F$26,"Komb"),"",B42+1),"") ->  | L43: =IF(C43="","",RANK(I43,$I$32:$I$47,1)+COUNTIF($I$32:I43,I43)-1) -> 
B44: =IFERROR(IF(B43+1>COUNTIF($F$12:$F$26,"Komb"),"",B43+1),"") ->  | L44: =IF(C44="","",RANK(I44,$I$32:$I$47,1)+COUNTIF($I$32:I44,I44)-1) -> 
B45: =IFERROR(IF(B44+1>COUNTIF($F$12:$F$26,"Komb"),"",B44+1),"") ->  | L45: =IF(C45="","",RANK(I45,$I$32:$I$47,1)+COUNTIF($I$32:I45,I45)-1) -> 
B46: =IFERROR(IF(B45+1>COUNTIF($F$12:$F$26,"Komb"),"",B45+1),"") ->  | L46: =IF(C46="","",RANK(I46,$I$32:$I$47,1)+COUNTIF($I$32:I46,I46)-1) -> 
B47: =IFERROR(IF(B46+1>COUNTIF($F$12:$F$26,"Komb"),"",B46+1),"") ->  | L47: =IF(C47="","",RANK(I47,$I$32:$I$47,1)+COUNTIF($I$32:I47,I47)-1) -> 
E50: Resultatliste kombinert - individuell kompakt
B52: Plass | C52: Start nr. | D52: Navn | E52: Klubb | F52: F.år | G52: Lengde | H52: A | I52: B | J52: C | K52: Poeng Hopp | L52: Starttid langrenn | M52: Tid langr | O52: Tid i mål
B53: =IF(COUNT($I$32:$I$47)>0,1,"") ->  | C53: =IF(B53="","",_xlfn.XLOOKUP($B53,$L$32:$L$47,$C$32:$C$47,"",0,1)) ->  | D53: =IF(C53="","",_xlfn.XLOOKUP($C53,$C$32:$C$47,D$32:D$47,"",0,1)) ->  | E53: =IF(D53="","",_xlfn.XLOOKUP($C53,$C$32:$C$47,E$32:E$47,"",0,1)) ->  | G53: =IF($C53="","",_xlfn.XLOOKUP($C53,$C$12:$C$26,H$12:H$26,"",0,1)) ->  | H53: =IF($C53="","",_xlfn.XLOOKUP($C53,$C$12:$C$26,I$12:I$26,"",0,1)) ->  | I53: =IF($C53="","",_xlfn.XLOOKUP($C53,$C$12:$C$26,J$12:J$26,"",0,1)) ->  | J53: =IF($C53="","",_xlfn.XLOOKUP($C53,$C$12:$C$26,K$12:K$26,"",0,1)) ->  | K53: =IF($C53="","",_xlfn.XLOOKUP($C53,$C$12:$C$26,L$12:L$26,"",0,1)) ->  | L53: =_xlfn.XLOOKUP(C53,$C$31:$C$47,$H$31:$H$47,"",0,1) ->  | M53: =IF(C53="","",_xlfn.XLOOKUP(C53,$C$31:$C$47,$I$31:$I$47,"",0,1)-L53) ->  | O53: =VLOOKUP(C53,C32:I47,7,FALSE) -> 
B54: =IFERROR(IF(B53+1>COUNT($I$32:$I$47),"",B53+1),"") ->  | C54: =IF(B54="","",_xlfn.XLOOKUP($B54,$L$32:$L$47,$C$32:$C$47,"",0,1)) ->  | G54: =IF($C54="","",_xlfn.XLOOKUP($C54,$C$12:$C$26,H$12:H$26,"",0,1)) ->  | H54: =IF($C54="","",_xlfn.XLOOKUP($C54,$C$12:$C$26,I$12:I$26,"",0,1)) ->  | I54: =IF($C54="","",_xlfn.XLOOKUP($C54,$C$12:$C$26,J$12:J$26,"",0,1)) ->  | J54: =IF($C54="","",_xlfn.XLOOKUP($C54,$C$12:$C$26,K$12:K$26,"",0,1)) ->  | K54: =IF($C54="","",_xlfn.XLOOKUP($C54,$C$12:$C$26,L$12:L$26,"",0,1)) ->  | L54: =_xlfn.XLOOKUP(C54,$C$31:$C$47,$H$31:$H$47,"",0,1) ->  | M54: =IF(C54="","",_xlfn.XLOOKUP(C54,$C$31:$C$47,$I$31:$I$47,"",0,1)-L54) ->  | N54: =IF(C54="","","+") ->  | O54: =IF(C54="","",VLOOKUP($C54,$C$32:$I$47,7,0)-VLOOKUP($C$53,$C$32:$I$47,7,0)) -> 
B55: =IFERROR(IF(B54+1>COUNT($I$32:$I$47),"",B54+1),"") ->  | G55: =IF($C55="","",_xlfn.XLOOKUP($C55,$C$12:$C$26,H$12:H$26,"",0,1)) ->  | H55: =IF($C55="","",_xlfn.XLOOKUP($C55,$C$12:$C$26,I$12:I$26,"",0,1)) ->  | I55: =IF($C55="","",_xlfn.XLOOKUP($C55,$C$12:$C$26,J$12:J$26,"",0,1)) ->  | J55: =IF($C55="","",_xlfn.XLOOKUP($C55,$C$12:$C$26,K$12:K$26,"",0,1)) ->  | K55: =IF($C55="","",_xlfn.XLOOKUP($C55,$C$12:$C$26,L$12:L$26,"",0,1)) ->  | O55: =IF(C55="","",VLOOKUP($C55,$C$32:$I$47,7,0)-VLOOKUP($C$53,$C$32:$I$47,7,0)) -> 
G56: =IF($C56="","",_xlfn.XLOOKUP($C56,$C$12:$C$26,H$12:H$26,"",0,1)) ->  | H56: =IF($C56="","",_xlfn.XLOOKUP($C56,$C$12:$C$26,I$12:I$26,"",0,1)) ->  | I56: =IF($C56="","",_xlfn.XLOOKUP($C56,$C$12:$C$26,J$12:J$26,"",0,1)) ->  | J56: =IF($C56="","",_xlfn.XLOOKUP($C56,$C$12:$C$26,K$12:K$26,"",0,1)) ->  | K56: =IF($C56="","",_xlfn.XLOOKUP($C56,$C$12:$C$26,L$12:L$26,"",0,1)) -> 
G57: =IF($C57="","",_xlfn.XLOOKUP($C57,$C$12:$C$26,H$12:H$26,"",0,1)) ->  | H57: =IF($C57="","",_xlfn.XLOOKUP($C57,$C$12:$C$26,I$12:I$26,"",0,1)) ->  | I57: =IF($C57="","",_xlfn.XLOOKUP($C57,$C$12:$C$26,J$12:J$26,"",0,1)) ->  | J57: =IF($C57="","",_xlfn.XLOOKUP($C57,$C$12:$C$26,K$12:K$26,"",0,1)) ->  | K57: =IF($C57="","",_xlfn.XLOOKUP($C57,$C$12:$C$26,L$12:L$26,"",0,1)) -> 
G58: =IF($C58="","",_xlfn.XLOOKUP($C58,$C$12:$C$26,H$12:H$26,"",0,1)) ->  | H58: =IF($C58="","",_xlfn.XLOOKUP($C58,$C$12:$C$26,I$12:I$26,"",0,1)) ->  | I58: =IF($C58="","",_xlfn.XLOOKUP($C58,$C$12:$C$26,J$12:J$26,"",0,1)) ->  | J58: =IF($C58="","",_xlfn.XLOOKUP($C58,$C$12:$C$26,K$12:K$26,"",0,1)) ->  | K58: =IF($C58="","",_xlfn.XLOOKUP($C58,$C$12:$C$26,L$12:L$26,"",0,1)) -> 
G59: =IF($C59="","",_xlfn.XLOOKUP($C59,$C$12:$C$26,H$12:H$26,"",0,1)) ->  | H59: =IF($C59="","",_xlfn.XLOOKUP($C59,$C$12:$C$26,I$12:I$26,"",0,1)) ->  | I59: =IF($C59="","",_xlfn.XLOOKUP($C59,$C$12:$C$26,J$12:J$26,"",0,1)) ->  | J59: =IF($C59="","",_xlfn.XLOOKUP($C59,$C$12:$C$26,K$12:K$26,"",0,1)) ->  | K59: =IF($C59="","",_xlfn.XLOOKUP($C59,$C$12:$C$26,L$12:L$26,"",0,1)) -> 
G60: =IF($C60="","",_xlfn.XLOOKUP($C60,$C$12:$C$26,H$12:H$26,"",0,1)) ->  | H60: =IF($C60="","",_xlfn.XLOOKUP($C60,$C$12:$C$26,I$12:I$26,"",0,1)) ->  | I60: =IF($C60="","",_xlfn.XLOOKUP($C60,$C$12:$C$26,J$12:J$26,"",0,1)) ->  | J60: =IF($C60="","",_xlfn.XLOOKUP($C60,$C$12:$C$26,K$12:K$26,"",0,1)) ->  | K60: =IF($C60="","",_xlfn.XLOOKUP($C60,$C$12:$C$26,L$12:L$26,"",0,1)) -> 
G61: =IF($C61="","",_xlfn.XLOOKUP($C61,$C$12:$C$26,H$12:H$26,"",0,1)) ->  | H61: =IF($C61="","",_xlfn.XLOOKUP($C61,$C$12:$C$26,I$12:I$26,"",0,1)) ->  | I61: =IF($C61="","",_xlfn.XLOOKUP($C61,$C$12:$C$26,J$12:J$26,"",0,1)) ->  | J61: =IF($C61="","",_xlfn.XLOOKUP($C61,$C$12:$C$26,K$12:K$26,"",0,1)) ->  | K61: =IF($C61="","",_xlfn.XLOOKUP($C61,$C$12:$C$26,L$12:L$26,"",0,1)) -> 
G62: =IF($C62="","",_xlfn.XLOOKUP($C62,$C$12:$C$26,H$12:H$26,"",0,1)) ->  | H62: =IF($C62="","",_xlfn.XLOOKUP($C62,$C$12:$C$26,I$12:I$26,"",0,1)) ->  | I62: =IF($C62="","",_xlfn.XLOOKUP($C62,$C$12:$C$26,J$12:J$26,"",0,1)) ->  | J62: =IF($C62="","",_xlfn.XLOOKUP($C62,$C$12:$C$26,K$12:K$26,"",0,1)) ->  | K62: =IF($C62="","",_xlfn.XLOOKUP($C62,$C$12:$C$26,L$12:L$26,"",0,1)) -> 
G63: =IF($C63="","",_xlfn.XLOOKUP($C63,$C$12:$C$26,H$12:H$26,"",0,1)) ->  | H63: =IF($C63="","",_xlfn.XLOOKUP($C63,$C$12:$C$26,I$12:I$26,"",0,1)) ->  | I63: =IF($C63="","",_xlfn.XLOOKUP($C63,$C$12:$C$26,J$12:J$26,"",0,1)) ->  | J63: =IF($C63="","",_xlfn.XLOOKUP($C63,$C$12:$C$26,K$12:K$26,"",0,1)) ->  | K63: =IF($C63="","",_xlfn.XLOOKUP($C63,$C$12:$C$26,L$12:L$26,"",0,1)) -> 
G64: =IF($C64="","",_xlfn.XLOOKUP($C64,$C$12:$C$26,H$12:H$26,"",0,1)) ->  | H64: =IF($C64="","",_xlfn.XLOOKUP($C64,$C$12:$C$26,I$12:I$26,"",0,1)) ->  | I64: =IF($C64="","",_xlfn.XLOOKUP($C64,$C$12:$C$26,J$12:J$26,"",0,1)) ->  | J64: =IF($C64="","",_xlfn.XLOOKUP($C64,$C$12:$C$26,K$12:K$26,"",0,1)) ->  | K64: =IF($C64="","",_xlfn.XLOOKUP($C64,$C$12:$C$26,L$12:L$26,"",0,1)) -> 
G65: =IF($C65="","",_xlfn.XLOOKUP($C65,$C$12:$C$26,H$12:H$26,"",0,1)) ->  | H65: =IF($C65="","",_xlfn.XLOOKUP($C65,$C$12:$C$26,I$12:I$26,"",0,1)) ->  | I65: =IF($C65="","",_xlfn.XLOOKUP($C65,$C$12:$C$26,J$12:J$26,"",0,1)) ->  | J65: =IF($C65="","",_xlfn.XLOOKUP($C65,$C$12:$C$26,K$12:K$26,"",0,1)) ->  | K65: =IF($C65="","",_xlfn.XLOOKUP($C65,$C$12:$C$26,L$12:L$26,"",0,1)) -> 
G66: =IF($C66="","",_xlfn.XLOOKUP($C66,$C$12:$C$26,H$12:H$26,"",0,1)) ->  | H66: =IF($C66="","",_xlfn.XLOOKUP($C66,$C$12:$C$26,I$12:I$26,"",0,1)) ->  | I66: =IF($C66="","",_xlfn.XLOOKUP($C66,$C$12:$C$26,J$12:J$26,"",0,1)) ->  | J66: =IF($C66="","",_xlfn.XLOOKUP($C66,$C$12:$C$26,K$12:K$26,"",0,1)) ->  | K66: =IF($C66="","",_xlfn.XLOOKUP($C66,$C$12:$C$26,L$12:L$26,"",0,1)) -> 
G67: =IF($C67="","",_xlfn.XLOOKUP($C67,$C$12:$C$26,H$12:H$26,"",0,1)) ->  | H67: =IF($C67="","",_xlfn.XLOOKUP($C67,$C$12:$C$26,I$12:I$26,"",0,1)) ->  | I67: =IF($C67="","",_xlfn.XLOOKUP($C67,$C$12:$C$26,J$12:J$26,"",0,1)) ->  | J67: =IF($C67="","",_xlfn.XLOOKUP($C67,$C$12:$C$26,K$12:K$26,"",0,1)) ->  | K67: =IF($C67="","",_xlfn.XLOOKUP($C67,$C$12:$C$26,L$12:L$26,"",0,1)) -> 
G68: =IF($C68="","",_xlfn.XLOOKUP($C68,$C$12:$C$26,H$12:H$26,"",0,1)) ->  | H68: =IF($C68="","",_xlfn.XLOOKUP($C68,$C$12:$C$26,I$12:I$26,"",0,1)) ->  | I68: =IF($C68="","",_xlfn.XLOOKUP($C68,$C$12:$C$26,J$12:J$26,"",0,1)) ->  | J68: =IF($C68="","",_xlfn.XLOOKUP($C68,$C$12:$C$26,K$12:K$26,"",0,1)) ->  | K68: =IF($C68="","",_xlfn.XLOOKUP($C68,$C$12:$C$26,L$12:L$26,"",0,1)) -> 

Sheet K25 G
E2: =+'K2'!E2 -> Namsosrennet i hopp og kombinert 01.02.2026
E5: ="K"&F6 -> K25 | G5: Gutter
E6: K-punkt: | F6: 25 | G6: meter
E7: Meterverdi: | F7: =VLOOKUP(F6,Meterverdier!A:B,2,FALSE) -> 4.4 | G7: poeng/meter
H9: 1. omgang | M9: 2. omgang
C10: Start- | F10: Hopp/ | R10: Poeng
B11: Plassering | C11: nr. | D11: Navn | E11: Klubb | F11: Komb | G11: F.år | H11: Lengde | I11: A | J11: B | K11: C | L11: Poeng | M11: Lengde | N11: A | O11: B | P11: C | Q11: Poeng | R11: totalt
L12: =IF(H12="",0,60+$F$7*(H12-$F$6)+SUM(I12:K12)) -> 0 | Q12: =IF(M12="","",60+$F$7*(M12-$F$6)+SUM(N12:P12)) ->  | R12: =IF(AND(ISNUMBER(L12),ISNUMBER(Q12)),L12+Q12,0) -> 0
L13: 0 | R13: 0
B14: =IF(R14="","",RANK(R14,$R$14:$R$27,0)+COUNTIFS($R14:R$14,R14)-1) -> 5 | C14: 73 | D14: Anker Wesche Fossheim | E14: Byåsen IL | F14: Komb | G14: G9 | H14: 15 | I14: 11.5 | J14: 11 | K14: 12 | L14: =IF(H14="",0,60+$F$7*(H14-$F$6)+SUM(I14:K14)) -> 50.5 | M14: 14.5 | N14: 11 | O14: 11.5 | P14: 11.5 | Q14: =IF(M14="","",60+$F$7*(M14-$F$6)+SUM(N14:P14)) -> 47.8 | R14: =IF(AND(ISNUMBER(L14),ISNUMBER(Q14)),L14+Q14,0) -> 98.3
B15: =IF(R15="","",RANK(R15,$R$14:$R$27,0)+COUNTIFS($R$14:R15,R15)-1) -> 6 | C15: 74 | D15: Erik Hermstad Mccrae | E15: Byaasen Skiklub | F15: Komb | G15: G9 | H15: 13.5 | I15: 11.5 | J15: 11 | K15: 11.5 | L15: =IF(H15="",0,60+$F$7*(H15-$F$6)+SUM(I15:K15)) -> 43.4 | M15: 13.5 | N15: 11.5 | O15: 11.5 | P15: 11 | Q15: =IF(M15="","",60+$F$7*(M15-$F$6)+SUM(N15:P15)) -> 43.4 | R15: =IF(AND(ISNUMBER(L15),ISNUMBER(Q15)),L15+Q15,0) -> 86.8
B16: =IF(R16="","",RANK(R16,$R$14:$R$27,0)+COUNTIFS($R$14:R16,R16)-1) -> 3 | C16: 75 | D16: Casper Boldermo Rian | E16: Byåsen IL | F16: Komb | G16: G9 | H16: 15.5 | I16: 12.5 | J16: 12.5 | K16: 13 | L16: =IF(H16="",0,60+$F$7*(H16-$F$6)+SUM(I16:K16)) -> 56.2 | M16: 19 | N16: 12 | O16: 13 | P16: 12.5 | Q16: =IF(M16="","",60+$F$7*(M16-$F$6)+SUM(N16:P16)) -> 71.1 | R16: =IF(AND(ISNUMBER(L16),ISNUMBER(Q16)),L16+Q16,0) -> 127.3
B17: =IF(R17="","",RANK(R17,$R$14:$R$27,0)+COUNTIFS($R$14:R17,R17)-1) -> 1 | C17: 77 | D17: Håkon Vien | E17: Byåsen IL | F17: Komb | G17: G10 | H17: 18 | I17: 12 | J17: 11.5 | K17: 12 | L17: =IF(H17="",0,60+$F$7*(H17-$F$6)+SUM(I17:K17)) -> 64.7 | M17: 22 | N17: 11.5 | O17: 12 | P17: 12 | Q17: =IF(M17="","",60+$F$7*(M17-$F$6)+SUM(N17:P17)) -> 82.3 | R17: =IF(AND(ISNUMBER(L17),ISNUMBER(Q17)),L17+Q17,0) -> 147
B18: =IF(R18="","",RANK(R18,$R$14:$R$27,0)+COUNTIFS($R$14:R18,R18)-1) -> 2 | C18: 78 | D18: Odin Krog | E18: Byåsen IL | F18: Komb | G18: G10 | H18: 20 | I18: 12.5 | J18: 13 | K18: 12.5 | L18: =IF(H18="",0,60+$F$7*(H18-$F$6)+SUM(I18:K18)) -> 76 | M18: 18.5 | N18: 11.5 | O18: 12.5 | P18: 11.5 | Q18: =IF(M18="","",60+$F$7*(M18-$F$6)+SUM(N18:P18)) -> 66.9 | R18: =IF(AND(ISNUMBER(L18),ISNUMBER(Q18)),L18+Q18,0) -> 142.9
B19: =IF(R19="","",RANK(R19,$R$14:$R$27,0)+COUNTIFS($R$14:R19,R19)-1) -> 4 | C19: 79 | D19: Edvard Eidem | E19: Byåsen IL | F19: Komb | G19: G11 | H19: 16 | I19: 11.5 | J19: 12 | K19: 11 | L19: =IF(H19="",0,60+$F$7*(H19-$F$6)+SUM(I19:K19)) -> 54.9 | M19: 18.5 | N19: 11.5 | O19: 12.5 | P19: 12 | Q19: =IF(M19="","",60+$F$7*(M19-$F$6)+SUM(N19:P19)) -> 67.4 | R19: =IF(AND(ISNUMBER(L19),ISNUMBER(Q19)),L19+Q19,0) -> 122.3
C20: 82
B21: =IF(R21="","",RANK(R21,$R$14:$R$27,0)+COUNTIFS($R$14:R21,R21)-1) -> 7 | C21: 83 | L21: =IF(H21="",0,60+$F$7*(H21-$F$6)+SUM(I21:K21)) -> 0 | Q21: =IF(M21="","",60+$F$7*(M21-$F$6)+SUM(N21:P21)) ->  | R21: =IF(AND(ISNUMBER(L21),ISNUMBER(Q21)),L21+Q21,0) -> 0
B22: =IF(R22="","",RANK(R22,$R$14:$R$27,0)+COUNTIFS($R$14:R22,R22)-1) -> 8 | C22: 84 | L22: =IF(H22="",0,60+$F$7*(H22-$F$6)+SUM(I22:K22)) -> 0 | Q22: =IF(M22="","",60+$F$7*(M22-$F$6)+SUM(N22:P22)) ->  | R22: 0
B23: =IF(R23="","",RANK(R23,$R$14:$R$27,0)+COUNTIFS($R$14:R23,R23)-1) -> 9 | L23: =IF(H23="",0,60+$F$7*(H23-$F$6)+SUM(I23:K23)) -> 0 | Q23: =IF(M23="","",60+$F$7*(M23-$F$6)+SUM(N23:P23)) ->  | R23: 0
B24: =IF(R24="","",RANK(R24,$R$14:$R$27,0)+COUNTIFS($R$14:R24,R24)-1) -> 10 | L24: =IF(H24="",0,60+$F$7*(H24-$F$6)+SUM(I24:K24)) -> 0 | Q24: =IF(M24="","",60+$F$7*(M24-$F$6)+SUM(N24:P24)) ->  | R24: 0
B25: =IF(R25="","",RANK(R25,$R$14:$R$27,0)+COUNTIFS($R$14:R25,R25)-1) -> 11 | L25: =IF(H25="",0,60+$F$7*(H25-$F$6)+SUM(I25:K25)) -> 0 | Q25: =IF(M25="","",60+$F$7*(M25-$F$6)+SUM(N25:P25)) ->  | R25: 0
B26: =IF(R26="","",RANK(R26,$R$14:$R$27,0)+COUNTIFS($R$14:R26,R26)-1) -> 12 | L26: =IF(H26="",0,60+$F$7*(H26-$F$6)+SUM(I26:K26)) -> 0 | Q26: =IF(M26="","",60+$F$7*(M26-$F$6)+SUM(N26:P26)) ->  | R26: 0
B27: =IF(R27="","",RANK(R27,$R$14:$R$27,0)+COUNTIFS($R$14:R27,R27)-1) -> 13 | L27: =IF(H27="",0,60+$F$7*(H27-$F$6)+SUM(I27:K27)) -> 0 | Q27: =IF(M27="","",60+$F$7*(M27-$F$6)+SUM(N27:P27)) ->  | R27: 0
K28: =IF(G28="","",60+$F$7*(G28-$F$6)+SUM(H28:J28)) ->  | P28: =IF(L28="","",60+$F$7*(L28-$F$6)+SUM(M28:O28)) ->  | Q28: =IF(AND(ISNUMBER(K28),ISNUMBER(P28)),K28+P28,"") -> 
E30: Startliste kombinert - individuell kompakt
H31: 00:00:06
B32: Plass. Hopp 1. omg | C32: Start nr. | D32: Navn | E32: Klubb | F32: F.år | G32: Poeng hopp | H32: Start tid | I32: Tid i mål MM:SS,T | L32: Plassering
B33: =IF(COUNTIF($F$14:$F$27,"Komb")>0,1,"") -> 1 | C33: =_xlfn._xlws.SORT(_xlfn.HSTACK(_xlfn._xlws.FILTER($C$14:$E$27,$F$14:$F$27="Komb",$L$14:$L$27>0),_xlfn._xlws.FILTER($G$14:$G$27,$F$14:$F$27="Komb",$L$14:$L$27>0),_xlfn._xlws.FILTER($L$14:$L$27,$F$14:$F$27="Komb",$L$14:$L$27>0)),5,-1) -> 78 | D33: Odin Krog | E33: Byåsen IL | F33: G10 | G33: 76 | H33: =TIME(0,0,0) -> 00:00:00 | I33: 00:04:34 | L33: =IF(C33="","",RANK(I33,$I$33:$I$48,1)+COUNTIF($I$33:I33,I33)-1) -> 1
B34: =IFERROR(IF(B33+1>COUNTIF($F$14:$F$27,"Komb"),"",B33+1),"") -> 2 | C34: 77 | D34: Håkon Vien | E34: Byåsen IL | F34: G10 | G34: 64.7 | H34: =IF(B34="","",H33+TIME(0,0,6)) -> 00:00:06 | I34: 00:05:17 | L34: =IF(C34="","",RANK(I34,$I$33:$I$48,1)+COUNTIF($I$33:I34,I34)-1) -> 3
B35: =IFERROR(IF(B34+1>COUNTIF($F$14:$F$27,"Komb"),"",B34+1),"") -> 3 | C35: 75 | D35: Casper Boldermo Rian | E35: Byåsen IL | F35: G9 | G35: 56.2 | H35: =IF(B35="","",H34+TIME(0,0,6)) -> 00:00:12 | I35: 00:05:11 | L35: =IF(C35="","",RANK(I35,$I$33:$I$48,1)+COUNTIF($I$33:I35,I35)-1) -> 2
B36: =IFERROR(IF(B35+1>COUNTIF($F$14:$F$27,"Komb"),"",B35+1),"") -> 4 | C36: 79 | D36: Edvard Eidem | E36: Byåsen IL | F36: G11 | G36: 54.9 | H36: 00:00:18 | I36: 00:05:44 | L36: =IF(C36="","",RANK(I36,$I$33:$I$48,1)+COUNTIF($I$33:I36,I36)-1) -> 4
B37: =IFERROR(IF(B36+1>COUNTIF($F$14:$F$27,"Komb"),"",B36+1),"") -> 5 | C37: 73 | D37: Anker Wesche Fossheim | E37: Byåsen IL | F37: G9 | G37: 50.5 | H37: 00:00:24 | I37: 05;45,0 | L37: =IF(C37="","",RANK(I37,$I$33:$I$48,1)+COUNTIF($I$33:I37,I37)-1) -> 
B38: =IFERROR(IF(B37+1>COUNTIF($F$14:$F$27,"Komb"),"",B37+1),"") -> 6 | C38: 74 | D38: Erik Hermstad Mccrae | E38: Byaasen Skiklub | F38: G9 | G38: 43.4 | H38: 00:00:30 | I38: 00:09:52 | L38: =IF(C38="","",RANK(I38,$I$33:$I$48,1)+COUNTIF($I$33:I38,I38)-1) -> 5
B39: =IFERROR(IF(B38+1>COUNTIF($F$14:$F$27,"Komb"),"",B38+1),"") ->  | L39: =IF(C39="","",RANK(I39,$I$33:$I$48,1)+COUNTIF($I$33:I39,I39)-1) -> 
B40: =IFERROR(IF(B39+1>COUNTIF($F$14:$F$27,"Komb"),"",B39+1),"") ->  | L40: =IF(C40="","",RANK(I40,$I$33:$I$48,1)+COUNTIF($I$33:I40,I40)-1) -> 
B41: =IFERROR(IF(B40+1>COUNTIF($F$14:$F$27,"Komb"),"",B40+1),"") ->  | L41: =IF(C41="","",RANK(I41,$I$33:$I$48,1)+COUNTIF($I$33:I41,I41)-1) -> 
B42: =IFERROR(IF(B41+1>COUNTIF($F$14:$F$27,"Komb"),"",B41+1),"") ->  | L42: =IF(C42="","",RANK(I42,$I$33:$I$48,1)+COUNTIF($I$33:I42,I42)-1) -> 
B43: =IFERROR(IF(B42+1>COUNTIF($F$14:$F$27,"Komb"),"",B42+1),"") ->  | L43: =IF(C43="","",RANK(I43,$I$33:$I$48,1)+COUNTIF($I$33:I43,I43)-1) -> 
B44: =IFERROR(IF(B43+1>COUNTIF($F$14:$F$27,"Komb"),"",B43+1),"") ->  | L44: =IF(C44="","",RANK(I44,$I$33:$I$48,1)+COUNTIF($I$33:I44,I44)-1) -> 
B45: =IFERROR(IF(B44+1>COUNTIF($F$14:$F$27,"Komb"),"",B44+1),"") ->  | L45: =IF(C45="","",RANK(I45,$I$33:$I$48,1)+COUNTIF($I$33:I45,I45)-1) -> 
B46: =IFERROR(IF(B45+1>COUNTIF($F$14:$F$27,"Komb"),"",B45+1),"") ->  | L46: =IF(C46="","",RANK(I46,$I$33:$I$48,1)+COUNTIF($I$33:I46,I46)-1) -> 
B47: =IFERROR(IF(B46+1>COUNTIF($F$14:$F$27,"Komb"),"",B46+1),"") ->  | L47: =IF(C47="","",RANK(I47,$I$33:$I$48,1)+COUNTIF($I$33:I47,I47)-1) -> 
B48: =IFERROR(IF(B47+1>COUNTIF($F$14:$F$27,"Komb"),"",B47+1),"") ->  | L48: =IF(C48="","",RANK(I48,$I$33:$I$48,1)+COUNTIF($I$33:I48,I48)-1) -> 
E51: Resultatliste kombinert - individuell kompakt
B53: Plass | C53: Start nr. | D53: Navn | E53: Klubb | F53: F.år | G53: Lengde | H53: A | I53: B | J53: C | K53: Poeng Hopp | L53: Starttid langrenn | M53: Tid langr | O53: Tid i mål
B54: =IF(COUNT($I$33:$I$48)>0,1,"") -> 1 | C54: =IF(B54="","",_xlfn.XLOOKUP($B54,$L$33:$L$48,$C$33:$C$48,"",0,1)) -> 78 | D54: =IF(C54="","",_xlfn.XLOOKUP($C54,$C$33:$C$48,D$33:D$48,"",0,1)) -> Odin Krog | E54: =IF(D54="","",_xlfn.XLOOKUP($C54,$C$33:$C$48,E$33:E$48,"",0,1)) -> Byåsen IL | F54: G10 | G54: =IF($C54="","",_xlfn.XLOOKUP($C54,$C$14:$C$27,H$14:H$27,"",0,1)) -> 20 | H54: =IF($C54="","",_xlfn.XLOOKUP($C54,$C$14:$C$27,I$14:I$27,"",0,1)) -> 12.5 | I54: =IF($C54="","",_xlfn.XLOOKUP($C54,$C$14:$C$27,J$14:J$27,"",0,1)) -> 13 | J54: =IF($C54="","",_xlfn.XLOOKUP($C54,$C$14:$C$27,K$14:K$27,"",0,1)) -> 12.5 | K54: =IF($C54="","",_xlfn.XLOOKUP($C54,$C$14:$C$27,L$14:L$27,"",0,1)) -> 76 | L54: =_xlfn.XLOOKUP(C54,$C$32:$C$48,$H$32:$H$48,"",0,1) -> 00:00:00 | M54: =IF(C54="","",_xlfn.XLOOKUP(C54,$C$32:$C$48,$I$32:$I$48,"",0,1)-L54) -> 00:04:34 | O54: =VLOOKUP(C54,C33:I48,7,FALSE) -> 00:04:34
B55: =IFERROR(IF(B54+1>COUNT($I$33:$I$48),"",B54+1),"") -> 2 | C55: =IF(B55="","",_xlfn.XLOOKUP($B55,$L$33:$L$48,$C$33:$C$48,"",0,1)) -> 75 | D55: Casper Boldermo Rian | E55: Byåsen IL | F55: G9 | G55: =IF($C55="","",_xlfn.XLOOKUP($C55,$C$14:$C$27,H$14:H$27,"",0,1)) -> 15.5 | H55: =IF($C55="","",_xlfn.XLOOKUP($C55,$C$14:$C$27,I$14:I$27,"",0,1)) -> 12.5 | I55: =IF($C55="","",_xlfn.XLOOKUP($C55,$C$14:$C$27,J$14:J$27,"",0,1)) -> 12.5 | J55: =IF($C55="","",_xlfn.XLOOKUP($C55,$C$14:$C$27,K$14:K$27,"",0,1)) -> 13 | K55: =IF($C55="","",_xlfn.XLOOKUP($C55,$C$14:$C$27,L$14:L$27,"",0,1)) -> 56.2 | L55: =_xlfn.XLOOKUP(C55,$C$32:$C$48,$H$32:$H$48,"",0,1) -> 00:00:12 | M55: =IF(C55="","",_xlfn.XLOOKUP(C55,$C$32:$C$48,$I$32:$I$48,"",0,1)-L55) -> 00:04:59 | N55: =IF(C55="","","+") -> + | O55: =IF(C55="","",VLOOKUP($C55,$C$33:$I$48,7,0)-VLOOKUP($C$54,$C$33:$I$48,7,0)) -> 00:00:37
B56: =IFERROR(IF(B55+1>COUNT($I$33:$I$48),"",B55+1),"") -> 3 | C56: 77 | D56: Håkon Vien | E56: Byåsen IL | F56: G10 | G56: =IF($C56="","",_xlfn.XLOOKUP($C56,$C$14:$C$27,H$14:H$27,"",0,1)) -> 18 | H56: =IF($C56="","",_xlfn.XLOOKUP($C56,$C$14:$C$27,I$14:I$27,"",0,1)) -> 12 | I56: =IF($C56="","",_xlfn.XLOOKUP($C56,$C$14:$C$27,J$14:J$27,"",0,1)) -> 11.5 | J56: =IF($C56="","",_xlfn.XLOOKUP($C56,$C$14:$C$27,K$14:K$27,"",0,1)) -> 12 | K56: =IF($C56="","",_xlfn.XLOOKUP($C56,$C$14:$C$27,L$14:L$27,"",0,1)) -> 64.7 | L56: 00:00:06 | M56: 00:05:11 | N56: + | O56: =IF(C56="","",VLOOKUP($C56,$C$33:$I$48,7,0)-VLOOKUP($C$54,$C$33:$I$48,7,0)) -> 00:00:43
B57: 4 | C57: 79 | D57: Edvard Eidem | E57: Byåsen IL | F57: G11 | G57: =IF($C57="","",_xlfn.XLOOKUP($C57,$C$14:$C$27,H$14:H$27,"",0,1)) -> 16 | H57: =IF($C57="","",_xlfn.XLOOKUP($C57,$C$14:$C$27,I$14:I$27,"",0,1)) -> 11.5 | I57: =IF($C57="","",_xlfn.XLOOKUP($C57,$C$14:$C$27,J$14:J$27,"",0,1)) -> 12 | J57: =IF($C57="","",_xlfn.XLOOKUP($C57,$C$14:$C$27,K$14:K$27,"",0,1)) -> 11 | K57: =IF($C57="","",_xlfn.XLOOKUP($C57,$C$14:$C$27,L$14:L$27,"",0,1)) -> 54.9 | L57: 00:00:18 | M57: 00:05:26 | N57: + | O57: 00:01:10
B58: 5 | C58: 74 | D58: Erik Hermstad Mccrae | E58: Byaasen Skiklub | F58: G9 | G58: =IF($C58="","",_xlfn.XLOOKUP($C58,$C$14:$C$27,H$14:H$27,"",0,1)) -> 13.5 | H58: =IF($C58="","",_xlfn.XLOOKUP($C58,$C$14:$C$27,I$14:I$27,"",0,1)) -> 11.5 | I58: =IF($C58="","",_xlfn.XLOOKUP($C58,$C$14:$C$27,J$14:J$27,"",0,1)) -> 11 | J58: =IF($C58="","",_xlfn.XLOOKUP($C58,$C$14:$C$27,K$14:K$27,"",0,1)) -> 11.5 | K58: =IF($C58="","",_xlfn.XLOOKUP($C58,$C$14:$C$27,L$14:L$27,"",0,1)) -> 43.4 | L58: 00:00:30 | M58: 00:09:22 | N58: + | O58: 00:05:18
G59: =IF($C59="","",_xlfn.XLOOKUP($C59,$C$14:$C$27,H$14:H$27,"",0,1)) ->  | H59: =IF($C59="","",_xlfn.XLOOKUP($C59,$C$14:$C$27,I$14:I$27,"",0,1)) ->  | I59: =IF($C59="","",_xlfn.XLOOKUP($C59,$C$14:$C$27,J$14:J$27,"",0,1)) ->  | J59: =IF($C59="","",_xlfn.XLOOKUP($C59,$C$14:$C$27,K$14:K$27,"",0,1)) ->  | K59: =IF($C59="","",_xlfn.XLOOKUP($C59,$C$14:$C$27,L$14:L$27,"",0,1)) -> 
G60: =IF($C60="","",_xlfn.XLOOKUP($C60,$C$14:$C$27,H$14:H$27,"",0,1)) ->  | H60: =IF($C60="","",_xlfn.XLOOKUP($C60,$C$14:$C$27,I$14:I$27,"",0,1)) ->  | I60: =IF($C60="","",_xlfn.XLOOKUP($C60,$C$14:$C$27,J$14:J$27,"",0,1)) ->  | J60: =IF($C60="","",_xlfn.XLOOKUP($C60,$C$14:$C$27,K$14:K$27,"",0,1)) ->  | K60: =IF($C60="","",_xlfn.XLOOKUP($C60,$C$14:$C$27,L$14:L$27,"",0,1)) -> 
G61: =IF($C61="","",_xlfn.XLOOKUP($C61,$C$14:$C$27,H$14:H$27,"",0,1)) ->  | H61: =IF($C61="","",_xlfn.XLOOKUP($C61,$C$14:$C$27,I$14:I$27,"",0,1)) ->  | I61: =IF($C61="","",_xlfn.XLOOKUP($C61,$C$14:$C$27,J$14:J$27,"",0,1)) ->  | J61: =IF($C61="","",_xlfn.XLOOKUP($C61,$C$14:$C$27,K$14:K$27,"",0,1)) ->  | K61: =IF($C61="","",_xlfn.XLOOKUP($C61,$C$14:$C$27,L$14:L$27,"",0,1)) -> 
G62: =IF($C62="","",_xlfn.XLOOKUP($C62,$C$14:$C$27,H$14:H$27,"",0,1)) ->  | H62: =IF($C62="","",_xlfn.XLOOKUP($C62,$C$14:$C$27,I$14:I$27,"",0,1)) ->  | I62: =IF($C62="","",_xlfn.XLOOKUP($C62,$C$14:$C$27,J$14:J$27,"",0,1)) ->  | J62: =IF($C62="","",_xlfn.XLOOKUP($C62,$C$14:$C$27,K$14:K$27,"",0,1)) ->  | K62: =IF($C62="","",_xlfn.XLOOKUP($C62,$C$14:$C$27,L$14:L$27,"",0,1)) -> 
G63: =IF($C63="","",_xlfn.XLOOKUP($C63,$C$14:$C$27,H$14:H$27,"",0,1)) ->  | H63: =IF($C63="","",_xlfn.XLOOKUP($C63,$C$14:$C$27,I$14:I$27,"",0,1)) ->  | I63: =IF($C63="","",_xlfn.XLOOKUP($C63,$C$14:$C$27,J$14:J$27,"",0,1)) ->  | J63: =IF($C63="","",_xlfn.XLOOKUP($C63,$C$14:$C$27,K$14:K$27,"",0,1)) ->  | K63: =IF($C63="","",_xlfn.XLOOKUP($C63,$C$14:$C$27,L$14:L$27,"",0,1)) -> 
G64: =IF($C64="","",_xlfn.XLOOKUP($C64,$C$14:$C$27,H$14:H$27,"",0,1)) ->  | H64: =IF($C64="","",_xlfn.XLOOKUP($C64,$C$14:$C$27,I$14:I$27,"",0,1)) ->  | I64: =IF($C64="","",_xlfn.XLOOKUP($C64,$C$14:$C$27,J$14:J$27,"",0,1)) ->  | J64: =IF($C64="","",_xlfn.XLOOKUP($C64,$C$14:$C$27,K$14:K$27,"",0,1)) ->  | K64: =IF($C64="","",_xlfn.XLOOKUP($C64,$C$14:$C$27,L$14:L$27,"",0,1)) -> 
G65: =IF($C65="","",_xlfn.XLOOKUP($C65,$C$14:$C$27,H$14:H$27,"",0,1)) ->  | H65: =IF($C65="","",_xlfn.XLOOKUP($C65,$C$14:$C$27,I$14:I$27,"",0,1)) ->  | I65: =IF($C65="","",_xlfn.XLOOKUP($C65,$C$14:$C$27,J$14:J$27,"",0,1)) ->  | J65: =IF($C65="","",_xlfn.XLOOKUP($C65,$C$14:$C$27,K$14:K$27,"",0,1)) ->  | K65: =IF($C65="","",_xlfn.XLOOKUP($C65,$C$14:$C$27,L$14:L$27,"",0,1)) -> 
G66: =IF($C66="","",_xlfn.XLOOKUP($C66,$C$14:$C$27,H$14:H$27,"",0,1)) ->  | H66: =IF($C66="","",_xlfn.XLOOKUP($C66,$C$14:$C$27,I$14:I$27,"",0,1)) ->  | I66: =IF($C66="","",_xlfn.XLOOKUP($C66,$C$14:$C$27,J$14:J$27,"",0,1)) ->  | J66: =IF($C66="","",_xlfn.XLOOKUP($C66,$C$14:$C$27,K$14:K$27,"",0,1)) ->  | K66: =IF($C66="","",_xlfn.XLOOKUP($C66,$C$14:$C$27,L$14:L$27,"",0,1)) -> 
G67: =IF($C67="","",_xlfn.XLOOKUP($C67,$C$14:$C$27,H$14:H$27,"",0,1)) ->  | H67: =IF($C67="","",_xlfn.XLOOKUP($C67,$C$14:$C$27,I$14:I$27,"",0,1)) ->  | I67: =IF($C67="","",_xlfn.XLOOKUP($C67,$C$14:$C$27,J$14:J$27,"",0,1)) ->  | J67: =IF($C67="","",_xlfn.XLOOKUP($C67,$C$14:$C$27,K$14:K$27,"",0,1)) ->  | K67: =IF($C67="","",_xlfn.XLOOKUP($C67,$C$14:$C$27,L$14:L$27,"",0,1)) -> 
G68: =IF($C68="","",_xlfn.XLOOKUP($C68,$C$14:$C$27,H$14:H$27,"",0,1)) ->  | H68: =IF($C68="","",_xlfn.XLOOKUP($C68,$C$14:$C$27,I$14:I$27,"",0,1)) ->  | I68: =IF($C68="","",_xlfn.XLOOKUP($C68,$C$14:$C$27,J$14:J$27,"",0,1)) ->  | J68: =IF($C68="","",_xlfn.XLOOKUP($C68,$C$14:$C$27,K$14:K$27,"",0,1)) ->  | K68: =IF($C68="","",_xlfn.XLOOKUP($C68,$C$14:$C$27,L$14:L$27,"",0,1)) -> 
G69: =IF($C69="","",_xlfn.XLOOKUP($C69,$C$14:$C$27,H$14:H$27,"",0,1)) ->  | H69: =IF($C69="","",_xlfn.XLOOKUP($C69,$C$14:$C$27,I$14:I$27,"",0,1)) ->  | I69: =IF($C69="","",_xlfn.XLOOKUP($C69,$C$14:$C$27,J$14:J$27,"",0,1)) ->  | J69: =IF($C69="","",_xlfn.XLOOKUP($C69,$C$14:$C$27,K$14:K$27,"",0,1)) ->  | K69: =IF($C69="","",_xlfn.XLOOKUP($C69,$C$14:$C$27,L$14:L$27,"",0,1)) -> 

Sheet K25 J
E2: =+'K2'!E2 -> Namsosrennet i hopp og kombinert 01.02.2026
E5: ="K"&F6 -> K25 | G5: Jenter
E6: K-punkt: | F6: 25 | G6: meter
E7: Meterverdi: | F7: =VLOOKUP(F6,Meterverdier!A:B,2,FALSE) -> 4.4 | G7: poeng/meter
H9: 1. omgang | M9: 2. omgang
C10: Start- | F10: Hopp/ | R10: Poeng
B11: Plassering | C11: nr. | D11: Navn | E11: Klubb | F11: Komb | G11: F.år | H11: Lengde | I11: A | J11: B | K11: C | L11: Poeng | M11: Lengde | N11: A | O11: B | P11: C | Q11: Poeng | R11: totalt
B12: =IF(R12="","",RANK(R12,$R$12:$R$27,0)+COUNTIFS($R$12:R12,R12)-1) -> 1 | C12: 71 | D12: Carmina Petrine B Kirknes | E12: Namsos IL Hopp | F12: Komb | G12: J11 | H12: 16.5 | I12: 12 | J12: 12 | K12: 12.5 | L12: =IF(H12="",0,60+$F$7*(H12-$F$6)+SUM(I12:K12)) -> 59.1 | M12: 15.5 | N12: 12.5 | O12: 12.5 | P12: 12.5 | Q12: =IF(M12="","",60+$F$7*(M12-$F$6)+SUM(N12:P12)) -> 55.7 | R12: =IF(AND(ISNUMBER(L12),ISNUMBER(Q12)),L12+Q12,0) -> 114.8
B13: =IF(R13="","",RANK(R13,$R$12:$R$27,0)+COUNTIFS($R$12:R13,R13)-1) -> 2 | C13: 72 | D13: Charlotte Heldor Bach | E13: Byåsen IL | F13: Komb | G13: J11 | H13: 12 | I13: 12 | J13: 10 | K13: 11 | L13: 35.8 | M13: 12.5 | N13: 11.5 | O13: 10.5 | P13: 11 | Q13: 38 | R13: 73.8
B14: =IF(R14="","",RANK(R14,$R$12:$R$27,0)+COUNTIFS($R$12:R14,R14)-1) -> 3 | L14: 0 | R14: 0
B15: =IF(R15="","",RANK(R15,$R$12:$R$27,0)+COUNTIFS($R$12:R15,R15)-1) -> 4 | L15: 0 | R15: 0
B16: =IF(R16="","",RANK(R16,$R$12:$R$27,0)+COUNTIFS($R$12:R16,R16)-1) -> 5 | L16: 0 | R16: 0
B17: =IF(R17="","",RANK(R17,$R$12:$R$27,0)+COUNTIFS($R$12:R17,R17)-1) -> 6 | L17: 0 | R17: 0
B18: =IF(R18="","",RANK(R18,$R$12:$R$27,0)+COUNTIFS($R$12:R18,R18)-1) -> 7 | L18: 0 | R18: 0
B19: =IF(R19="","",RANK(R19,$R$12:$R$27,0)+COUNTIFS($R$12:R19,R19)-1) -> 8 | L19: 0 | R19: 0
B20: =IF(R20="","",RANK(R20,$R$12:$R$27,0)+COUNTIFS($R$12:R20,R20)-1) -> 9 | L20: 0 | R20: 0
B21: =IF(R21="","",RANK(R21,$R$12:$R$27,0)+COUNTIFS($R$12:R21,R21)-1) -> 10 | L21: 0 | R21: 0
B22: =IF(R22="","",RANK(R22,$R$12:$R$27,0)+COUNTIFS($R$12:R22,R22)-1) -> 11 | L22: 0 | R22: 0
B23: =IF(R23="","",RANK(R23,$R$12:$R$27,0)+COUNTIFS($R$12:R23,R23)-1) -> 12 | L23: 0 | R23: 0
B24: =IF(R24="","",RANK(R24,$R$12:$R$27,0)+COUNTIFS($R$12:R24,R24)-1) -> 13 | L24: 0 | R24: 0
B25: =IF(R25="","",RANK(R25,$R$12:$R$27,0)+COUNTIFS($R$12:R25,R25)-1) -> 14 | L25: 0 | R25: 0
B26: =IF(R26="","",RANK(R26,$R$12:$R$27,0)+COUNTIFS($R$12:R26,R26)-1) -> 15 | L26: 0 | R26: 0
B27: =IF(R27="","",RANK(R27,$R$12:$R$27,0)+COUNTIFS($R$12:R27,R27)-1) -> 16 | L27: 0 | R27: 0
K28: =IF(G28="","",60+$F$7*(G28-$F$6)+SUM(H28:J28)) ->  | P28: =IF(L28="","",60+$F$7*(L28-$F$6)+SUM(M28:O28)) ->  | Q28: =IF(AND(ISNUMBER(K28),ISNUMBER(P28)),K28+P28,"") -> 
E30: Startliste kombinert - individuell kompakt
B32: Plass. Hopp 1. omg | C32: Start nr. | D32: Navn | E32: Klubb | F32: F.år | G32: Poeng hopp | H32: Start tid | I32: Tid i mål MM:SS,T | L32: Plassering
B33: =IF(COUNTIF($F$12:$F$27,"Komb")>0,1,"") -> 1 | C33: =_xlfn._xlws.SORT(_xlfn.HSTACK(_xlfn._xlws.FILTER($C$12:$E$27,$F$12:$F$27="Komb",$L$12:$L$27>0),_xlfn._xlws.FILTER($G$12:$G$27,$F$12:$F$27="Komb",$L$12:$L$27>0),_xlfn._xlws.FILTER($L$12:$L$27,$F$12:$F$27="Komb",$L$12:$L$27>0)),5,-1) -> 71 | D33: Carmina Petrine B Kirknes | E33: Namsos IL Hopp | F33: J11 | G33: 59.1 | H33: =TIME(0,0,0) -> 00:00:00 | L33: =IF(C33="","",RANK(I33,$I$33:$I$48,1)+COUNTIF($I$33:I33,I33)-1) -> 
B34: =IFERROR(IF(B33+1>COUNTIF($F$12:$F$27,"Komb"),"",B33+1),"") -> 2 | C34: 72 | D34: Charlotte Heldor Bach | E34: Byåsen IL | F34: J11 | G34: 35.8 | H34: =IF(B34="","",H33+TIME(0,0,6)) -> 00:00:06 | I34: 00:05:40 | L34: =IF(C34="","",RANK(I34,$I$33:$I$48,1)+COUNTIF($I$33:I34,I34)-1) -> 1
B35: =IFERROR(IF(B34+1>COUNTIF($F$12:$F$27,"Komb"),"",B34+1),"") ->  | H35: =IF(B35="","",H34+TIME(0,0,6)) ->  | L35: =IF(C35="","",RANK(I35,$I$33:$I$48,1)+COUNTIF($I$33:I35,I35)-1) -> 
L36: =IF(C36="","",RANK(I36,$I$33:$I$48,1)+COUNTIF($I$33:I36,I36)-1) -> 
L37: =IF(C37="","",RANK(I37,$I$33:$I$48,1)+COUNTIF($I$33:I37,I37)-1) -> 
L38: =IF(C38="","",RANK(I38,$I$33:$I$48,1)+COUNTIF($I$33:I38,I38)-1) -> 
L39: =IF(C39="","",RANK(I39,$I$33:$I$48,1)+COUNTIF($I$33:I39,I39)-1) -> 
L40: =IF(C40="","",RANK(I40,$I$33:$I$48,1)+COUNTIF($I$33:I40,I40)-1) -> 
L41: =IF(C41="","",RANK(I41,$I$33:$I$48,1)+COUNTIF($I$33:I41,I41)-1) -> 
L42: =IF(C42="","",RANK(I42,$I$33:$I$48,1)+COUNTIF($I$33:I42,I42)-1) -> 
L43: =IF(C43="","",RANK(I43,$I$33:$I$48,1)+COUNTIF($I$33:I43,I43)-1) -> 
L44: =IF(C44="","",RANK(I44,$I$33:$I$48,1)+COUNTIF($I$33:I44,I44)-1) -> 
L45: =IF(C45="","",RANK(I45,$I$33:$I$48,1)+COUNTIF($I$33:I45,I45)-1) -> 
L46: =IF(C46="","",RANK(I46,$I$33:$I$48,1)+COUNTIF($I$33:I46,I46)-1) -> 
L47: =IF(C47="","",RANK(I47,$I$33:$I$48,1)+COUNTIF($I$33:I47,I47)-1) -> 
L48: =IF(C48="","",RANK(I48,$I$33:$I$48,1)+COUNTIF($I$33:I48,I48)-1) -> 
E51: Resultatliste kombinert - individuell kompakt
B53: Plass | C53: Start nr. | D53: Navn | E53: Klubb | F53: F.år | G53: Lengde | H53: A | I53: B | J53: C | K53: Poeng Hopp | L53: Starttid langrenn | M53: Tid langr | O53: Tid i mål
B54: =IF(COUNT($I$33:$I$48)>0,1,"") -> 1 | C54: =IF(B54="","",_xlfn.XLOOKUP($B54,$L$33:$L$48,$C$33:$C$48,"",0,1)) -> 72 | D54: =IF(C54="","",_xlfn.XLOOKUP($C54,$C$33:$C$48,D$33:D$48,"",0,1)) -> Charlotte Heldor Bach | E54: Byåsen IL | F54: J11 | G54: =IF($C54="","",_xlfn.XLOOKUP($C54,$C$12:$C$27,H$12:H$27,"",0,1)) -> 12 | H54: =IF($C54="","",_xlfn.XLOOKUP($C54,$C$12:$C$27,I$12:I$27,"",0,1)) -> 12 | I54: 10 | J54: 11 | K54: 35.8 | L54: =_xlfn.XLOOKUP(C54,$C$32:$C$48,$H$32:$H$48,"",0,1) -> 00:00:06 | M54: =IF(C54="","",_xlfn.XLOOKUP(C54,$C$32:$C$48,$I$32:$I$48,"",0,1)-L54) -> 00:05:34 | O54: =VLOOKUP(C54,C33:I48,7,FALSE) -> 00:05:40
B55: =IFERROR(IF(B54+1>COUNT($I$33:$I$48),"",B54+1),"") ->  | C55: =IF(B55="","",_xlfn.XLOOKUP($B55,$L$33:$L$48,$C$33:$C$48,"",0,1)) ->  | G55: =IF($C55="","",_xlfn.XLOOKUP($C55,$C$12:$C$27,H$12:H$27,"",0,1)) ->  | L55: =_xlfn.XLOOKUP(C55,$C$32:$C$48,$H$32:$H$48,"",0,1) ->  | M55: =IF(C55="","",_xlfn.XLOOKUP(C55,$C$32:$C$48,$I$32:$I$48,"",0,1)-L55) ->  | N55: =IF(C55="","","+") ->  | O55: =IF(C55="","",VLOOKUP($C55,$C$33:$I$48,7,0)-VLOOKUP($C$54,$C$33:$I$48,7,0)) -> 
B56: =IFERROR(IF(B55+1>COUNT($I$33:$I$48),"",B55+1),"") ->  | O56: =IF(C56="","",VLOOKUP($C56,$C$33:$I$48,7,0)-VLOOKUP($C$54,$C$33:$I$48,7,0)) -> 

Sheet K45 G
E2: =+'K2'!E2 -> Namsosrennet i hopp og kombinert 01.02.2026
E5: ="K"&F6 -> K45 | G5: Gutter
E6: K-punkt: | F6: 45 | G6: meter
E7: Meterverdi: | F7: =VLOOKUP(F6,Meterverdier!A:B,2,FALSE) -> 3.2 | G7: poeng/meter
H9: 1. omgang | M9: 2. omgang
C10: Start- | F10: Hopp/ | R10: Poeng
B11: Plassering | C11: nr. | D11: Navn | E11: Klubb | F11: Komb | G11: F.år | H11: Lengde | I11: A | J11: B | K11: C | L11: Poeng | M11: Lengde | N11: A | O11: B | P11: C | Q11: Poeng | R11: totalt
B12: =IF(R12="","",RANK(R12,$R$12:$R$26,0)+COUNTIFS($R$12:R12,R12)-1) -> 3 | C12: 65 | D12: Marius Pleym Fiskum | E12: Overhalla IL | F12: Hopp | G12: RC C | H12: 28.5 | I12: 13.5 | J12: 13.5 | K12: 13.5 | L12: =IF(H12="",0,60+'K25 G'!$F$7*(H12-'K25 G'!$F$6)+SUM(I12:K12)) -> 115.9 | M12: 26.5 | N12: 13 | O12: 13 | P12: 13.5 | Q12: =IF(M12="","",60+'K25 G'!$F$7*(M12-'K25 G'!$F$6)+SUM(N12:P12)) -> 106.1 | R12: =IF(AND(ISNUMBER(L12),ISNUMBER(Q12)),L12+Q12,0) -> 222
C13: 76 | D13: Aiden Maksim Svendsen | E13: Skogn IL | F13: Komb | G13: G10 | H13: 33 | I13: 14 | J13: 14 | K13: 14 | L13: =IF(H13="",0,60+'K25 G'!$F$7*(H13-'K25 G'!$F$6)+SUM(I13:K13)) -> 137.2 | M13: 33 | N13: 14.5 | O13: 14.5 | P13: 14 | Q13: =IF(M13="","",60+'K25 G'!$F$7*(M13-'K25 G'!$F$6)+SUM(N13:P13)) -> 138.2 | R13: =IF(AND(ISNUMBER(L13),ISNUMBER(Q13)),L13+Q13,0) -> 275.4
B14: =IF(R14="","",RANK(R14,$R$14:$R$14,0)+COUNTIFS($R$14:R14,R14)-1) -> 1 | C14: 80 | D14: Peder Hafell | E14: Steinkjer Skiklubb | F14: Hopp | G14: G12 | H14: 29 | I14: 14 | J14: 13.5 | K14: 14 | L14: =IF(H14="",0,60+'K25 G'!$F$7*(H14-'K25 G'!$F$6)+SUM(I14:K14)) -> 119.1 | M14: 30 | N14: 14 | O14: 14 | P14: 14 | Q14: =IF(M14="","",60+'K25 G'!$F$7*(M14-'K25 G'!$F$6)+SUM(N14:P14)) -> 124 | R14: =IF(AND(ISNUMBER(L14),ISNUMBER(Q14)),L14+Q14,0) -> 243.1
B15: =IF(R15="","",RANK(R15,$R$12:$R$26,0)+COUNTIFS($R$12:R15,R15)-1) -> 4 | L15: =IF(H15="",0,60+$F$7*(H15-$F$6)+SUM(I15:K15)) -> 0 | Q15: =IF(M15="","",60+$F$7*(M15-$F$6)+SUM(N15:P15)) ->  | R15: 0
B16: =IF(R16="","",RANK(R16,$R$12:$R$26,0)+COUNTIFS($R$12:R16,R16)-1) -> 5 | L16: 0 | R16: 0
B17: =IF(R17="","",RANK(R17,$R$12:$R$26,0)+COUNTIFS($R$12:R17,R17)-1) -> 6 | L17: 0 | R17: 0
B18: =IF(R18="","",RANK(R18,$R$12:$R$26,0)+COUNTIFS($R$12:R18,R18)-1) -> 7 | L18: 0 | R18: 0
B19: =IF(R19="","",RANK(R19,$R$12:$R$26,0)+COUNTIFS($R$12:R19,R19)-1) -> 8 | L19: 0 | R19: 0
B20: =IF(R20="","",RANK(R20,$R$12:$R$26,0)+COUNTIFS($R$12:R20,R20)-1) -> 9 | L20: 0 | R20: 0
B21: =IF(R21="","",RANK(R21,$R$12:$R$26,0)+COUNTIFS($R$12:R21,R21)-1) -> 10 | L21: 0 | R21: 0
B22: =IF(R22="","",RANK(R22,$R$12:$R$26,0)+COUNTIFS($R$12:R22,R22)-1) -> 11 | L22: 0 | R22: 0
B23: =IF(R23="","",RANK(R23,$R$12:$R$26,0)+COUNTIFS($R$12:R23,R23)-1) -> 12 | L23: 0 | R23: 0
B24: =IF(R24="","",RANK(R24,$R$12:$R$26,0)+COUNTIFS($R$12:R24,R24)-1) -> 13 | L24: 0 | R24: 0
B25: =IF(R25="","",RANK(R25,$R$12:$R$26,0)+COUNTIFS($R$12:R25,R25)-1) -> 14 | L25: 0 | R25: 0
B26: =IF(R26="","",RANK(R26,$R$12:$R$26,0)+COUNTIFS($R$12:R26,R26)-1) -> 15 | L26: 0 | R26: 0
K27: =IF(G27="","",60+$F$7*(G27-$F$6)+SUM(H27:J27)) ->  | P27: =IF(L27="","",60+$F$7*(L27-$F$6)+SUM(M27:O27)) ->  | Q27: =IF(AND(ISNUMBER(K27),ISNUMBER(P27)),K27+P27,"") -> 
E29: Startliste kombinert - individuell kompakt
B31: Plass. Hopp 1. omg | C31: Start nr. | D31: Navn | E31: Klubb | F31: F.år | G31: Poeng hopp | H31: Start tid | I31: Tid i mål MM:SS,T | L31: Plassering
B32: =IF(COUNTIF($F$12:$F$26,"Komb")>0,1,"") -> 1 | C32: =_xlfn._xlws.SORT(_xlfn.HSTACK(_xlfn._xlws.FILTER($C$12:$E$26,$F$12:$F$26="Komb",$L$12:$L$26>0),_xlfn._xlws.FILTER($G$12:$G$26,$F$12:$F$26="Komb",$L$12:$L$26>0),_xlfn._xlws.FILTER($L$12:$L$26,$F$12:$F$26="Komb",$L$12:$L$26>0)),5,-1) -> 76 | D32: Aiden Maksim Svendsen | E32: Skogn IL | F32: G10 | G32: 137.2 | H32: =TIME(0,0,0) -> 00:00:00 | L32: =IF(C32="","",RANK(I32,$I$32:$I$47,1)+COUNTIF($I$32:I32,I32)-1) -> 
B33: =IFERROR(IF(B32+1>COUNTIF($F$12:$F$26,"Komb"),"",B32+1),"") ->  | H33: =IF(B33="","",H32+TIME(0,0,6)) ->  | L33: =IF(C33="","",RANK(I33,$I$32:$I$47,1)+COUNTIF($I$32:I33,I33)-1) -> 
H34: =IF(B34="","",H33+TIME(0,0,6)) ->  | L34: =IF(C34="","",RANK(I34,$I$32:$I$47,1)+COUNTIF($I$32:I34,I34)-1) -> 
L35: =IF(C35="","",RANK(I35,$I$32:$I$47,1)+COUNTIF($I$32:I35,I35)-1) -> 
L36: =IF(C36="","",RANK(I36,$I$32:$I$47,1)+COUNTIF($I$32:I36,I36)-1) -> 
L37: =IF(C37="","",RANK(I37,$I$32:$I$47,1)+COUNTIF($I$32:I37,I37)-1) -> 
L38: =IF(C38="","",RANK(I38,$I$32:$I$47,1)+COUNTIF($I$32:I38,I38)-1) -> 
L39: =IF(C39="","",RANK(I39,$I$32:$I$47,1)+COUNTIF($I$32:I39,I39)-1) -> 
L40: =IF(C40="","",RANK(I40,$I$32:$I$47,1)+COUNTIF($I$32:I40,I40)-1) -> 
L41: =IF(C41="","",RANK(I41,$I$32:$I$47,1)+COUNTIF($I$32:I41,I41)-1) -> 
L42: =IF(C42="","",RANK(I42,$I$32:$I$47,1)+COUNTIF($I$32:I42,I42)-1) -> 
L43: =IF(C43="","",RANK(I43,$I$32:$I$47,1)+COUNTIF($I$32:I43,I43)-1) -> 
L44: =IF(C44="","",RANK(I44,$I$32:$I$47,1)+COUNTIF($I$32:I44,I44)-1) -> 
L45: =IF(C45="","",RANK(I45,$I$32:$I$47,1)+COUNTIF($I$32:I45,I45)-1) -> 
L46: =IF(C46="","",RANK(I46,$I$32:$I$47,1)+COUNTIF($I$32:I46,I46)-1) -> 
L47: =IF(C47="","",RANK(I47,$I$32:$I$47,1)+COUNTIF($I$32:I47,I47)-1) -> 
E50: Resultatliste kombinert - individuell kompakt
B52: Plass | C52: Start nr. | D52: Navn | E52: Klubb | F52: F.år | G52: Lengde | H52: A | I52: B | J52: C | K52: Poeng Hopp | L52: Starttid langrenn | M52: Tid langr | O52: Tid i mål
B53: =IF(COUNT($I$32:$I$47)>0,1,"") ->  | C53: =IF(B53="","",_xlfn.XLOOKUP($B53,$L$32:$L$47,$C$32:$C$47,"",0,1)) ->  | D53: =IF(C53="","",_xlfn.XLOOKUP($C53,$C$32:$C$47,D$32:D$47,"",0,1)) ->  | E53: =IF(D53="","",_xlfn.XLOOKUP($C53,$C$32:$C$47,E$32:E$47,"",0,1)) ->  | G53: =IF($C53="","",_xlfn.XLOOKUP($C53,$C$12:$C$26,H$12:H$26,"",0,1)) ->  | L53: =_xlfn.XLOOKUP(C53,$C$31:$C$47,$H$31:$H$47,"",0,1) ->  | M53: =IF(C53="","",_xlfn.XLOOKUP(C53,$C$31:$C$47,$I$31:$I$47,"",0,1)-L53) ->  | O53: =VLOOKUP(C53,C32:I47,7,FALSE) -> 
B54: =IFERROR(IF(B53+1>COUNT($I$32:$I$47),"",B53+1),"") ->  | C54: =IF(B54="","",_xlfn.XLOOKUP($B54,$L$32:$L$47,$C$32:$C$47,"",0,1)) ->  | L54: =_xlfn.XLOOKUP(C54,$C$31:$C$47,$H$31:$H$47,"",0,1) ->  | M54: =IF(C54="","",_xlfn.XLOOKUP(C54,$C$31:$C$47,$I$31:$I$47,"",0,1)-L54) ->  | N54: =IF(C54="","","+") ->  | O54: =IF(C54="","",VLOOKUP($C54,$C$32:$I$47,7,0)-VLOOKUP($C$53,$C$32:$I$47,7,0)) -> 
B55: =IFERROR(IF(B54+1>COUNT($I$32:$I$47),"",B54+1),"") ->  | O55: =IF(C55="","",VLOOKUP($C55,$C$32:$I$47,7,0)-VLOOKUP($C$53,$C$32:$I$47,7,0)) -> 
G63: =IF($C63="","",_xlfn.XLOOKUP($C63,$C$12:$C$26,H$12:H$26,"",0,1)) -> 

Sheet K45 J
E2: =+'K2'!E2 -> Namsosrennet i hopp og kombinert 01.02.2026
E5: ="K"&F6 -> K45 | G5: Jenter
E6: K-punkt: | F6: 45 | G6: meter
E7: Meterverdi: | F7: =VLOOKUP(F6,Meterverdier!A:B,2,FALSE) -> 3.2 | G7: poeng/meter
H9: 1. omgang | M9: 2. omgang
C10: Start- | F10: Hopp/ | R10: Poeng
B11: Plassering | C11: nr. | D11: Navn | E11: Klubb | F11: Komb | G11: F.år | H11: Lengde | I11: A | J11: B | K11: C | L11: Poeng | M11: Lengde | N11: A | O11: B | P11: C | Q11: Poeng | R11: totalt
B12: =IF(R12="","",RANK(R12,$R$12:$R$23,0)+COUNTIFS($R$12:R13,R12)-1) -> 2 | C12: 61 | D12: Filippa Nordseth Fredriksen | E12: Namsos IL Hopp | F12: Komb | G12: RC C | H12: 31.5 | I12: 14 | J12: 14 | K12: 14 | L12: =IF(H12="",0,60+$F$7*(H12-$F$6)+SUM(I12:K12)) -> 58.8 | M12: 32.5 | N12: 14 | O12: 15 | P12: 14.5 | Q12: =IF(M12="","",60+$F$7*(M12-$F$6)+SUM(N12:P12)) -> 63.5 | R12: =IF(AND(ISNUMBER(L12),ISNUMBER(Q12)),L12+Q12,0) -> 122.3
B13: =IF(R13="","",RANK(R13,$R$12:$R$23,0)+COUNTIFS($R$12:R13,R13)-1) -> 4 | C13: 62 | D13: Ane Marie Kimo | E13: Fjellørnen IL | F13: Hopp | G13: RC C | H13: 29.5 | I13: 14.5 | J13: 14.5 | K13: 14 | L13: =IF(H13="",0,60+$F$7*(H13-$F$6)+SUM(I13:K13)) -> 53.4 | M13: 30 | N13: 14.5 | O13: 14 | P13: 14 | Q13: =IF(M13="","",60+$F$7*(M13-$F$6)+SUM(N13:P13)) -> 54.5 | R13: =IF(AND(ISNUMBER(L13),ISNUMBER(Q13)),L13+Q13,0) -> 107.9
B14: =IF(R14="","",RANK(R14,$R$12:$R$23,0)+COUNTIFS($R$12:R14,R14)-1) -> 3 | C14: 63 | D14: Elise Skjeflo | E14: Steinkjer Skiklubb | F14: Hopp | G14: RC C | H14: 32.5 | I14: 14 | J14: 14.5 | K14: 14 | L14: =IF(H14="",0,60+$F$7*(H14-$F$6)+SUM(I14:K14)) -> 62.5 | M14: 31.5 | N14: 14 | O14: 14.5 | P14: 14 | Q14: =IF(M14="","",60+$F$7*(M14-$F$6)+SUM(N14:P14)) -> 59.3 | R14: =IF(AND(ISNUMBER(L14),ISNUMBER(Q14)),L14+Q14,0) -> 121.8
B15: =IF(R15="","",RANK(R15,$R$12:$R$23,0)+COUNTIFS($R$12:R15,R15)-1) -> 1 | C15: 64 | D15: Kristine Storø | E15: Namsos IL Hopp | F15: Hopp | G15: RC C | H15: 33.5 | I15: 14.5 | J15: 15 | K15: 14.5 | L15: =IF(H15="",0,60+$F$7*(H15-$F$6)+SUM(I15:K15)) -> 67.2 | M15: 32.5 | N15: 14 | O15: 14.5 | P15: 14.5 | Q15: =IF(M15="","",60+$F$7*(M15-$F$6)+SUM(N15:P15)) -> 63 | R15: =IF(AND(ISNUMBER(L15),ISNUMBER(Q15)),L15+Q15,0) -> 130.2
B16: =IF(R16="","",RANK(R16,$R$12:$R$23,0)+COUNTIFS($R$12:R16,R16)-1) -> 5 | L16: =IF(H16="",0,60+$F$7*(H16-$F$6)+SUM(I16:K16)) -> 0 | Q16: =IF(M16="","",60+$F$7*(M16-$F$6)+SUM(N16:P16)) ->  | R16: =IF(AND(ISNUMBER(L16),ISNUMBER(Q16)),L16+Q16,0) -> 0
B17: =IF(R17="","",RANK(R17,$R$12:$R$23,0)+COUNTIFS($R$12:R17,R17)-1) -> 6 | L17: 0 | R17: 0
B18: =IF(R18="","",RANK(R18,$R$12:$R$23,0)+COUNTIFS($R$12:R18,R18)-1) -> 7 | L18: 0 | R18: 0
B19: =IF(R19="","",RANK(R19,$R$12:$R$23,0)+COUNTIFS($R$12:R19,R19)-1) -> 8 | L19: 0 | R19: 0
B20: =IF(R20="","",RANK(R20,$R$12:$R$23,0)+COUNTIFS($R$12:R20,R20)-1) -> 9 | L20: 0 | R20: 0
B21: =IF(R21="","",RANK(R21,$R$12:$R$23,0)+COUNTIFS($R$12:R21,R21)-1) -> 10 | L21: 0 | R21: 0
B22: =IF(R22="","",RANK(R22,$R$12:$R$23,0)+COUNTIFS($R$12:R22,R22)-1) -> 11 | L22: 0 | R22: 0
B23: =IF(R23="","",RANK(R23,$R$12:$R$23,0)+COUNTIFS($R$12:R23,R23)-1) -> 12 | L23: 0 | R23: 0
K24: =IF(G24="","",60+$F$7*(G24-$F$6)+SUM(H24:J24)) ->  | P24: =IF(L24="","",60+$F$7*(L24-$F$6)+SUM(M24:O24)) ->  | Q24: =IF(AND(ISNUMBER(K24),ISNUMBER(P24)),K24+P24,"") -> 
E26: Startliste kombinert - individuell kompakt
B28: Plass. Hopp 1. omg | C28: Start nr. | D28: Navn | E28: Klubb | F28: F.år | G28: Poeng hopp | H28: Start tid | I28: Tid i mål MM:SS,T | L28: Plassering
B29: =IF(COUNTIF($F$12:$F$23,"Komb")>0,1,"") -> 1 | C29: =_xlfn._xlws.SORT(_xlfn.HSTACK(_xlfn._xlws.FILTER($C$12:$E$23,$F$12:$F$23="Komb",$L$12:$L$23>0),_xlfn._xlws.FILTER($G$12:$G$23,$F$12:$F$23="Komb",$L$12:$L$23>0),_xlfn._xlws.FILTER($L$12:$L$23,$F$12:$F$23="Komb",$L$12:$L$23>0)),5,-1) -> 61 | D29: Filippa Nordseth Fredriksen | E29: Namsos IL Hopp | F29: RC C | G29: 58.8 | H29: =TIME(0,0,0) -> 00:00:00 | I29: 00:04:40 | L29: =IF(C29="","",RANK(I29,$I$29:$I$44,1)+COUNTIF($I$29:I29,I29)-1) -> 1
B30: =IFERROR(IF(B29+1>COUNTIF($F$12:$F$23,"Komb"),"",B29+1),"") ->  | H30: =IF(B30="","",H29+TIME(0,0,6)) ->  | L30: =IF(C30="","",RANK(I30,$I$29:$I$44,1)+COUNTIF($I$29:I30,I30)-1) -> 
H31: =IF(B31="","",H30+TIME(0,0,6)) ->  | L31: =IF(C31="","",RANK(I31,$I$29:$I$44,1)+COUNTIF($I$29:I31,I31)-1) -> 
L32: =IF(C32="","",RANK(I32,$I$29:$I$44,1)+COUNTIF($I$29:I32,I32)-1) -> 
L33: =IF(C33="","",RANK(I33,$I$29:$I$44,1)+COUNTIF($I$29:I33,I33)-1) -> 
L34: =IF(C34="","",RANK(I34,$I$29:$I$44,1)+COUNTIF($I$29:I34,I34)-1) -> 
L35: =IF(C35="","",RANK(I35,$I$29:$I$44,1)+COUNTIF($I$29:I35,I35)-1) -> 
L36: =IF(C36="","",RANK(I36,$I$29:$I$44,1)+COUNTIF($I$29:I36,I36)-1) -> 
L37: =IF(C37="","",RANK(I37,$I$29:$I$44,1)+COUNTIF($I$29:I37,I37)-1) -> 
L38: =IF(C38="","",RANK(I38,$I$29:$I$44,1)+COUNTIF($I$29:I38,I38)-1) -> 
L39: =IF(C39="","",RANK(I39,$I$29:$I$44,1)+COUNTIF($I$29:I39,I39)-1) -> 
L40: =IF(C40="","",RANK(I40,$I$29:$I$44,1)+COUNTIF($I$29:I40,I40)-1) -> 
L41: =IF(C41="","",RANK(I41,$I$29:$I$44,1)+COUNTIF($I$29:I41,I41)-1) -> 
L42: =IF(C42="","",RANK(I42,$I$29:$I$44,1)+COUNTIF($I$29:I42,I42)-1) -> 
L43: =IF(C43="","",RANK(I43,$I$29:$I$44,1)+COUNTIF($I$29:I43,I43)-1) -> 
L44: =IF(C44="","",RANK(I44,$I$29:$I$44,1)+COUNTIF($I$29:I44,I44)-1) -> 
E47: Resultatliste kombinert - individuell kompakt
B49: Plass | C49: Start nr. | D49: Navn | E49: Klubb | F49: F.år | G49: Lengde | H49: A | I49: B | J49: C | K49: Poeng Hopp | L49: Starttid langrenn | M49: Tid langr | O49: Tid i mål
B50: =IF(COUNT($I$29:$I$44)>0,1,"") -> 1 | C50: =IF(B50="","",_xlfn.XLOOKUP($B50,$L$29:$L$44,$C$29:$C$44,"",0,1)) -> 61 | D50: =IF(C50="","",_xlfn.XLOOKUP($C50,$C$29:$C$44,D$29:D$44,"",0,1)) -> Filippa Nordseth Fredriksen | E50: Namsos IL Hopp | F50: RC C | G50: =IF($C50="","",_xlfn.XLOOKUP($C50,$C$12:$C$23,H$12:H$23,"",0,1)) -> 31.5 | H50: 14 | I50: 14 | J50: 14 | K50: 58.8 | L50: =_xlfn.XLOOKUP(C50,$C$28:$C$44,$H$28:$H$44,"",0,1) -> 00:00:00 | M50: =IF(C50="","",_xlfn.XLOOKUP(C50,$C$28:$C$44,$I$28:$I$44,"",0,1)-L50) -> 00:04:40 | O50: =VLOOKUP(C50,C29:I44,7,FALSE) -> 00:04:40
B51: =IFERROR(IF(B50+1>COUNT($I$29:$I$44),"",B50+1),"") ->  | C51: =IF(B51="","",_xlfn.XLOOKUP($B51,$L$29:$L$44,$C$29:$C$44,"",0,1)) ->  | L51: =_xlfn.XLOOKUP(C51,$C$28:$C$44,$H$28:$H$44,"",0,1) ->  | M51: =IF(C51="","",_xlfn.XLOOKUP(C51,$C$28:$C$44,$I$28:$I$44,"",0,1)-L51) ->  | N51: =IF(C51="","","+") ->  | O51: =IF(C51="","",VLOOKUP($C51,$C$29:$I$44,7,0)-VLOOKUP($C$50,$C$29:$I$44,7,0)) -> 
B52: =IFERROR(IF(B51+1>COUNT($I$29:$I$44),"",B51+1),"") ->  | O52: =IF(C52="","",VLOOKUP($C52,$C$29:$I$44,7,0)-VLOOKUP($C$50,$C$29:$I$44,7,0)) -> 
G60: =IF($C60="","",_xlfn.XLOOKUP($C60,$C$12:$C$23,H$12:H$23,"",0,1)) -> 

Sheet K40 RCB G (hidden)
E2: Granåsenrennet - SMN 1 Trøndercup i hopp og kombinert 11.02.2024
E5: ="K"&F6 -> K40 | G5: RCB Gutter
E6: K-punkt: | F6: 40 | G6: meter
E7: Meterverdi: | F7: =VLOOKUP(F6,Meterverdier!A:B,2,FALSE) -> 3.2 | G7: poeng/meter
H9: 1. omgang | M9: 2. omgang
C10: Start- | F10: Hopp/ | R10: Poeng
B11: Plassering | C11: nr. | D11: Navn | E11: Klubb | F11: Komb | G11: F.år | H11: Lengde | I11: A | J11: B | K11: C | L11: Poeng | M11: Lengde | N11: A | O11: B | P11: C | Q11: Poeng | R11: totalt
B12: =IF(R12="","",RANK(R12,$R$12:$R$27,0)+COUNTIFS($R$12:R12,R12)-1) -> 1 | L12: =IF(H12="",0,60+$F$7*(H12-$F$6)+SUM(I12:K12)) -> 0 | Q12: =IF(M12="","",60+$F$7*(M12-$F$6)+SUM(N12:P12)) ->  | R12: =IF(AND(ISNUMBER(L12),ISNUMBER(Q12)),L12+Q12,0) -> 0
B13: =IF(R13="","",RANK(R13,$R$12:$R$27,0)+COUNTIFS($R$12:R13,R13)-1) -> 2 | L13: 0 | Q13: =IF(M13="","",60+$F$7*(M13-$F$6)+SUM(N13:P13)) ->  | R13: 0
B14: =IF(R14="","",RANK(R14,$R$12:$R$27,0)+COUNTIFS($R$12:R14,R14)-1) -> 3 | L14: 0 | Q14: =IF(M14="","",60+$F$7*(M14-$F$6)+SUM(N14:P14)) ->  | R14: 0
B15: =IF(R15="","",RANK(R15,$R$12:$R$27,0)+COUNTIFS($R$12:R15,R15)-1) -> 4 | L15: 0 | Q15: =IF(M15="","",60+$F$7*(M15-$F$6)+SUM(N15:P15)) ->  | R15: 0
B16: =IF(R16="","",RANK(R16,$R$12:$R$27,0)+COUNTIFS($R$12:R16,R16)-1) -> 5 | L16: 0 | Q16: =IF(M16="","",60+$F$7*(M16-$F$6)+SUM(N16:P16)) ->  | R16: 0
B17: =IF(R17="","",RANK(R17,$R$12:$R$27,0)+COUNTIFS($R$12:R17,R17)-1) -> 6 | L17: 0 | R17: 0
B18: =IF(R18="","",RANK(R18,$R$12:$R$27,0)+COUNTIFS($R$12:R18,R18)-1) -> 7 | L18: 0 | R18: 0
B19: =IF(R19="","",RANK(R19,$R$12:$R$27,0)+COUNTIFS($R$12:R19,R19)-1) -> 8 | L19: 0 | R19: 0
B20: =IF(R20="","",RANK(R20,$R$12:$R$27,0)+COUNTIFS($R$12:R20,R20)-1) -> 9 | L20: 0 | R20: 0
B21: =IF(R21="","",RANK(R21,$R$12:$R$27,0)+COUNTIFS($R$12:R21,R21)-1) -> 10 | L21: 0 | R21: 0
B22: =IF(R22="","",RANK(R22,$R$12:$R$27,0)+COUNTIFS($R$12:R22,R22)-1) -> 11 | L22: 0 | R22: 0
B23: =IF(R23="","",RANK(R23,$R$12:$R$27,0)+COUNTIFS($R$12:R23,R23)-1) -> 12 | L23: 0 | R23: 0
B24: =IF(R24="","",RANK(R24,$R$12:$R$27,0)+COUNTIFS($R$12:R24,R24)-1) -> 13 | L24: 0 | R24: 0
B25: =IF(R25="","",RANK(R25,$R$12:$R$27,0)+COUNTIFS($R$12:R25,R25)-1) -> 14 | L25: 0 | R25: 0
B26: =IF(R26="","",RANK(R26,$R$12:$R$27,0)+COUNTIFS($R$12:R26,R26)-1) -> 15 | L26: 0 | R26: 0
B27: =IF(R27="","",RANK(R27,$R$12:$R$27,0)+COUNTIFS($R$12:R27,R27)-1) -> 16 | L27: 0 | R27: 0
K28: =IF(G28="","",60+$F$7*(G28-$F$6)+SUM(H28:J28)) ->  | P28: =IF(L28="","",60+$F$7*(L28-$F$6)+SUM(M28:O28)) ->  | Q28: =IF(AND(ISNUMBER(K28),ISNUMBER(P28)),K28+P28,"") -> 
E30: Startliste kombinert - individuell kompakt
B32: Plass. Hopp 1. omg | C32: Start nr. | D32: Navn | E32: Klubb | F32: F.år | G32: Poeng hopp | H32: Start tid | I32: Tid i mål MM:SS,T | L32: Plassering
B33: =IF(COUNTIF($F$12:$F$27,"Komb")>0,1,"") ->  | C33: =_xlfn._xlws.SORT(_xlfn.HSTACK(_xlfn._xlws.FILTER($C$12:$E$27,$F$12:$F$27="Komb",$L$12:$L$27>0),_xlfn._xlws.FILTER($G$12:$G$27,$F$12:$F$27="Komb",$L$12:$L$27>0),_xlfn._xlws.FILTER($L$12:$L$27,$F$12:$F$27="Komb",$L$12:$L$27>0)),5,-1) ->  | H33: =TIME(0,0,0) -> 00:00:00 | I33: 00:01:11.300 | L33: =IF(C33="","",RANK(I33,$I$33:$I$48,1)+COUNTIF($I$33:I33,I33)-1) -> 
B34: =IFERROR(IF(B33+1>COUNTIF($F$12:$F$27,"Komb"),"",B33+1),"") ->  | H34: =IF(B34="","",H33+TIME(0,0,6)) ->  | I34: 00:01:10.100 | L34: =IF(C34="","",RANK(I34,$I$33:$I$48,1)+COUNTIF($I$33:I34,I34)-1) -> 
B35: =IFERROR(IF(B34+1>COUNTIF($F$12:$F$27,"Komb"),"",B34+1),"") ->  | H35: =IF(B35="","",H34+TIME(0,0,6)) ->  | I35: 00:02:03.400 | L35: =IF(C35="","",RANK(I35,$I$33:$I$48,1)+COUNTIF($I$33:I35,I35)-1) -> 
I36: 00:01:23.400 | L36: =IF(C36="","",RANK(I36,$I$33:$I$48,1)+COUNTIF($I$33:I36,I36)-1) -> 
L37: =IF(C37="","",RANK(I37,$I$33:$I$48,1)+COUNTIF($I$33:I37,I37)-1) -> 
L38: =IF(C38="","",RANK(I38,$I$33:$I$48,1)+COUNTIF($I$33:I38,I38)-1) -> 
L39: =IF(C39="","",RANK(I39,$I$33:$I$48,1)+COUNTIF($I$33:I39,I39)-1) -> 
L40: =IF(C40="","",RANK(I40,$I$33:$I$48,1)+COUNTIF($I$33:I40,I40)-1) -> 
L41: =IF(C41="","",RANK(I41,$I$33:$I$48,1)+COUNTIF($I$33:I41,I41)-1) -> 
L42: =IF(C42="","",RANK(I42,$I$33:$I$48,1)+COUNTIF($I$33:I42,I42)-1) -> 
L43: =IF(C43="","",RANK(I43,$I$33:$I$48,1)+COUNTIF($I$33:I43,I43)-1) -> 
L44: =IF(C44="","",RANK(I44,$I$33:$I$48,1)+COUNTIF($I$33:I44,I44)-1) -> 
L45: =IF(C45="","",RANK(I45,$I$33:$I$48,1)+COUNTIF($I$33:I45,I45)-1) -> 
L46: =IF(C46="","",RANK(I46,$I$33:$I$48,1)+COUNTIF($I$33:I46,I46)-1) -> 
L47: =IF(C47="","",RANK(I47,$I$33:$I$48,1)+COUNTIF($I$33:I47,I47)-1) -> 
L48: =IF(C48="","",RANK(I48,$I$33:$I$48,1)+COUNTIF($I$33:I48,I48)-1) -> 
E51: Resultatliste kombinert - individuell kompakt
B53: Plass | C53: Start nr. | D53: Navn | E53: Klubb | F53: F.år | G53: Lengde | H53: A | I53: B | J53: C | K53: Poeng Hopp | L53: Starttid langrenn | M53: Tid langr | O53: Tid i mål
B54: =IF(COUNT($I$33:$I$48)>0,1,"") -> 1 | C54: =IF(B54="","",_xlfn.XLOOKUP($B54,$L$33:$L$48,$C$33:$C$48,"",0,1)) ->  | D54: =IF(C54="","",_xlfn.XLOOKUP($C54,$C$33:$C$48,D$33:D$48,"",0,1)) ->  | E54: =IF(D54="","",_xlfn.XLOOKUP($C54,$C$33:$C$48,E$33:E$48,"",0,1)) ->  | G54: =IF($C54="","",_xlfn.XLOOKUP($C54,$C$12:$C$27,H$12:H$27,"",0,1)) ->  | H54: =IF($C54="","",_xlfn.XLOOKUP($C54,$C$12:$C$27,I$12:I$27,"",0,1)) ->  | L54: =_xlfn.XLOOKUP(C54,$C$32:$C$48,$H$32:$H$48,"",0,1) ->  | M54: =IF(C54="","",_xlfn.XLOOKUP(C54,$C$32:$C$48,$I$32:$I$48,"",0,1)-L54) ->  | O54: =VLOOKUP(C54,C33:I48,7,FALSE) -> 
B55: =IFERROR(IF(B54+1>COUNT($I$33:$I$48),"",B54+1),"") -> 2 | C55: =IF(B55="","",_xlfn.XLOOKUP($B55,$L$33:$L$48,$C$33:$C$48,"",0,1)) ->  | G55: =IF($C55="","",_xlfn.XLOOKUP($C55,$C$12:$C$27,H$12:H$27,"",0,1)) ->  | L55: =_xlfn.XLOOKUP(C55,$C$32:$C$48,$H$32:$H$48,"",0,1) ->  | M55: =IF(C55="","",_xlfn.XLOOKUP(C55,$C$32:$C$48,$I$32:$I$48,"",0,1)-L55) ->  | N55: =IF(C55="","","+") ->  | O55: =IF(C55="","",VLOOKUP($C55,$C$33:$I$48,7,0)-VLOOKUP($C$54,$C$33:$I$48,7,0)) -> 
B56: =IFERROR(IF(B55+1>COUNT($I$33:$I$48),"",B55+1),"") -> 3 | O56: =IF(C56="","",VLOOKUP($C56,$C$33:$I$48,7,0)-VLOOKUP($C$54,$C$33:$I$48,7,0)) -> 
B57: 4

Sheet K40 RCB J (hidden)
E2: Granåsenrennet - SMN 1 Trøndercup i hopp og kombinert 11.02.2024
E5: ="K"&F6 -> K40 | G5: RCB Jenter
E6: K-punkt: | F6: 40 | G6: meter
E7: Meterverdi: | F7: =VLOOKUP(F6,Meterverdier!A:B,2,FALSE) -> 3.2 | G7: poeng/meter
H9: 1. omgang | M9: 2. omgang
C10: Start- | F10: Hopp/ | R10: Poeng
B11: Plassering | C11: nr. | D11: Navn | E11: Klubb | F11: Komb | G11: F.år | H11: Lengde | I11: A | J11: B | K11: C | L11: Poeng | M11: Lengde | N11: A | O11: B | P11: C | Q11: Poeng | R11: totalt
B12: =IF(R12="","",RANK(R12,$R$12:$R$27,0)+COUNTIFS($R$12:R12,R12)-1) -> 1 | L12: =IF(H12="",0,60+$F$7*(H12-$F$6)+SUM(I12:K12)) -> 0 | Q12: =IF(M12="","",60+$F$7*(M12-$F$6)+SUM(N12:P12)) ->  | R12: =IF(AND(ISNUMBER(L12),ISNUMBER(Q12)),L12+Q12,0) -> 0
B13: =IF(R13="","",RANK(R13,$R$12:$R$27,0)+COUNTIFS($R$12:R13,R13)-1) -> 2 | L13: 0 | Q13: =IF(M13="","",60+$F$7*(M13-$F$6)+SUM(N13:P13)) ->  | R13: 0
B14: =IF(R14="","",RANK(R14,$R$12:$R$27,0)+COUNTIFS($R$12:R14,R14)-1) -> 3 | L14: 0 | Q14: =IF(M14="","",60+$F$7*(M14-$F$6)+SUM(N14:P14)) ->  | R14: 0
B15: =IF(R15="","",RANK(R15,$R$12:$R$27,0)+COUNTIFS($R$12:R15,R15)-1) -> 4 | L15: 0 | Q15: =IF(M15="","",60+$F$7*(M15-$F$6)+SUM(N15:P15)) ->  | R15: 0
B16: =IF(R16="","",RANK(R16,$R$12:$R$27,0)+COUNTIFS($R$12:R16,R16)-1) -> 5 | L16: 0 | Q16: =IF(M16="","",60+$F$7*(M16-$F$6)+SUM(N16:P16)) ->  | R16: 0
B17: =IF(R17="","",RANK(R17,$R$12:$R$27,0)+COUNTIFS($R$12:R17,R17)-1) -> 6 | L17: 0 | R17: 0
B18: =IF(R18="","",RANK(R18,$R$12:$R$27,0)+COUNTIFS($R$12:R18,R18)-1) -> 7 | L18: 0 | R18: 0
B19: =IF(R19="","",RANK(R19,$R$12:$R$27,0)+COUNTIFS($R$12:R19,R19)-1) -> 8 | L19: 0 | R19: 0
B20: =IF(R20="","",RANK(R20,$R$12:$R$27,0)+COUNTIFS($R$12:R20,R20)-1) -> 9 | L20: 0 | R20: 0
B21: =IF(R21="","",RANK(R21,$R$12:$R$27,0)+COUNTIFS($R$12:R21,R21)-1) -> 10 | L21: 0 | R21: 0
B22: =IF(R22="","",RANK(R22,$R$12:$R$27,0)+COUNTIFS($R$12:R22,R22)-1) -> 11 | L22: 0 | R22: 0
B23: =IF(R23="","",RANK(R23,$R$12:$R$27,0)+COUNTIFS($R$12:R23,R23)-1) -> 12 | L23: 0 | R23: 0
B24: =IF(R24="","",RANK(R24,$R$12:$R$27,0)+COUNTIFS($R$12:R24,R24)-1) -> 13 | L24: 0 | R24: 0
B25: =IF(R25="","",RANK(R25,$R$12:$R$27,0)+COUNTIFS($R$12:R25,R25)-1) -> 14 | L25: 0 | R25: 0
B26: =IF(R26="","",RANK(R26,$R$12:$R$27,0)+COUNTIFS($R$12:R26,R26)-1) -> 15 | L26: 0 | R26: 0
B27: =IF(R27="","",RANK(R27,$R$12:$R$27,0)+COUNTIFS($R$12:R27,R27)-1) -> 16 | L27: 0 | R27: 0
K28: =IF(G28="","",60+$F$7*(G28-$F$6)+SUM(H28:J28)) ->  | P28: =IF(L28="","",60+$F$7*(L28-$F$6)+SUM(M28:O28)) ->  | Q28: =IF(AND(ISNUMBER(K28),ISNUMBER(P28)),K28+P28,"") -> 
E30: Startliste kombinert - individuell kompakt
B32: Plass. Hopp 1. omg | C32: Start nr. | D32: Navn | E32: Klubb | F32: F.år | G32: Poeng hopp | H32: Start tid | I32: Tid i mål MM:SS,T | L32: Plassering
B33: =IF(COUNTIF($F$12:$F$27,"Komb")>0,1,"") ->  | C33: =_xlfn._xlws.SORT(_xlfn.HSTACK(_xlfn._xlws.FILTER($C$12:$E$27,$F$12:$F$27="Komb",$L$12:$L$27>0),_xlfn._xlws.FILTER($G$12:$G$27,$F$12:$F$27="Komb",$L$12:$L$27>0),_xlfn._xlws.FILTER($L$12:$L$27,$F$12:$F$27="Komb",$L$12:$L$27>0)),5,-1) ->  | H33: =TIME(0,0,0) -> 00:00:00 | I33: 00:01:11.300 | L33: =IF(C33="","",RANK(I33,$I$33:$I$48,1)+COUNTIF($I$33:I33,I33)-1) -> 
B34: =IFERROR(IF(B33+1>COUNTIF($F$12:$F$27,"Komb"),"",B33+1),"") ->  | H34: =IF(B34="","",H33+TIME(0,0,6)) ->  | I34: 00:01:10.100 | L34: =IF(C34="","",RANK(I34,$I$33:$I$48,1)+COUNTIF($I$33:I34,I34)-1) -> 
B35: =IFERROR(IF(B34+1>COUNTIF($F$12:$F$27,"Komb"),"",B34+1),"") ->  | H35: =IF(B35="","",H34+TIME(0,0,6)) ->  | I35: 00:02:03.400 | L35: =IF(C35="","",RANK(I35,$I$33:$I$48,1)+COUNTIF($I$33:I35,I35)-1) -> 
I36: 00:01:23.400 | L36: =IF(C36="","",RANK(I36,$I$33:$I$48,1)+COUNTIF($I$33:I36,I36)-1) -> 
L37: =IF(C37="","",RANK(I37,$I$33:$I$48,1)+COUNTIF($I$33:I37,I37)-1) -> 
L38: =IF(C38="","",RANK(I38,$I$33:$I$48,1)+COUNTIF($I$33:I38,I38)-1) -> 
L39: =IF(C39="","",RANK(I39,$I$33:$I$48,1)+COUNTIF($I$33:I39,I39)-1) -> 
L40: =IF(C40="","",RANK(I40,$I$33:$I$48,1)+COUNTIF($I$33:I40,I40)-1) -> 
L41: =IF(C41="","",RANK(I41,$I$33:$I$48,1)+COUNTIF($I$33:I41,I41)-1) -> 
L42: =IF(C42="","",RANK(I42,$I$33:$I$48,1)+COUNTIF($I$33:I42,I42)-1) -> 
L43: =IF(C43="","",RANK(I43,$I$33:$I$48,1)+COUNTIF($I$33:I43,I43)-1) -> 
L44: =IF(C44="","",RANK(I44,$I$33:$I$48,1)+COUNTIF($I$33:I44,I44)-1) -> 
L45: =IF(C45="","",RANK(I45,$I$33:$I$48,1)+COUNTIF($I$33:I45,I45)-1) -> 
L46: =IF(C46="","",RANK(I46,$I$33:$I$48,1)+COUNTIF($I$33:I46,I46)-1) -> 
L47: =IF(C47="","",RANK(I47,$I$33:$I$48,1)+COUNTIF($I$33:I47,I47)-1) -> 
L48: =IF(C48="","",RANK(I48,$I$33:$I$48,1)+COUNTIF($I$33:I48,I48)-1) -> 
E51: Resultatliste kombinert - individuell kompakt
B53: Plass | C53: Start nr. | D53: Navn | E53: Klubb | F53: F.år | G53: Lengde | H53: A | I53: B | J53: C | K53: Poeng Hopp | L53: Starttid langrenn | M53: Tid langr | O53: Tid i mål
B54: =IF(COUNT($I$33:$I$48)>0,1,"") -> 1 | C54: =IF(B54="","",_xlfn.XLOOKUP($B54,$L$33:$L$48,$C$33:$C$48,"",0,1)) ->  | D54: =IF(C54="","",_xlfn.XLOOKUP($C54,$C$33:$C$48,D$33:D$48,"",0,1)) ->  | E54: =IF(D54="","",_xlfn.XLOOKUP($C54,$C$33:$C$48,E$33:E$48,"",0,1)) ->  | G54: =IF($C54="","",_xlfn.XLOOKUP($C54,$C$12:$C$27,H$12:H$27,"",0,1)) ->  | H54: =IF($C54="","",_xlfn.XLOOKUP($C54,$C$12:$C$27,I$12:I$27,"",0,1)) ->  | L54: =_xlfn.XLOOKUP(C54,$C$32:$C$48,$H$32:$H$48,"",0,1) ->  | M54: =IF(C54="","",_xlfn.XLOOKUP(C54,$C$32:$C$48,$I$32:$I$48,"",0,1)-L54) ->  | O54: =VLOOKUP(C54,C33:I48,7,FALSE) -> 
B55: =IFERROR(IF(B54+1>COUNT($I$33:$I$48),"",B54+1),"") -> 2 | C55: =IF(B55="","",_xlfn.XLOOKUP($B55,$L$33:$L$48,$C$33:$C$48,"",0,1)) ->  | G55: =IF($C55="","",_xlfn.XLOOKUP($C55,$C$12:$C$27,H$12:H$27,"",0,1)) ->  | L55: =_xlfn.XLOOKUP(C55,$C$32:$C$48,$H$32:$H$48,"",0,1) ->  | M55: =IF(C55="","",_xlfn.XLOOKUP(C55,$C$32:$C$48,$I$32:$I$48,"",0,1)-L55) ->  | N55: =IF(C55="","","+") ->  | O55: =IF(C55="","",VLOOKUP($C55,$C$33:$I$48,7,0)-VLOOKUP($C$54,$C$33:$I$48,7,0)) -> 
B56: =IFERROR(IF(B55+1>COUNT($I$33:$I$48),"",B55+1),"") -> 3 | O56: =IF(C56="","",VLOOKUP($C56,$C$33:$I$48,7,0)-VLOOKUP($C$54,$C$33:$I$48,7,0)) -> 
B57: 4

Sheet K65 G
E2: =+'K2'!E2 -> Namsosrennet i hopp og kombinert 01.02.2026
E5: ="K"&F6 -> K65 | G5: RCA Gutter
E6: K-punkt: | F6: 65 | G6: meter
E7: Meterverdi: | F7: =VLOOKUP(F6,Meterverdier!A:B,2,FALSE) -> 2.4 | G7: poeng/meter
H9: 1. omgang | M9: 2. omgang
C10: Start- | F10: Hopp/ | R10: Poeng
B11: Plassering | C11: nr. | D11: Navn | E11: Klubb | F11: Komb | G11: F.år | H11: Lengde | I11: A | J11: B | K11: C | L11: Poeng | M11: Lengde | N11: A | O11: B | P11: C | Q11: Poeng | R11: totalt
B12: =IF(R12="","",RANK(R12,$R$12:$R$28,0)+COUNTIFS($R$12:R12,R12)-1) -> 5 | C12: 53 | D12: Mikkel Holt-Vorvik | E12: Byåsen Idrettslag | F12: Komb | G12: RC B | H12: 56 | I12: 15.5 | J12: 15.5 | K12: 15.5 | L12: =IF(H12="",0,60+$F$7*(H12-$F$6)+SUM(I12:K12)) -> 84.9 | M12: 61 | N12: 16.5 | O12: 17 | P12: 16.5 | Q12: =IF(M12="","",60+$F$7*(M12-$F$6)+SUM(N12:P12)) -> 100.4 | R12: =IF(AND(ISNUMBER(L12),ISNUMBER(Q12)),L12+Q12,0) -> 185.3 | S12: 0 | T12: =(R12+S12) -> 185.3
B13: =IF(R13="","",RANK(R13,$R$12:$R$28,0)+COUNTIFS($R$12:R13,R13)-1) -> 9 | C13: 54 | D13: Sander Grande Molden | E13: Byåsen Idrettslag | F13: Komb | G13: RC B | H13: 44 | I13: 14.5 | J13: 14.5 | K13: 15 | L13: =IF(H13="",0,60+$F$7*(H13-$F$6)+SUM(I13:K13)) -> 53.6 | M13: 42 | N13: 14 | O13: 14 | P13: 14.5 | Q13: =IF(M13="","",60+$F$7*(M13-$F$6)+SUM(N13:P13)) -> 47.3 | R13: =IF(AND(ISNUMBER(L13),ISNUMBER(Q13)),L13+Q13,0) -> 100.9 | T13: =(R13+S13) -> 100.9
B14: =IF(R14="","",RANK(R14,$R$12:$R$28,0)+COUNTIFS($R$12:R14,R14)-1) -> 3 | C14: 56 | D14: Sigurd Fredagsvik-Johansen | E14: Skogn IL | F14: Hopp | G14: RC B | H14: 60.5 | I14: 16 | J14: 16 | K14: 16 | L14: =IF(H14="",0,60+$F$7*(H14-$F$6)+SUM(I14:K14)) -> 97.2 | M14: 61 | N14: 16 | O14: 17 | P14: 16 | Q14: =IF(M14="","",60+$F$7*(M14-$F$6)+SUM(N14:P14)) -> 99.4 | R14: =IF(AND(ISNUMBER(L14),ISNUMBER(Q14)),L14+Q14,0) -> 196.6 | T14: 196.6
B15: =IF(R15="","",RANK(R15,$R$12:$R$28,0)+COUNTIFS($R$12:R15,R15)-1) -> 1 | C15: 57 | D15: Sondre Hegseth Volden | E15: Byåsen IL | F15: Hopp | G15: RC B | H15: 61 | I15: 15.5 | J15: 16 | K15: 16 | L15: 97.9 | M15: 61.5 | N15: 16.5 | O15: 17 | P15: 16.5 | Q15: 101.6 | R15: 199.5 | T15: 199.5
B16: =IF(R16="","",RANK(R16,$R$12:$R$28,0)+COUNTIFS($R$12:R16,R16)-1) -> 6 | C16: 58 | D16: Thomas Opheim Bardal | E16: Steinkjer Skiklubb | F16: Komb | G16: RC B | H16: 58 | I16: 15 | J16: 15.5 | K16: 15 | L16: 88.7 | M16: 58.5 | N16: 15 | O16: 15.5 | P16: 15 | Q16: 89.9 | R16: 178.6 | T16: 178.6
B17: =IF(R17="","",RANK(R17,$R$12:$R$28,0)+COUNTIFS($R$12:R17,R17)-1) -> 4 | C17: 66 | D17: Aksel Gurendal Skogstad | E17: Byåsen IL | F17: Komb | G17: RC A | H17: 60 | I17: 16 | J17: 16 | K17: 16.5 | L17: 96.5 | M17: 60.5 | N17: 16 | O17: 16.5 | P17: 16 | Q17: 97.7 | R17: 194.2 | T17: 194.2
B18: =IF(R18="","",RANK(R18,$R$12:$R$28,0)+COUNTIFS($R$12:R18,R18)-1) -> 7 | C18: 59 | D18: Aleksander Fleischer | E18: Skatval Skilag | F18: Komb | G18: RC A | H18: 53 | I18: 15.5 | J18: 15.5 | K18: 16 | L18: =IF(H18="",0,60+$F$7*(H18-$F$6)+SUM(I18:K18)) -> 78.2 | M18: 59.5 | N18: 16.5 | O18: 16 | P18: 16.5 | Q18: =IF(M18="","",60+$F$7*(M18-$F$6)+SUM(N18:P18)) -> 95.8 | R18: =IF(AND(ISNUMBER(L18),ISNUMBER(Q18)),L18+Q18,0) -> 174 | S18: 50 | T18: 224
B19: =IF(R19="","",RANK(R19,$R$12:$R$28,0)+COUNTIFS($R$12:R19,R19)-1) -> 8 | C19: 60 | D19: Henrik Storø | E19: Namsos IL Hopp | F19: Hopp | G19: NC Men | H19: 56 | I19: 15 | J19: 15 | K19: 15.5 | L19: =IF(H19="",0,60+$F$7*(H19-$F$6)+SUM(I19:K19)) -> 83.9 | M19: 53.5 | N19: 14 | O19: 14 | P19: 14 | Q19: =IF(M19="","",60+$F$7*(M19-$F$6)+SUM(N19:P19)) -> 74.4 | R19: =IF(AND(ISNUMBER(L19),ISNUMBER(Q19)),L19+Q19,0) -> 158.3 | S19: 30 | T19: 188.3
B20: =IF(R20="","",RANK(R20,$R$12:$R$28,0)+COUNTIFS($R$12:R20,R20)-1) -> 2 | C20: 111 | D20: Isak Skorstad Mortensen | E20: Namsos IL Hopp | F20: Hopp | G20: NC Elite | H20: 59.5 | I20: 16.5 | J20: 16 | K20: 16.5 | L20: =IF(H20="",0,60+$F$7*(H20-$F$6)+SUM(I20:K20)) -> 95.8 | M20: 62 | N20: 16 | O20: 16.5 | P20: 16.5 | Q20: =IF(M20="","",60+$F$7*(M20-$F$6)+SUM(N20:P20)) -> 101.8 | R20: =IF(AND(ISNUMBER(L20),ISNUMBER(Q20)),L20+Q20,0) -> 197.6 | S20: 80 | T20: 277.6
B21: =IF(R21="","",RANK(R21,$R$12:$R$28,0)+COUNTIFS($R$12:R21,R21)-1) -> 10 | L21: 0 | R21: 0
B22: =IF(R22="","",RANK(R22,$R$12:$R$28,0)+COUNTIFS($R$12:R22,R22)-1) -> 11 | L22: 0 | R22: 0
B23: =IF(R23="","",RANK(R23,$R$12:$R$28,0)+COUNTIFS($R$12:R23,R23)-1) -> 12 | L23: 0 | R23: 0
B24: =IF(R24="","",RANK(R24,$R$12:$R$28,0)+COUNTIFS($R$12:R24,R24)-1) -> 13 | L24: 0 | R24: 0
B25: =IF(R25="","",RANK(R25,$R$12:$R$28,0)+COUNTIFS($R$12:R25,R25)-1) -> 14 | L25: 0 | R25: 0
B26: =IF(R26="","",RANK(R26,$R$12:$R$28,0)+COUNTIFS($R$12:R26,R26)-1) -> 15 | L26: 0 | R26: 0
B27: =IF(R27="","",RANK(R27,$R$12:$R$28,0)+COUNTIFS($R$12:R27,R27)-1) -> 16 | L27: 0 | R27: 0
B28: =IF(R28="","",RANK(R28,$R$12:$R$28,0)+COUNTIFS($R$12:R28,R28)-1) -> 17 | L28: 0 | R28: 0
K29: =IF(G29="","",60+$F$7*(G29-$F$6)+SUM(H29:J29)) ->  | P29: =IF(L29="","",60+$F$7*(L29-$F$6)+SUM(M29:O29)) ->  | Q29: =IF(AND(ISNUMBER(K29),ISNUMBER(P29)),K29+P29,"") -> 
E31: Startliste kombinert - individuell kompakt
B33: Plass. Hopp 1. omg | C33: Start nr. | D33: Navn | E33: Klubb | F33: F.år | G33: Poeng hopp | H33: Start tid | I33: Tid i mål MM:SS,T | L33: Plassering
B34: =IF(COUNTIF($F$12:$F$28,"Komb")>0,1,"") -> 1 | C34: =_xlfn._xlws.SORT(_xlfn.HSTACK(_xlfn._xlws.FILTER($C$12:$E$28,$F$12:$F$28="Komb",$L$12:$L$28>0),_xlfn._xlws.FILTER($G$12:$G$28,$F$12:$F$28="Komb",$L$12:$L$28>0),_xlfn._xlws.FILTER($L$12:$L$28,$F$12:$F$28="Komb",$L$12:$L$28>0)),5,-1) -> 66 | D34: Aksel Gurendal Skogstad | E34: Byåsen IL | F34: RC A | G34: 96.5 | H34: =TIME(0,0,0) -> 00:00:00 | I34: 00:13:11 | L34: =IF(C34="","",RANK(I34,$I$34:$I$49,1)+COUNTIF($I$34:I34,I34)-1) -> 4
B35: =IFERROR(IF(B34+1>COUNTIF($F$12:$F$28,"Komb"),"",B34+1),"") -> 2 | C35: 58 | D35: Thomas Opheim Bardal | E35: Steinkjer Skiklubb | F35: RC B | G35: 88.7 | H35: =IF(B35="","",H34+TIME(0,0,6)) -> 00:00:06 | I35: 00:08:16 | L35: =IF(C35="","",RANK(I35,$I$34:$I$49,1)+COUNTIF($I$34:I35,I35)-1) -> 2
B36: =IFERROR(IF(B35+1>COUNTIF($F$12:$F$28,"Komb"),"",B35+1),"") -> 3 | C36: 53 | D36: Mikkel Holt-Vorvik | E36: Byåsen Idrettslag | F36: RC B | G36: 84.9 | H36: =IF(B36="","",H35+TIME(0,0,6)) -> 00:00:12 | I36: 00:08:12 | L36: =IF(C36="","",RANK(I36,$I$34:$I$49,1)+COUNTIF($I$34:I36,I36)-1) -> 1
B37: =IFERROR(IF(B36+1>COUNTIF($F$12:$F$28,"Komb"),"",B36+1),"") -> 4 | C37: 59 | D37: Aleksander Fleischer | E37: Skatval Skilag | F37: RC A | G37: 78.2 | H37: 00:00:18 | I37: 00:16:36 | L37: =IF(C37="","",RANK(I37,$I$34:$I$49,1)+COUNTIF($I$34:I37,I37)-1) -> 5
B38: =IFERROR(IF(B37+1>COUNTIF($F$12:$F$28,"Komb"),"",B37+1),"") -> 5 | C38: 54 | D38: Sander Grande Molden | E38: Byåsen Idrettslag | F38: RC B | G38: 53.6 | H38: 00:00:24 | I38: 00:08:57 | L38: =IF(C38="","",RANK(I38,$I$34:$I$49,1)+COUNTIF($I$34:I38,I38)-1) -> 3
B39: =IFERROR(IF(B38+1>COUNTIF($F$12:$F$28,"Komb"),"",B38+1),"") ->  | L39: =IF(C39="","",RANK(I39,$I$34:$I$49,1)+COUNTIF($I$34:I39,I39)-1) -> 
B40: =IFERROR(IF(B39+1>COUNTIF($F$12:$F$28,"Komb"),"",B39+1),"") ->  | L40: =IF(C40="","",RANK(I40,$I$34:$I$49,1)+COUNTIF($I$34:I40,I40)-1) -> 
B41: =IFERROR(IF(B40+1>COUNTIF($F$12:$F$28,"Komb"),"",B40+1),"") ->  | L41: =IF(C41="","",RANK(I41,$I$34:$I$49,1)+COUNTIF($I$34:I41,I41)-1) -> 
B42: =IFERROR(IF(B41+1>COUNTIF($F$12:$F$28,"Komb"),"",B41+1),"") ->  | L42: =IF(C42="","",RANK(I42,$I$34:$I$49,1)+COUNTIF($I$34:I42,I42)-1) -> 
B43: =IFERROR(IF(B42+1>COUNTIF($F$12:$F$28,"Komb"),"",B42+1),"") ->  | L43: =IF(C43="","",RANK(I43,$I$34:$I$49,1)+COUNTIF($I$34:I43,I43)-1) -> 
B44: =IFERROR(IF(B43+1>COUNTIF($F$12:$F$28,"Komb"),"",B43+1),"") ->  | L44: =IF(C44="","",RANK(I44,$I$34:$I$49,1)+COUNTIF($I$34:I44,I44)-1) -> 
B45: =IFERROR(IF(B44+1>COUNTIF($F$12:$F$28,"Komb"),"",B44+1),"") ->  | L45: =IF(C45="","",RANK(I45,$I$34:$I$49,1)+COUNTIF($I$34:I45,I45)-1) -> 
B46: =IFERROR(IF(B45+1>COUNTIF($F$12:$F$28,"Komb"),"",B45+1),"") ->  | L46: =IF(C46="","",RANK(I46,$I$34:$I$49,1)+COUNTIF($I$34:I46,I46)-1) -> 
B47: =IFERROR(IF(B46+1>COUNTIF($F$12:$F$28,"Komb"),"",B46+1),"") ->  | L47: =IF(C47="","",RANK(I47,$I$34:$I$49,1)+COUNTIF($I$34:I47,I47)-1) -> 
B48: =IFERROR(IF(B47+1>COUNTIF($F$12:$F$28,"Komb"),"",B47+1),"") ->  | L48: =IF(C48="","",RANK(I48,$I$34:$I$49,1)+COUNTIF($I$34:I48,I48)-1) -> 
B49: =IFERROR(IF(B48+1>COUNTIF($F$12:$F$28,"Komb"),"",B48+1),"") ->  | L49: =IF(C49="","",RANK(I49,$I$34:$I$49,1)+COUNTIF($I$34:I49,I49)-1) -> 
E52: Resultatliste kombinert - individuell kompakt
B54: Plass | C54: Start nr. | D54: Navn | E54: Klubb | F54: F.år | G54: Lengde | H54: A | I54: B | J54: C | K54: Poeng Hopp | L54: Starttid langrenn | M54: Tid langr | O54: Tid i mål
B55: =IF(COUNT($I$34:$I$49)>0,1,"") -> 1 | C55: =IF(B55="","",_xlfn.XLOOKUP($B55,$L$34:$L$49,$C$34:$C$49,"",0,1)) -> 53 | D55: =IF(C55="","",_xlfn.XLOOKUP($C55,$C$34:$C$49,D$34:D$49,"",0,1)) -> Mikkel Holt-Vorvik | E55: =IF(D55="","",_xlfn.XLOOKUP($C55,$C$34:$C$49,E$34:E$49,"",0,1)) -> Byåsen Idrettslag | F55: RC B | G55: =IF($C55="","",_xlfn.XLOOKUP($C55,$C$12:$C$28,H$12:H$28,"",0,1)) -> 56 | H55: =IF($C55="","",_xlfn.XLOOKUP($C55,$C$12:$C$28,I$12:I$28,"",0,1)) -> 15.5 | I55: =IF($C55="","",_xlfn.XLOOKUP($C55,$C$12:$C$28,J$12:J$28,"",0,1)) -> 15.5 | J55: =IF($C55="","",_xlfn.XLOOKUP($C55,$C$12:$C$28,K$12:K$28,"",0,1)) -> 15.5 | K55: =IF($C55="","",_xlfn.XLOOKUP($C55,$C$12:$C$28,L$12:L$28,"",0,1)) -> 84.9 | L55: =_xlfn.XLOOKUP(C55,$C$33:$C$49,$H$33:$H$49,"",0,1) -> 00:00:12 | M55: =IF(C55="","",_xlfn.XLOOKUP(C55,$C$33:$C$49,$I$33:$I$49,"",0,1)-L55) -> 00:08:00 | O55: =VLOOKUP(C55,C34:I49,7,FALSE) -> 00:08:12
B56: =IFERROR(IF(B55+1>COUNT($I$34:$I$49),"",B55+1),"") -> 2 | C56: =IF(B56="","",_xlfn.XLOOKUP($B56,$L$34:$L$49,$C$34:$C$49,"",0,1)) -> 58 | D56: Thomas Opheim Bardal | E56: Steinkjer Skiklubb | F56: RC B | G56: =IF($C56="","",_xlfn.XLOOKUP($C56,$C$12:$C$28,H$12:H$28,"",0,1)) -> 58 | H56: =IF($C56="","",_xlfn.XLOOKUP($C56,$C$12:$C$28,I$12:I$28,"",0,1)) -> 15 | I56: =IF($C56="","",_xlfn.XLOOKUP($C56,$C$12:$C$28,J$12:J$28,"",0,1)) -> 15.5 | J56: =IF($C56="","",_xlfn.XLOOKUP($C56,$C$12:$C$28,K$12:K$28,"",0,1)) -> 15 | K56: =IF($C56="","",_xlfn.XLOOKUP($C56,$C$12:$C$28,L$12:L$28,"",0,1)) -> 88.7 | L56: =_xlfn.XLOOKUP(C56,$C$33:$C$49,$H$33:$H$49,"",0,1) -> 00:00:06 | M56: =IF(C56="","",_xlfn.XLOOKUP(C56,$C$33:$C$49,$I$33:$I$49,"",0,1)-L56) -> 00:08:10 | N56: =IF(C56="","","+") -> + | O56: =IF(C56="","",VLOOKUP($C56,$C$34:$I$49,7,0)-VLOOKUP($C$55,$C$34:$I$49,7,0)) -> 00:00:04
B57: =IFERROR(IF(B56+1>COUNT($I$34:$I$49),"",B56+1),"") -> 3 | C57: 54 | D57: Sander Grande Molden | E57: Byåsen Idrettslag | F57: RC B | G57: =IF($C57="","",_xlfn.XLOOKUP($C57,$C$12:$C$28,H$12:H$28,"",0,1)) -> 44 | H57: =IF($C57="","",_xlfn.XLOOKUP($C57,$C$12:$C$28,I$12:I$28,"",0,1)) -> 14.5 | I57: =IF($C57="","",_xlfn.XLOOKUP($C57,$C$12:$C$28,J$12:J$28,"",0,1)) -> 14.5 | J57: =IF($C57="","",_xlfn.XLOOKUP($C57,$C$12:$C$28,K$12:K$28,"",0,1)) -> 15 | K57: =IF($C57="","",_xlfn.XLOOKUP($C57,$C$12:$C$28,L$12:L$28,"",0,1)) -> 53.6 | L57: 00:00:24 | M57: 00:08:33 | N57: + | O57: =IF(C57="","",VLOOKUP($C57,$C$34:$I$49,7,0)-VLOOKUP($C$55,$C$34:$I$49,7,0)) -> 00:00:45
B58: 4 | C58: 66 | D58: Aksel Gurendal Skogstad | E58: Byåsen IL | F58: RC A | G58: =IF($C58="","",_xlfn.XLOOKUP($C58,$C$12:$C$28,H$12:H$28,"",0,1)) -> 60 | H58: =IF($C58="","",_xlfn.XLOOKUP($C58,$C$12:$C$28,I$12:I$28,"",0,1)) -> 16 | I58: =IF($C58="","",_xlfn.XLOOKUP($C58,$C$12:$C$28,J$12:J$28,"",0,1)) -> 16 | J58: =IF($C58="","",_xlfn.XLOOKUP($C58,$C$12:$C$28,K$12:K$28,"",0,1)) -> 16.5 | K58: =IF($C58="","",_xlfn.XLOOKUP($C58,$C$12:$C$28,L$12:L$28,"",0,1)) -> 96.5 | L58: 00:00:00 | M58: 00:13:11 | N58: + | O58: 00:04:59
B59: 5 | C59: 59 | D59: Aleksander Fleischer | E59: Skatval Skilag | F59: RC A | G59: =IF($C59="","",_xlfn.XLOOKUP($C59,$C$12:$C$28,H$12:H$28,"",0,1)) -> 53 | H59: =IF($C59="","",_xlfn.XLOOKUP($C59,$C$12:$C$28,I$12:I$28,"",0,1)) -> 15.5 | I59: =IF($C59="","",_xlfn.XLOOKUP($C59,$C$12:$C$28,J$12:J$28,"",0,1)) -> 15.5 | J59: =IF($C59="","",_xlfn.XLOOKUP($C59,$C$12:$C$28,K$12:K$28,"",0,1)) -> 16 | K59: =IF($C59="","",_xlfn.XLOOKUP($C59,$C$12:$C$28,L$12:L$28,"",0,1)) -> 78.2 | L59: 00:00:18 | M59: 00:16:18 | N59: + | O59: 00:08:24
G60: =IF($C60="","",_xlfn.XLOOKUP($C60,$C$12:$C$28,H$12:H$28,"",0,1)) ->  | H60: =IF($C60="","",_xlfn.XLOOKUP($C60,$C$12:$C$28,I$12:I$28,"",0,1)) ->  | I60: =IF($C60="","",_xlfn.XLOOKUP($C60,$C$12:$C$28,J$12:J$28,"",0,1)) ->  | J60: =IF($C60="","",_xlfn.XLOOKUP($C60,$C$12:$C$28,K$12:K$28,"",0,1)) ->  | K60: =IF($C60="","",_xlfn.XLOOKUP($C60,$C$12:$C$28,L$12:L$28,"",0,1)) -> 
G61: =IF($C61="","",_xlfn.XLOOKUP($C61,$C$12:$C$28,H$12:H$28,"",0,1)) ->  | H61: =IF($C61="","",_xlfn.XLOOKUP($C61,$C$12:$C$28,I$12:I$28,"",0,1)) ->  | I61: =IF($C61="","",_xlfn.XLOOKUP($C61,$C$12:$C$28,J$12:J$28,"",0,1)) ->  | J61: =IF($C61="","",_xlfn.XLOOKUP($C61,$C$12:$C$28,K$12:K$28,"",0,1)) ->  | K61: =IF($C61="","",_xlfn.XLOOKUP($C61,$C$12:$C$28,L$12:L$28,"",0,1)) -> 
G62: =IF($C62="","",_xlfn.XLOOKUP($C62,$C$12:$C$28,H$12:H$28,"",0,1)) ->  | H62: =IF($C62="","",_xlfn.XLOOKUP($C62,$C$12:$C$28,I$12:I$28,"",0,1)) ->  | I62: =IF($C62="","",_xlfn.XLOOKUP($C62,$C$12:$C$28,J$12:J$28,"",0,1)) ->  | J62: =IF($C62="","",_xlfn.XLOOKUP($C62,$C$12:$C$28,K$12:K$28,"",0,1)) ->  | K62: =IF($C62="","",_xlfn.XLOOKUP($C62,$C$12:$C$28,L$12:L$28,"",0,1)) -> 
G63: =IF($C63="","",_xlfn.XLOOKUP($C63,$C$12:$C$28,H$12:H$28,"",0,1)) ->  | H63: =IF($C63="","",_xlfn.XLOOKUP($C63,$C$12:$C$28,I$12:I$28,"",0,1)) ->  | I63: =IF($C63="","",_xlfn.XLOOKUP($C63,$C$12:$C$28,J$12:J$28,"",0,1)) ->  | J63: =IF($C63="","",_xlfn.XLOOKUP($C63,$C$12:$C$28,K$12:K$28,"",0,1)) ->  | K63: =IF($C63="","",_xlfn.XLOOKUP($C63,$C$12:$C$28,L$12:L$28,"",0,1)) -> 
G64: =IF($C64="","",_xlfn.XLOOKUP($C64,$C$12:$C$28,H$12:H$28,"",0,1)) ->  | H64: =IF($C64="","",_xlfn.XLOOKUP($C64,$C$12:$C$28,I$12:I$28,"",0,1)) ->  | I64: =IF($C64="","",_xlfn.XLOOKUP($C64,$C$12:$C$28,J$12:J$28,"",0,1)) ->  | J64: =IF($C64="","",_xlfn.XLOOKUP($C64,$C$12:$C$28,K$12:K$28,"",0,1)) ->  | K64: =IF($C64="","",_xlfn.XLOOKUP($C64,$C$12:$C$28,L$12:L$28,"",0,1)) -> 
G65: =IF($C65="","",_xlfn.XLOOKUP($C65,$C$12:$C$28,H$12:H$28,"",0,1)) ->  | H65: =IF($C65="","",_xlfn.XLOOKUP($C65,$C$12:$C$28,I$12:I$28,"",0,1)) ->  | I65: =IF($C65="","",_xlfn.XLOOKUP($C65,$C$12:$C$28,J$12:J$28,"",0,1)) ->  | J65: =IF($C65="","",_xlfn.XLOOKUP($C65,$C$12:$C$28,K$12:K$28,"",0,1)) ->  | K65: =IF($C65="","",_xlfn.XLOOKUP($C65,$C$12:$C$28,L$12:L$28,"",0,1)) -> 
G66: =IF($C66="","",_xlfn.XLOOKUP($C66,$C$12:$C$28,H$12:H$28,"",0,1)) ->  | H66: =IF($C66="","",_xlfn.XLOOKUP($C66,$C$12:$C$28,I$12:I$28,"",0,1)) ->  | I66: =IF($C66="","",_xlfn.XLOOKUP($C66,$C$12:$C$28,J$12:J$28,"",0,1)) ->  | J66: =IF($C66="","",_xlfn.XLOOKUP($C66,$C$12:$C$28,K$12:K$28,"",0,1)) ->  | K66: =IF($C66="","",_xlfn.XLOOKUP($C66,$C$12:$C$28,L$12:L$28,"",0,1)) -> 
G67: =IF($C67="","",_xlfn.XLOOKUP($C67,$C$12:$C$28,H$12:H$28,"",0,1)) ->  | H67: =IF($C67="","",_xlfn.XLOOKUP($C67,$C$12:$C$28,I$12:I$28,"",0,1)) ->  | I67: =IF($C67="","",_xlfn.XLOOKUP($C67,$C$12:$C$28,J$12:J$28,"",0,1)) ->  | J67: =IF($C67="","",_xlfn.XLOOKUP($C67,$C$12:$C$28,K$12:K$28,"",0,1)) ->  | K67: =IF($C67="","",_xlfn.XLOOKUP($C67,$C$12:$C$28,L$12:L$28,"",0,1)) -> 
G68: =IF($C68="","",_xlfn.XLOOKUP($C68,$C$12:$C$28,H$12:H$28,"",0,1)) ->  | H68: =IF($C68="","",_xlfn.XLOOKUP($C68,$C$12:$C$28,I$12:I$28,"",0,1)) ->  | I68: =IF($C68="","",_xlfn.XLOOKUP($C68,$C$12:$C$28,J$12:J$28,"",0,1)) ->  | J68: =IF($C68="","",_xlfn.XLOOKUP($C68,$C$12:$C$28,K$12:K$28,"",0,1)) ->  | K68: =IF($C68="","",_xlfn.XLOOKUP($C68,$C$12:$C$28,L$12:L$28,"",0,1)) -> 
G69: =IF($C69="","",_xlfn.XLOOKUP($C69,$C$12:$C$28,H$12:H$28,"",0,1)) ->  | H69: =IF($C69="","",_xlfn.XLOOKUP($C69,$C$12:$C$28,I$12:I$28,"",0,1)) ->  | I69: =IF($C69="","",_xlfn.XLOOKUP($C69,$C$12:$C$28,J$12:J$28,"",0,1)) ->  | J69: =IF($C69="","",_xlfn.XLOOKUP($C69,$C$12:$C$28,K$12:K$28,"",0,1)) ->  | K69: =IF($C69="","",_xlfn.XLOOKUP($C69,$C$12:$C$28,L$12:L$28,"",0,1)) -> 
G70: =IF($C70="","",_xlfn.XLOOKUP($C70,$C$12:$C$28,H$12:H$28,"",0,1)) ->  | H70: =IF($C70="","",_xlfn.XLOOKUP($C70,$C$12:$C$28,I$12:I$28,"",0,1)) ->  | I70: =IF($C70="","",_xlfn.XLOOKUP($C70,$C$12:$C$28,J$12:J$28,"",0,1)) ->  | J70: =IF($C70="","",_xlfn.XLOOKUP($C70,$C$12:$C$28,K$12:K$28,"",0,1)) ->  | K70: =IF($C70="","",_xlfn.XLOOKUP($C70,$C$12:$C$28,L$12:L$28,"",0,1)) -> 

Sheet K65 J
E2: =+'K2'!E2 -> Namsosrennet i hopp og kombinert 01.02.2026
E5: ="K"&F6 -> K65 | G5: RCA Jenter
E6: K-punkt: | F6: 65 | G6: meter
E7: Meterverdi: | F7: =VLOOKUP(F6,Meterverdier!A:B,2,FALSE) -> 2.4 | G7: poeng/meter
H9: 1. omgang | M9: 2. omgang
C10: Start- | F10: Hopp/ | R10: Poeng
B11: Plassering | C11: nr. | D11: Navn | E11: Klubb | F11: Komb | G11: F.år | H11: Lengde | I11: A | J11: B | K11: C | L11: Poeng | M11: Lengde | N11: A | O11: B | P11: C | Q11: Poeng | R11: totalt
B12: =IF(R12="","",RANK(R12,$R$12:$R$27,0)+COUNTIFS($R$12:R12,R12)-1) -> 1 | C12: 51 | D12: Olava Wesche Fossheim | E12: Byåsen IL | F12: Komb | G12: RCA | H12: 53 | I12: 15.5 | J12: 15 | K12: 15 | L12: =IF(H12="",0,60+$F$7*(H12-$F$6)+SUM(I12:K12)) -> 76.7 | M12: 52 | N12: 15 | O12: 14.5 | P12: 14.5 | Q12: =IF(M12="","",60+$F$7*(M12-$F$6)+SUM(N12:P12)) -> 72.8 | R12: =IF(AND(ISNUMBER(L12),ISNUMBER(Q12)),L12+Q12,0) -> 149.5
B13: =IF(R13="","",RANK(R13,$R$12:$R$27,0)+COUNTIFS($R$12:R13,R13)-1) -> 2 | L13: 0 | Q13: =IF(M13="","",60+$F$7*(M13-$F$6)+SUM(N13:P13)) ->  | R13: 0
B14: =IF(R14="","",RANK(R14,$R$12:$R$27,0)+COUNTIFS($R$12:R14,R14)-1) -> 3 | L14: 0 | Q14: =IF(M14="","",60+$F$7*(M14-$F$6)+SUM(N14:P14)) ->  | R14: 0
B15: =IF(R15="","",RANK(R15,$R$12:$R$27,0)+COUNTIFS($R$12:R15,R15)-1) -> 4 | L15: 0 | Q15: =IF(M15="","",60+$F$7*(M15-$F$6)+SUM(N15:P15)) ->  | R15: 0
B16: =IF(R16="","",RANK(R16,$R$12:$R$27,0)+COUNTIFS($R$12:R16,R16)-1) -> 5 | L16: 0 | R16: 0
B17: =IF(R17="","",RANK(R17,$R$12:$R$27,0)+COUNTIFS($R$12:R17,R17)-1) -> 6 | L17: 0 | R17: 0
B18: =IF(R18="","",RANK(R18,$R$12:$R$27,0)+COUNTIFS($R$12:R18,R18)-1) -> 7 | L18: 0 | R18: 0
B19: =IF(R19="","",RANK(R19,$R$12:$R$27,0)+COUNTIFS($R$12:R19,R19)-1) -> 8 | L19: 0 | R19: 0
B20: =IF(R20="","",RANK(R20,$R$12:$R$27,0)+COUNTIFS($R$12:R20,R20)-1) -> 9 | L20: 0 | R20: 0
B21: =IF(R21="","",RANK(R21,$R$12:$R$27,0)+COUNTIFS($R$12:R21,R21)-1) -> 10 | L21: 0 | R21: 0
B22: =IF(R22="","",RANK(R22,$R$12:$R$27,0)+COUNTIFS($R$12:R22,R22)-1) -> 11 | L22: 0 | R22: 0
B23: =IF(R23="","",RANK(R23,$R$12:$R$27,0)+COUNTIFS($R$12:R23,R23)-1) -> 12 | L23: 0 | R23: 0
B24: =IF(R24="","",RANK(R24,$R$12:$R$27,0)+COUNTIFS($R$12:R24,R24)-1) -> 13 | L24: 0 | R24: 0
B25: =IF(R25="","",RANK(R25,$R$12:$R$27,0)+COUNTIFS($R$12:R25,R25)-1) -> 14 | L25: 0 | R25: 0
B26: =IF(R26="","",RANK(R26,$R$12:$R$27,0)+COUNTIFS($R$12:R26,R26)-1) -> 15 | L26: 0 | R26: 0
B27: =IF(R27="","",RANK(R27,$R$12:$R$27,0)+COUNTIFS($R$12:R27,R27)-1) -> 16 | L27: 0 | R27: 0
K28: =IF(G28="","",60+$F$7*(G28-$F$6)+SUM(H28:J28)) ->  | P28: =IF(L28="","",60+$F$7*(L28-$F$6)+SUM(M28:O28)) ->  | Q28: =IF(AND(ISNUMBER(K28),ISNUMBER(P28)),K28+P28,"") -> 
E30: Startliste kombinert - individuell kompakt
B32: Plass. Hopp 1. omg | C32: Start nr. | D32: Navn | E32: Klubb | F32: F.år | G32: Poeng hopp | H32: Start tid | I32: Tid i mål MM:SS,T | L32: Plassering
B33: =IF(COUNTIF($F$12:$F$27,"Komb")>0,1,"") -> 1 | C33: =_xlfn._xlws.SORT(_xlfn.HSTACK(_xlfn._xlws.FILTER($C$12:$E$27,$F$12:$F$27="Komb",$L$12:$L$27>0),_xlfn._xlws.FILTER($G$12:$G$27,$F$12:$F$27="Komb",$L$12:$L$27>0),_xlfn._xlws.FILTER($L$12:$L$27,$F$12:$F$27="Komb",$L$12:$L$27>0)),5,-1) -> 51 | D33: Olava Wesche Fossheim | E33: Byåsen IL | F33: RCA | G33: 76.7 | H33: =TIME(0,0,0) -> 00:00:00 | I33: 00:08:05 | L33: =IF(C33="","",RANK(I33,$I$33:$I$48,1)+COUNTIF($I$33:I33,I33)-1) -> 1
B34: =IFERROR(IF(B33+1>COUNTIF($F$12:$F$27,"Komb"),"",B33+1),"") ->  | H34: =IF(B34="","",H33+TIME(0,0,6)) ->  | L34: =IF(C34="","",RANK(I34,$I$33:$I$48,1)+COUNTIF($I$33:I34,I34)-1) -> 
B35: =IFERROR(IF(B34+1>COUNTIF($F$12:$F$27,"Komb"),"",B34+1),"") ->  | H35: =IF(B35="","",H34+TIME(0,0,6)) ->  | L35: =IF(C35="","",RANK(I35,$I$33:$I$48,1)+COUNTIF($I$33:I35,I35)-1) -> 
L36: =IF(C36="","",RANK(I36,$I$33:$I$48,1)+COUNTIF($I$33:I36,I36)-1) -> 
L37: =IF(C37="","",RANK(I37,$I$33:$I$48,1)+COUNTIF($I$33:I37,I37)-1) -> 
L38: =IF(C38="","",RANK(I38,$I$33:$I$48,1)+COUNTIF($I$33:I38,I38)-1) -> 
L39: =IF(C39="","",RANK(I39,$I$33:$I$48,1)+COUNTIF($I$33:I39,I39)-1) -> 
L40: =IF(C40="","",RANK(I40,$I$33:$I$48,1)+COUNTIF($I$33:I40,I40)-1) -> 
L41: =IF(C41="","",RANK(I41,$I$33:$I$48,1)+COUNTIF($I$33:I41,I41)-1) -> 
L42: =IF(C42="","",RANK(I42,$I$33:$I$48,1)+COUNTIF($I$33:I42,I42)-1) -> 
L43: =IF(C43="","",RANK(I43,$I$33:$I$48,1)+COUNTIF($I$33:I43,I43)-1) -> 
L44: =IF(C44="","",RANK(I44,$I$33:$I$48,1)+COUNTIF($I$33:I44,I44)-1) -> 
L45: =IF(C45="","",RANK(I45,$I$33:$I$48,1)+COUNTIF($I$33:I45,I45)-1) -> 
L46: =IF(C46="","",RANK(I46,$I$33:$I$48,1)+COUNTIF($I$33:I46,I46)-1) -> 
L47: =IF(C47="","",RANK(I47,$I$33:$I$48,1)+COUNTIF($I$33:I47,I47)-1) -> 
L48: =IF(C48="","",RANK(I48,$I$33:$I$48,1)+COUNTIF($I$33:I48,I48)-1) -> 
E51: Resultatliste kombinert - individuell kompakt
B53: Plass | C53: Start nr. | D53: Navn | E53: Klubb | F53: F.år | G53: Lengde | H53: A | I53: B | J53: C | K53: Poeng Hopp | L53: Starttid langrenn | M53: Tid langr | O53: Tid i mål
B54: =IF(COUNT($I$33:$I$48)>0,1,"") -> 1 | C54: =IF(B54="","",_xlfn.XLOOKUP($B54,$L$33:$L$48,$C$33:$C$48,"",0,1)) -> 51 | D54: =IF(C54="","",_xlfn.XLOOKUP($C54,$C$33:$C$48,D$33:D$48,"",0,1)) -> Olava Wesche Fossheim | E54: =IF(D54="","",_xlfn.XLOOKUP($C54,$C$33:$C$48,E$33:E$48,"",0,1)) -> Byåsen IL | F54: RCA | G54: =IF($C54="","",_xlfn.XLOOKUP($C54,$C$12:$C$27,H$12:H$27,"",0,1)) -> 53 | H54: =IF($C54="","",_xlfn.XLOOKUP($C54,$C$12:$C$27,I$12:I$27,"",0,1)) -> 15.5 | I54: 15 | J54: 15 | K54: 76.7 | L54: =_xlfn.XLOOKUP(C54,$C$32:$C$48,$H$32:$H$48,"",0,1) -> 00:00:00 | M54: =IF(C54="","",_xlfn.XLOOKUP(C54,$C$32:$C$48,$I$32:$I$48,"",0,1)-L54) -> 00:08:05 | O54: =VLOOKUP(C54,C33:I48,7,FALSE) -> 00:08:05
B55: =IFERROR(IF(B54+1>COUNT($I$33:$I$48),"",B54+1),"") ->  | C55: =IF(B55="","",_xlfn.XLOOKUP($B55,$L$33:$L$48,$C$33:$C$48,"",0,1)) ->  | G55: =IF($C55="","",_xlfn.XLOOKUP($C55,$C$12:$C$27,H$12:H$27,"",0,1)) ->  | L55: =_xlfn.XLOOKUP(C55,$C$32:$C$48,$H$32:$H$48,"",0,1) ->  | M55: =IF(C55="","",_xlfn.XLOOKUP(C55,$C$32:$C$48,$I$32:$I$48,"",0,1)-L55) ->  | N55: =IF(C55="","","+") ->  | O55: =IF(C55="","",VLOOKUP($C55,$C$33:$I$48,7,0)-VLOOKUP($C$54,$C$33:$I$48,7,0)) -> 
B56: =IFERROR(IF(B55+1>COUNT($I$33:$I$48),"",B55+1),"") ->  | O56: =IF(C56="","",VLOOKUP($C56,$C$33:$I$48,7,0)-VLOOKUP($C$54,$C$33:$I$48,7,0)) -> 

Sheet Ledig (2)
E2: =+'K2'!E2 -> Namsosrennet i hopp og kombinert 01.02.2026
E5: ="K"&F6 -> K45 | G5: Steinkjerrennet 31.01.2026
E6: K-punkt: | F6: 45 | G6: meter
E7: Meterverdi: | F7: =VLOOKUP(F6,Meterverdier!A:B,2,FALSE) -> 3.2 | G7: poeng/meter
H9: 1. omgang | M9: 2. omgang
C10: Start- | F10: Hopp/ | R10: Poeng
B11: Plassering | C11: nr. | D11: Navn | E11: Klubb | F11: Komb | G11: F.år | H11: Lengde | I11: A | J11: B | K11: C | L11: Poeng | M11: Lengde | N11: A | O11: B | P11: C | Q11: Poeng | R11: totalt
B12: =IF(R12="","",RANK(R12,$R$12:$R$28,0)+COUNTIFS($R$12:R12,R12)-1) -> 2 | C12: 51 | D12: Elise Skjeflo | E12: Steinkjer Skiklubb | H12: 31 | I12: 15 | J12: 14.5 | K12: 13.5 | L12: =IF(H12="",0,60+$F$7*(H12-$F$6)+SUM(I12:K12)) -> 58.2 | M12: 31.5 | N12: 15.5 | O12: 15.5 | P12: 14.5 | Q12: =IF(M12="","",60+$F$7*(M12-$F$6)+SUM(N12:P12)) -> 62.3 | R12: =IF(AND(ISNUMBER(L12),ISNUMBER(Q12)),L12+Q12,0) -> 120.5
B13: =IF(R13="","",RANK(R13,$R$12:$R$28,0)+COUNTIFS($R$12:R13,R13)-1) -> 1 | C13: 52 | D13: Kristine Storø | E13: Namsos IL Hopp | H13: 33 | I13: 15 | J13: 14.5 | K13: 13.5 | L13: 64.6 | M13: 32.5 | N13: 15.5 | O13: 15 | P13: 14 | Q13: =IF(M13="","",60+$F$7*(M13-$F$6)+SUM(N13:P13)) -> 64.5 | R13: 129.1
B14: 3 | C14: 53 | D14: Ane Marie Kimo | E14: Fjellørnen IL | H14: 27 | I14: 14 | J14: 14 | K14: 12.5 | L14: 42.9 | M14: 28 | N14: 14.5 | O14: 14.5 | P14: 13 | Q14: =IF(M14="","",60+$F$7*(M14-$F$6)+SUM(N14:P14)) -> 47.6 | R14: 90.5
C15: 54 | D15: Filippa Nordseth Fredriksen | E15: Namsos IL Hopp | H15: 29 | I15: 7 | J15: 7 | K15: 7 | M15: 28 | N15: 14 | O15: 15 | P15: 13
L16: 0 | Q16: =IF(M16="","",60+$F$7*(M16-$F$6)+SUM(N16:P16)) ->  | R16: 0
B17: 1 | C17: 56 | D17: Marius Pleym Fiskum | E17: Overhalla IL | H17: 29 | I17: 13.5 | J17: 13.5 | K17: 13 | L17: 48.8 | M17: 28 | N17: 14 | O17: 14.5 | P17: 12.5 | Q17: 46.6 | R17: 95.4
L18: 0 | R18: 0
L19: 0 | R19: 0
L20: 0 | R20: 0
L21: 0 | R21: 0
L22: 0 | R22: 0
L23: 0 | R23: 0
L24: 0 | R24: 0
L25: 0 | R25: 0
L26: 0 | R26: 0
L27: 0 | R27: 0
L28: 0 | R28: 0
K29: =IF(G29="","",60+$F$7*(G29-$F$6)+SUM(H29:J29)) ->  | P29: =IF(L29="","",60+$F$7*(L29-$F$6)+SUM(M29:O29)) ->  | Q29: =IF(AND(ISNUMBER(K29),ISNUMBER(P29)),K29+P29,"") -> 
E31: Startliste kombinert - individuell kompakt
B33: Plass. Hopp 1. omg | C33: Start nr. | D33: Navn | E33: Klubb | F33: F.år | G33: Poeng hopp | H33: Start tid | I33: Tid i mål MM:SS,T | L33: Plassering
B34: =IF(COUNTIF($F$12:$F$28,"Komb")>0,1,"") ->  | C34: =_xlfn._xlws.SORT(_xlfn.HSTACK(_xlfn._xlws.FILTER($C$12:$E$28,$F$12:$F$28="Komb",$L$12:$L$28>0),_xlfn._xlws.FILTER($G$12:$G$28,$F$12:$F$28="Komb",$L$12:$L$28>0),_xlfn._xlws.FILTER($L$12:$L$28,$F$12:$F$28="Komb",$L$12:$L$28>0)),5,-1) ->  | H34: =TIME(0,0,0) -> 00:00:00 | I34: 00:04:29 | L34: =IF(C34="","",RANK(I34,$I$34:$I$49,1)+COUNTIF($I$34:I34,I34)-1) -> 
B35: =IFERROR(IF(B34+1>COUNTIF($F$12:$F$28,"Komb"),"",B34+1),"") ->  | H35: =IF(B35="","",H34+TIME(0,0,6)) ->  | L35: =IF(C35="","",RANK(I35,$I$34:$I$49,1)+COUNTIF($I$34:I35,I35)-1) -> 
B36: =IFERROR(IF(B35+1>COUNTIF($F$12:$F$28,"Komb"),"",B35+1),"") ->  | H36: =IF(B36="","",H35+TIME(0,0,6)) ->  | L36: =IF(C36="","",RANK(I36,$I$34:$I$49,1)+COUNTIF($I$34:I36,I36)-1) -> 
B37: =IFERROR(IF(B36+1>COUNTIF($F$12:$F$28,"Komb"),"",B36+1),"") ->  | L37: =IF(C37="","",RANK(I37,$I$34:$I$49,1)+COUNTIF($I$34:I37,I37)-1) -> 
B38: =IFERROR(IF(B37+1>COUNTIF($F$12:$F$28,"Komb"),"",B37+1),"") ->  | L38: =IF(C38="","",RANK(I38,$I$34:$I$49,1)+COUNTIF($I$34:I38,I38)-1) -> 
B39: =IFERROR(IF(B38+1>COUNTIF($F$12:$F$28,"Komb"),"",B38+1),"") ->  | L39: =IF(C39="","",RANK(I39,$I$34:$I$49,1)+COUNTIF($I$34:I39,I39)-1) -> 
B40: =IFERROR(IF(B39+1>COUNTIF($F$12:$F$28,"Komb"),"",B39+1),"") ->  | L40: =IF(C40="","",RANK(I40,$I$34:$I$49,1)+COUNTIF($I$34:I40,I40)-1) -> 
B41: =IFERROR(IF(B40+1>COUNTIF($F$12:$F$28,"Komb"),"",B40+1),"") ->  | L41: =IF(C41="","",RANK(I41,$I$34:$I$49,1)+COUNTIF($I$34:I41,I41)-1) -> 
B42: =IFERROR(IF(B41+1>COUNTIF($F$12:$F$28,"Komb"),"",B41+1),"") ->  | L42: =IF(C42="","",RANK(I42,$I$34:$I$49,1)+COUNTIF($I$34:I42,I42)-1) -> 
B43: =IFERROR(IF(B42+1>COUNTIF($F$12:$F$28,"Komb"),"",B42+1),"") ->  | L43: =IF(C43="","",RANK(I43,$I$34:$I$49,1)+COUNTIF($I$34:I43,I43)-1) -> 
B44: =IFERROR(IF(B43+1>COUNTIF($F$12:$F$28,"Komb"),"",B43+1),"") ->  | L44: =IF(C44="","",RANK(I44,$I$34:$I$49,1)+COUNTIF($I$34:I44,I44)-1) -> 
B45: =IFERROR(IF(B44+1>COUNTIF($F$12:$F$28,"Komb"),"",B44+1),"") ->  | L45: =IF(C45="","",RANK(I45,$I$34:$I$49,1)+COUNTIF($I$34:I45,I45)-1) -> 
B46: =IFERROR(IF(B45+1>COUNTIF($F$12:$F$28,"Komb"),"",B45+1),"") ->  | L46: =IF(C46="","",RANK(I46,$I$34:$I$49,1)+COUNTIF($I$34:I46,I46)-1) -> 
B47: =IFERROR(IF(B46+1>COUNTIF($F$12:$F$28,"Komb"),"",B46+1),"") ->  | L47: =IF(C47="","",RANK(I47,$I$34:$I$49,1)+COUNTIF($I$34:I47,I47)-1) -> 
B48: =IFERROR(IF(B47+1>COUNTIF($F$12:$F$28,"Komb"),"",B47+1),"") ->  | L48: =IF(C48="","",RANK(I48,$I$34:$I$49,1)+COUNTIF($I$34:I48,I48)-1) -> 
B49: =IFERROR(IF(B48+1>COUNTIF($F$12:$F$28,"Komb"),"",B48+1),"") ->  | L49: =IF(C49="","",RANK(I49,$I$34:$I$49,1)+COUNTIF($I$34:I49,I49)-1) -> 
E52: Resultatliste kombinert - individuell kompakt
B54: Plass | C54: Start nr. | D54: Navn | E54: Klubb | F54: F.år | G54: Lengde | H54: A | I54: B | J54: C | K54: Poeng Hopp | L54: Starttid langrenn | M54: Tid langr | O54: Tid i mål
B55: =IF(COUNT($I$34:$I$49)>0,1,"") -> 1 | C55: =IF(B55="","",_xlfn.XLOOKUP($B55,$L$34:$L$49,$C$34:$C$49,"",0,1)) ->  | D55: =IF(C55="","",_xlfn.XLOOKUP($C55,$C$34:$C$49,D$34:D$49,"",0,1)) ->  | G55: =IF($C55="","",_xlfn.XLOOKUP($C55,$C$12:$C$28,H$12:H$28,"",0,1)) ->  | H55: =IF($C55="","",_xlfn.XLOOKUP($C55,$C$12:$C$28,I$12:I$28,"",0,1)) ->  | L55: =_xlfn.XLOOKUP(C55,$C$33:$C$49,$H$33:$H$49,"",0,1) ->  | M55: =IF(C55="","",_xlfn.XLOOKUP(C55,$C$33:$C$49,$I$33:$I$49,"",0,1)-L55) ->  | O55: =VLOOKUP(C55,C34:I49,7,FALSE) -> 
B56: =IFERROR(IF(B55+1>COUNT($I$34:$I$49),"",B55+1),"") ->  | C56: =IF(B56="","",_xlfn.XLOOKUP($B56,$L$34:$L$49,$C$34:$C$49,"",0,1)) ->  | G56: =IF($C56="","",_xlfn.XLOOKUP($C56,$C$12:$C$28,H$12:H$28,"",0,1)) ->  | H56: =IF($C56="","",_xlfn.XLOOKUP($C56,$C$12:$C$28,I$12:I$28,"",0,1)) ->  | I56: =IF($C56="","",_xlfn.XLOOKUP($C56,$C$12:$C$28,J$12:J$28,"",0,1)) ->  | J56: =IF($C56="","",_xlfn.XLOOKUP($C56,$C$12:$C$28,K$12:K$28,"",0,1)) ->  | K56: =IF($C56="","",_xlfn.XLOOKUP($C56,$C$12:$C$28,L$12:L$28,"",0,1)) ->  | L56: =_xlfn.XLOOKUP(C56,$C$33:$C$49,$H$33:$H$49,"",0,1) ->  | M56: =IF(C56="","",_xlfn.XLOOKUP(C56,$C$33:$C$49,$I$33:$I$49,"",0,1)-L56) ->  | N56: =IF(C56="","","+") ->  | O56: =IF(C56="","",VLOOKUP($C56,$C$34:$I$49,7,0)-VLOOKUP($C$55,$C$34:$I$49,7,0)) -> 
B57: =IFERROR(IF(B56+1>COUNT($I$34:$I$49),"",B56+1),"") ->  | G57: =IF($C57="","",_xlfn.XLOOKUP($C57,$C$12:$C$28,H$12:H$28,"",0,1)) ->  | H57: =IF($C57="","",_xlfn.XLOOKUP($C57,$C$12:$C$28,I$12:I$28,"",0,1)) ->  | I57: =IF($C57="","",_xlfn.XLOOKUP($C57,$C$12:$C$28,J$12:J$28,"",0,1)) ->  | J57: =IF($C57="","",_xlfn.XLOOKUP($C57,$C$12:$C$28,K$12:K$28,"",0,1)) ->  | K57: =IF($C57="","",_xlfn.XLOOKUP($C57,$C$12:$C$28,L$12:L$28,"",0,1)) ->  | O57: =IF(C57="","",VLOOKUP($C57,$C$34:$I$49,7,0)-VLOOKUP($C$55,$C$34:$I$49,7,0)) -> 
G58: =IF($C58="","",_xlfn.XLOOKUP($C58,$C$12:$C$28,H$12:H$28,"",0,1)) ->  | H58: =IF($C58="","",_xlfn.XLOOKUP($C58,$C$12:$C$28,I$12:I$28,"",0,1)) ->  | I58: =IF($C58="","",_xlfn.XLOOKUP($C58,$C$12:$C$28,J$12:J$28,"",0,1)) ->  | J58: =IF($C58="","",_xlfn.XLOOKUP($C58,$C$12:$C$28,K$12:K$28,"",0,1)) ->  | K58: =IF($C58="","",_xlfn.XLOOKUP($C58,$C$12:$C$28,L$12:L$28,"",0,1)) -> 
G59: =IF($C59="","",_xlfn.XLOOKUP($C59,$C$12:$C$28,H$12:H$28,"",0,1)) ->  | H59: =IF($C59="","",_xlfn.XLOOKUP($C59,$C$12:$C$28,I$12:I$28,"",0,1)) ->  | I59: =IF($C59="","",_xlfn.XLOOKUP($C59,$C$12:$C$28,J$12:J$28,"",0,1)) ->  | J59: =IF($C59="","",_xlfn.XLOOKUP($C59,$C$12:$C$28,K$12:K$28,"",0,1)) ->  | K59: =IF($C59="","",_xlfn.XLOOKUP($C59,$C$12:$C$28,L$12:L$28,"",0,1)) -> 
G60: =IF($C60="","",_xlfn.XLOOKUP($C60,$C$12:$C$28,H$12:H$28,"",0,1)) ->  | H60: =IF($C60="","",_xlfn.XLOOKUP($C60,$C$12:$C$28,I$12:I$28,"",0,1)) ->  | I60: =IF($C60="","",_xlfn.XLOOKUP($C60,$C$12:$C$28,J$12:J$28,"",0,1)) ->  | J60: =IF($C60="","",_xlfn.XLOOKUP($C60,$C$12:$C$28,K$12:K$28,"",0,1)) ->  | K60: =IF($C60="","",_xlfn.XLOOKUP($C60,$C$12:$C$28,L$12:L$28,"",0,1)) -> 
G61: =IF($C61="","",_xlfn.XLOOKUP($C61,$C$12:$C$28,H$12:H$28,"",0,1)) ->  | H61: =IF($C61="","",_xlfn.XLOOKUP($C61,$C$12:$C$28,I$12:I$28,"",0,1)) ->  | I61: =IF($C61="","",_xlfn.XLOOKUP($C61,$C$12:$C$28,J$12:J$28,"",0,1)) ->  | J61: =IF($C61="","",_xlfn.XLOOKUP($C61,$C$12:$C$28,K$12:K$28,"",0,1)) ->  | K61: =IF($C61="","",_xlfn.XLOOKUP($C61,$C$12:$C$28,L$12:L$28,"",0,1)) -> 
G62: =IF($C62="","",_xlfn.XLOOKUP($C62,$C$12:$C$28,H$12:H$28,"",0,1)) ->  | H62: =IF($C62="","",_xlfn.XLOOKUP($C62,$C$12:$C$28,I$12:I$28,"",0,1)) ->  | I62: =IF($C62="","",_xlfn.XLOOKUP($C62,$C$12:$C$28,J$12:J$28,"",0,1)) ->  | J62: =IF($C62="","",_xlfn.XLOOKUP($C62,$C$12:$C$28,K$12:K$28,"",0,1)) ->  | K62: =IF($C62="","",_xlfn.XLOOKUP($C62,$C$12:$C$28,L$12:L$28,"",0,1)) -> 
G63: =IF($C63="","",_xlfn.XLOOKUP($C63,$C$12:$C$28,H$12:H$28,"",0,1)) ->  | H63: =IF($C63="","",_xlfn.XLOOKUP($C63,$C$12:$C$28,I$12:I$28,"",0,1)) ->  | I63: =IF($C63="","",_xlfn.XLOOKUP($C63,$C$12:$C$28,J$12:J$28,"",0,1)) ->  | J63: =IF($C63="","",_xlfn.XLOOKUP($C63,$C$12:$C$28,K$12:K$28,"",0,1)) ->  | K63: =IF($C63="","",_xlfn.XLOOKUP($C63,$C$12:$C$28,L$12:L$28,"",0,1)) -> 
G64: =IF($C64="","",_xlfn.XLOOKUP($C64,$C$12:$C$28,H$12:H$28,"",0,1)) ->  | H64: =IF($C64="","",_xlfn.XLOOKUP($C64,$C$12:$C$28,I$12:I$28,"",0,1)) ->  | I64: =IF($C64="","",_xlfn.XLOOKUP($C64,$C$12:$C$28,J$12:J$28,"",0,1)) ->  | J64: =IF($C64="","",_xlfn.XLOOKUP($C64,$C$12:$C$28,K$12:K$28,"",0,1)) ->  | K64: =IF($C64="","",_xlfn.XLOOKUP($C64,$C$12:$C$28,L$12:L$28,"",0,1)) -> 
G65: =IF($C65="","",_xlfn.XLOOKUP($C65,$C$12:$C$28,H$12:H$28,"",0,1)) ->  | H65: =IF($C65="","",_xlfn.XLOOKUP($C65,$C$12:$C$28,I$12:I$28,"",0,1)) ->  | I65: =IF($C65="","",_xlfn.XLOOKUP($C65,$C$12:$C$28,J$12:J$28,"",0,1)) ->  | J65: =IF($C65="","",_xlfn.XLOOKUP($C65,$C$12:$C$28,K$12:K$28,"",0,1)) ->  | K65: =IF($C65="","",_xlfn.XLOOKUP($C65,$C$12:$C$28,L$12:L$28,"",0,1)) -> 
G66: =IF($C66="","",_xlfn.XLOOKUP($C66,$C$12:$C$28,H$12:H$28,"",0,1)) ->  | H66: =IF($C66="","",_xlfn.XLOOKUP($C66,$C$12:$C$28,I$12:I$28,"",0,1)) ->  | I66: =IF($C66="","",_xlfn.XLOOKUP($C66,$C$12:$C$28,J$12:J$28,"",0,1)) ->  | J66: =IF($C66="","",_xlfn.XLOOKUP($C66,$C$12:$C$28,K$12:K$28,"",0,1)) ->  | K66: =IF($C66="","",_xlfn.XLOOKUP($C66,$C$12:$C$28,L$12:L$28,"",0,1)) -> 
G67: =IF($C67="","",_xlfn.XLOOKUP($C67,$C$12:$C$28,H$12:H$28,"",0,1)) ->  | H67: =IF($C67="","",_xlfn.XLOOKUP($C67,$C$12:$C$28,I$12:I$28,"",0,1)) ->  | I67: =IF($C67="","",_xlfn.XLOOKUP($C67,$C$12:$C$28,J$12:J$28,"",0,1)) ->  | J67: =IF($C67="","",_xlfn.XLOOKUP($C67,$C$12:$C$28,K$12:K$28,"",0,1)) ->  | K67: =IF($C67="","",_xlfn.XLOOKUP($C67,$C$12:$C$28,L$12:L$28,"",0,1)) -> 
G68: =IF($C68="","",_xlfn.XLOOKUP($C68,$C$12:$C$28,H$12:H$28,"",0,1)) ->  | H68: =IF($C68="","",_xlfn.XLOOKUP($C68,$C$12:$C$28,I$12:I$28,"",0,1)) ->  | I68: =IF($C68="","",_xlfn.XLOOKUP($C68,$C$12:$C$28,J$12:J$28,"",0,1)) ->  | J68: =IF($C68="","",_xlfn.XLOOKUP($C68,$C$12:$C$28,K$12:K$28,"",0,1)) ->  | K68: =IF($C68="","",_xlfn.XLOOKUP($C68,$C$12:$C$28,L$12:L$28,"",0,1)) -> 
G69: =IF($C69="","",_xlfn.XLOOKUP($C69,$C$12:$C$28,H$12:H$28,"",0,1)) ->  | H69: =IF($C69="","",_xlfn.XLOOKUP($C69,$C$12:$C$28,I$12:I$28,"",0,1)) ->  | I69: =IF($C69="","",_xlfn.XLOOKUP($C69,$C$12:$C$28,J$12:J$28,"",0,1)) ->  | J69: =IF($C69="","",_xlfn.XLOOKUP($C69,$C$12:$C$28,K$12:K$28,"",0,1)) ->  | K69: =IF($C69="","",_xlfn.XLOOKUP($C69,$C$12:$C$28,L$12:L$28,"",0,1)) -> 
G70: =IF($C70="","",_xlfn.XLOOKUP($C70,$C$12:$C$28,H$12:H$28,"",0,1)) ->  | H70: =IF($C70="","",_xlfn.XLOOKUP($C70,$C$12:$C$28,I$12:I$28,"",0,1)) ->  | I70: =IF($C70="","",_xlfn.XLOOKUP($C70,$C$12:$C$28,J$12:J$28,"",0,1)) ->  | J70: =IF($C70="","",_xlfn.XLOOKUP($C70,$C$12:$C$28,K$12:K$28,"",0,1)) ->  | K70: =IF($C70="","",_xlfn.XLOOKUP($C70,$C$12:$C$28,L$12:L$28,"",0,1)) -> 

Sheet Ledig (3)
E2: =+'K2'!E2 -> Namsosrennet i hopp og kombinert 01.02.2026
E5: ="K"&F6 -> K65 | G5: Steinkjerrennet 31.01.2026
E6: K-punkt: | F6: 65 | G6: meter
E7: Meterverdi: | F7: =VLOOKUP(F6,Meterverdier!A:B,2,FALSE) -> 2.4 | G7: poeng/meter
H9: 1. omgang | M9: 2. omgang
C10: Start- | F10: Hopp/ | R10: Poeng
B11: Plassering | C11: nr. | D11: Navn | E11: Klubb | F11: Komb | G11: F.år | H11: Lengde | I11: A | J11: B | K11: C | L11: Poeng | M11: Lengde | N11: A | O11: B | P11: C | Q11: Poeng | R11: totalt
B12: 1 | C12: 61 | D12: Olava Wesche Fossheim | E12: Byåsen IL | F12: Hopp | H12: 48 | I12: 16.5 | J12: 16.5 | K12: 16 | L12: =IF(H12="",0,60+$F$7*(H12-$F$6)+SUM(I12:K12)) -> 68.2 | M12: 53 | N12: 17 | O12: 17 | P12: 16 | Q12: =IF(M12="","",60+$F$7*(M12-$F$6)+SUM(N12:P12)) -> 81.2 | R12: =IF(AND(ISNUMBER(L12),ISNUMBER(Q12)),L12+Q12,0) -> 149.4
B13: 2 | C13: 62 | D13: Anna Ervik Aune | E13: Byåsen IL | F13: Hopp | H13: 41 | I13: 14.5 | J13: 15 | K13: 13.5 | L13: 45.4 | M13: 40 | N13: 14.5 | O13: 15.5 | P13: 13.5 | Q13: =IF(M13="","",60+$F$7*(M13-$F$6)+SUM(N13:P13)) -> 43.5 | R13: =IF(AND(ISNUMBER(L13),ISNUMBER(Q13)),L13+Q13,0) -> 88.9
L14: 0 | Q14: =IF(M14="","",60+$F$7*(M14-$F$6)+SUM(N14:P14)) ->  | R14: =IF(AND(ISNUMBER(L14),ISNUMBER(Q14)),L14+Q14,0) -> 0
B15: 5 | C15: 63 | D15: Mikkel Holth Vårvik | E15: Byåsen IL | F15: Hopp | H15: 52 | I15: 16 | J15: 16 | K15: 14.5 | L15: =IF(H15="",0,60+$F$7*(H15-$F$6)+SUM(I15:K15)) -> 75.3 | M15: 53 | N15: 17 | O15: 16 | P15: 14.5 | Q15: =IF(M15="","",60+$F$7*(M15-$F$6)+SUM(N15:P15)) -> 78.7 | R15: =IF(AND(ISNUMBER(L15),ISNUMBER(Q15)),L15+Q15,0) -> 154
B16: 6 | C16: 64 | D16: Sander Grande Molden | E16: Byåsen IL | F16: Hopp | H16: 40 | I16: 14 | J16: 14 | K16: 13 | L16: 41 | M16: 43 | N16: 15 | O16: 16.5 | P16: 15 | Q16: =IF(M16="","",60+$F$7*(M16-$F$6)+SUM(N16:P16)) -> 53.7 | R16: =IF(AND(ISNUMBER(L16),ISNUMBER(Q16)),L16+Q16,0) -> 94.7
B17: =IF(R17="","",RANK(R17,$R$12:$R$27,0)+COUNTIFS($R$12:R17,R17)-1) -> 2 | C17: 65 | D17: Sondre Hegseth Volden | E17: Byåsen IL | F17: Hopp | H17: 61 | I17: 17 | J17: 17 | K17: 17 | L17: 101.4 | M17: 59 | N17: 16.5 | O17: 16.5 | P17: 16.5 | Q17: 95.1 | R17: =IF(AND(ISNUMBER(L17),ISNUMBER(Q17)),L17+Q17,0) -> 196.5
B18: 4 | C18: 66 | D18: Thomas Opheim Bardal | E18: Steinkjer Skiklubb | F18: Hopp | H18: 55 | I18: 15.5 | J18: 15.5 | K18: 16 | L18: 83 | M18: 56 | N18: 15.5 | O18: 15.5 | P18: 16 | Q18: 85.4 | R18: =IF(AND(ISNUMBER(L18),ISNUMBER(Q18)),L18+Q18,0) -> 168.4
B19: =IF(R19="","",RANK(R19,$R$12:$R$27,0)+COUNTIFS($R$12:R19,R19)-1) -> 1 | C19: 67 | D19: Akeksander Fleischer | E19: Skatval IL | F19: Hopp | H19: 63 | I19: 17.5 | J19: 17.5 | K19: 18 | L19: 108.2 | M19: 66 | N19: 17.5 | O19: 18 | P19: 18 | Q19: 115.9 | R19: =IF(AND(ISNUMBER(L19),ISNUMBER(Q19)),L19+Q19,0)+50 -> 274.1
B20: =IF(R20="","",RANK(R20,$R$12:$R$27,0)+COUNTIFS($R$12:R20,R20)-1) -> 3 | C20: 68 | D20: Aksel Gurendasl Skogstad | E20: Byåsen IL | F20: Hopp | H20: 64 | I20: 14 | J20: 14 | K20: 14.5 | L20: 100.1 | M20: 57 | N20: 15.5 | O20: 16.5 | P20: 16.5 | Q20: 89.3 | R20: =IF(AND(ISNUMBER(L20),ISNUMBER(Q20)),L20+Q20,0) -> 189.4
L22: 0 | R22: =IF(AND(ISNUMBER(L22),ISNUMBER(Q22)),L22+Q22,0) -> 0
B23: 1 | C23: 71 | D23: Henrik Storø | E23: Namsos IL Hopp | F23: Hopp | G23: Jun | H23: 58.5 | I23: 15.5 | J23: 15.5 | K23: 15.5 | L23: 90.9 | M23: 60 | N23: 15 | O23: 15 | P23: 15 | Q23: 93 | R23: =IF(AND(ISNUMBER(L23),ISNUMBER(Q23)),L23+Q23,0) -> 183.9
L24: 0 | R24: =IF(AND(ISNUMBER(L24),ISNUMBER(Q24)),L24+Q24,0) -> 0
L25: 0 | R25: =IF(AND(ISNUMBER(L25),ISNUMBER(Q25)),L25+Q25,0) -> 0
L26: 0 | R26: =IF(AND(ISNUMBER(L26),ISNUMBER(Q26)),L26+Q26,0) -> 0
L27: 0 | R27: =IF(AND(ISNUMBER(L27),ISNUMBER(Q27)),L27+Q27,0) -> 0
K28: =IF(G28="","",60+$F$7*(G28-$F$6)+SUM(H28:J28)) ->  | P28: =IF(L28="","",60+$F$7*(L28-$F$6)+SUM(M28:O28)) ->  | Q28: =IF(AND(ISNUMBER(K28),ISNUMBER(P28)),K28+P28,"") -> 
E30: Startliste kombinert - individuell kompakt
B32: Plass. Hopp 1. omg | C32: Start nr. | D32: Navn | E32: Klubb | F32: F.år | G32: Poeng hopp | H32: Start tid | I32: Tid i mål MM:SS,T | L32: Plassering
B33: =IF(COUNTIF($F$12:$F$27,"Komb")>0,1,"") ->  | C33: =_xlfn._xlws.SORT(_xlfn.HSTACK(_xlfn._xlws.FILTER($C$12:$E$27,$F$12:$F$27="Komb",$L$12:$L$27>0),_xlfn._xlws.FILTER($G$12:$G$27,$F$12:$F$27="Komb",$L$12:$L$27>0),_xlfn._xlws.FILTER($L$12:$L$27,$F$12:$F$27="Komb",$L$12:$L$27>0)),5,-1) ->  | H33: =TIME(0,0,0) -> 00:00:00 | I33: 00:04:29.800 | L33: =IF(C33="","",RANK(I33,$I$33:$I$48,1)+COUNTIF($I$33:I33,I33)-1) -> 
B34: =IFERROR(IF(B33+1>COUNTIF($F$12:$F$27,"Komb"),"",B33+1),"") ->  | H34: =IF(B34="","",H33+TIME(0,0,6)) ->  | L34: =IF(C34="","",RANK(I34,$I$33:$I$48,1)+COUNTIF($I$33:I34,I34)-1) -> 
B35: =IFERROR(IF(B34+1>COUNTIF($F$12:$F$27,"Komb"),"",B34+1),"") ->  | H35: =IF(B35="","",H34+TIME(0,0,6)) ->  | L35: =IF(C35="","",RANK(I35,$I$33:$I$48,1)+COUNTIF($I$33:I35,I35)-1) -> 
B36: =IFERROR(IF(B35+1>COUNTIF($F$12:$F$27,"Komb"),"",B35+1),"") ->  | L36: =IF(C36="","",RANK(I36,$I$33:$I$48,1)+COUNTIF($I$33:I36,I36)-1) -> 
B37: =IFERROR(IF(B36+1>COUNTIF($F$12:$F$27,"Komb"),"",B36+1),"") ->  | L37: =IF(C37="","",RANK(I37,$I$33:$I$48,1)+COUNTIF($I$33:I37,I37)-1) -> 
B38: =IFERROR(IF(B37+1>COUNTIF($F$12:$F$27,"Komb"),"",B37+1),"") ->  | L38: =IF(C38="","",RANK(I38,$I$33:$I$48,1)+COUNTIF($I$33:I38,I38)-1) -> 
B39: =IFERROR(IF(B38+1>COUNTIF($F$12:$F$27,"Komb"),"",B38+1),"") ->  | L39: =IF(C39="","",RANK(I39,$I$33:$I$48,1)+COUNTIF($I$33:I39,I39)-1) -> 
B40: =IFERROR(IF(B39+1>COUNTIF($F$12:$F$27,"Komb"),"",B39+1),"") ->  | L40: =IF(C40="","",RANK(I40,$I$33:$I$48,1)+COUNTIF($I$33:I40,I40)-1) -> 
B41: =IFERROR(IF(B40+1>COUNTIF($F$12:$F$27,"Komb"),"",B40+1),"") ->  | L41: =IF(C41="","",RANK(I41,$I$33:$I$48,1)+COUNTIF($I$33:I41,I41)-1) -> 
B42: =IFERROR(IF(B41+1>COUNTIF($F$12:$F$27,"Komb"),"",B41+1),"") ->  | L42: =IF(C42="","",RANK(I42,$I$33:$I$48,1)+COUNTIF($I$33:I42,I42)-1) -> 
B43: =IFERROR(IF(B42+1>COUNTIF($F$12:$F$27,"Komb"),"",B42+1),"") ->  | L43: =IF(C43="","",RANK(I43,$I$33:$I$48,1)+COUNTIF($I$33:I43,I43)-1) -> 
B44: =IFERROR(IF(B43+1>COUNTIF($F$12:$F$27,"Komb"),"",B43+1),"") ->  | L44: =IF(C44="","",RANK(I44,$I$33:$I$48,1)+COUNTIF($I$33:I44,I44)-1) -> 
B45: =IFERROR(IF(B44+1>COUNTIF($F$12:$F$27,"Komb"),"",B44+1),"") ->  | L45: =IF(C45="","",RANK(I45,$I$33:$I$48,1)+COUNTIF($I$33:I45,I45)-1) -> 
B46: =IFERROR(IF(B45+1>COUNTIF($F$12:$F$27,"Komb"),"",B45+1),"") ->  | L46: =IF(C46="","",RANK(I46,$I$33:$I$48,1)+COUNTIF($I$33:I46,I46)-1) -> 
B47: =IFERROR(IF(B46+1>COUNTIF($F$12:$F$27,"Komb"),"",B46+1),"") ->  | L47: =IF(C47="","",RANK(I47,$I$33:$I$48,1)+COUNTIF($I$33:I47,I47)-1) -> 
B48: =IFERROR(IF(B47+1>COUNTIF($F$12:$F$27,"Komb"),"",B47+1),"") ->  | L48: =IF(C48="","",RANK(I48,$I$33:$I$48,1)+COUNTIF($I$33:I48,I48)-1) -> 
E51: Resultatliste kombinert - individuell kompakt
B53: Plass | C53: Start nr. | D53: Navn | E53: Klubb | F53: F.år | G53: Lengde | H53: A | I53: B | J53: C | K53: Poeng Hopp | L53: Starttid langrenn | M53: Tid langr | O53: Tid i mål
B54: =IF(COUNT($I$33:$I$48)>0,1,"") -> 1 | C54: =IF(B54="","",_xlfn.XLOOKUP($B54,$L$33:$L$48,$C$33:$C$48,"",0,1)) ->  | D54: =IF(C54="","",_xlfn.XLOOKUP($C54,$C$33:$C$48,D$33:D$48,"",0,1)) ->  | G54: =IF($C54="","",_xlfn.XLOOKUP($C54,$C$12:$C$27,H$12:H$27,"",0,1)) ->  | H54: =IF($C54="","",_xlfn.XLOOKUP($C54,$C$12:$C$27,I$12:I$27,"",0,1)) ->  | L54: =_xlfn.XLOOKUP(C54,$C$32:$C$48,$H$32:$H$48,"",0,1) ->  | M54: =IF(C54="","",_xlfn.XLOOKUP(C54,$C$32:$C$48,$I$32:$I$48,"",0,1)-L54) ->  | O54: =VLOOKUP(C54,C33:I48,7,FALSE) -> 
B55: =IFERROR(IF(B54+1>COUNT($I$33:$I$48),"",B54+1),"") ->  | C55: =IF(B55="","",_xlfn.XLOOKUP($B55,$L$33:$L$48,$C$33:$C$48,"",0,1)) ->  | G55: =IF($C55="","",_xlfn.XLOOKUP($C55,$C$12:$C$27,H$12:H$27,"",0,1)) ->  | L55: =_xlfn.XLOOKUP(C55,$C$32:$C$48,$H$32:$H$48,"",0,1) ->  | M55: =IF(C55="","",_xlfn.XLOOKUP(C55,$C$32:$C$48,$I$32:$I$48,"",0,1)-L55) ->  | N55: =IF(C55="","","+") ->  | O55: =IF(C55="","",VLOOKUP($C55,$C$33:$I$48,7,0)-VLOOKUP($C$54,$C$33:$I$48,7,0)) -> 
B56: =IFERROR(IF(B55+1>COUNT($I$33:$I$48),"",B55+1),"") ->  | O56: =IF(C56="","",VLOOKUP($C56,$C$33:$I$48,7,0)-VLOOKUP($C$54,$C$33:$I$48,7,0)) -> 

Sheet Ledig (4)
E2: =+'K2'!E2 -> Namsosrennet i hopp og kombinert 01.02.2026
E5: ="K"&F6 -> K120 | G5: Ledig klasse
E6: K-punkt: | F6: 120 | G6: meter
E7: Meterverdi: | F7: =VLOOKUP(F6,Meterverdier!A:B,2,FALSE) -> 1.8 | G7: poeng/meter
H9: 1. omgang | M9: 2. omgang
C10: Start- | F10: Hopp/ | R10: Poeng
B11: Plassering | C11: nr. | D11: Navn | E11: Klubb | F11: Komb | G11: F.år | H11: Lengde | I11: A | J11: B | K11: C | L11: Poeng | M11: Lengde | N11: A | O11: B | P11: C | Q11: Poeng | R11: totalt
B12: =IF(R12="","",RANK(R12,$R$12:$R$27,0)+COUNTIFS($R$12:R12,R12)-1) -> 1 | H12: 61.5 | I12: 16.5 | J12: 16 | K12: 17 | L12: =IF(H12="",0,60+$F$7*(H12-$F$6)+SUM(I12:K12)) -> 4.2 | M12: 62.5 | N12: 17 | O12: 16.5 | P12: 17.5 | Q12: =IF(M12="","",60+$F$7*(M12-$F$6)+SUM(N12:P12)) -> 7.5 | R12: =IF(AND(ISNUMBER(L12),ISNUMBER(Q12)),L12+Q12,0) -> 11.7
B13: =IF(R13="","",RANK(R13,$R$12:$R$27,0)+COUNTIFS($R$12:R13,R13)-1) -> 2 | L13: 0 | Q13: =IF(M13="","",60+$F$7*(M13-$F$6)+SUM(N13:P13)) ->  | R13: 0
B14: =IF(R14="","",RANK(R14,$R$12:$R$27,0)+COUNTIFS($R$12:R14,R14)-1) -> 3 | L14: 0 | Q14: =IF(M14="","",60+$F$7*(M14-$F$6)+SUM(N14:P14)) ->  | R14: 0
B15: =IF(R15="","",RANK(R15,$R$12:$R$27,0)+COUNTIFS($R$12:R15,R15)-1) -> 4 | L15: 0 | Q15: =IF(M15="","",60+$F$7*(M15-$F$6)+SUM(N15:P15)) ->  | R15: 0
B16: =IF(R16="","",RANK(R16,$R$12:$R$27,0)+COUNTIFS($R$12:R16,R16)-1) -> 5 | L16: 0 | R16: 0
B17: =IF(R17="","",RANK(R17,$R$12:$R$27,0)+COUNTIFS($R$12:R17,R17)-1) -> 6 | L17: 0 | R17: 0
B18: =IF(R18="","",RANK(R18,$R$12:$R$27,0)+COUNTIFS($R$12:R18,R18)-1) -> 7 | L18: 0 | R18: 0
B19: =IF(R19="","",RANK(R19,$R$12:$R$27,0)+COUNTIFS($R$12:R19,R19)-1) -> 8 | L19: 0 | R19: 0
B20: =IF(R20="","",RANK(R20,$R$12:$R$27,0)+COUNTIFS($R$12:R20,R20)-1) -> 9 | L20: 0 | R20: 0
B21: =IF(R21="","",RANK(R21,$R$12:$R$27,0)+COUNTIFS($R$12:R21,R21)-1) -> 10 | L21: 0 | R21: 0
B22: =IF(R22="","",RANK(R22,$R$12:$R$27,0)+COUNTIFS($R$12:R22,R22)-1) -> 11 | L22: 0 | R22: 0
B23: =IF(R23="","",RANK(R23,$R$12:$R$27,0)+COUNTIFS($R$12:R23,R23)-1) -> 12 | L23: 0 | R23: 0
B24: =IF(R24="","",RANK(R24,$R$12:$R$27,0)+COUNTIFS($R$12:R24,R24)-1) -> 13 | L24: 0 | R24: 0
B25: =IF(R25="","",RANK(R25,$R$12:$R$27,0)+COUNTIFS($R$12:R25,R25)-1) -> 14 | L25: 0 | R25: 0
B26: =IF(R26="","",RANK(R26,$R$12:$R$27,0)+COUNTIFS($R$12:R26,R26)-1) -> 15 | L26: 0 | R26: 0
B27: =IF(R27="","",RANK(R27,$R$12:$R$27,0)+COUNTIFS($R$12:R27,R27)-1) -> 16 | L27: 0 | R27: 0
K28: =IF(G28="","",60+$F$7*(G28-$F$6)+SUM(H28:J28)) ->  | P28: =IF(L28="","",60+$F$7*(L28-$F$6)+SUM(M28:O28)) ->  | Q28: =IF(AND(ISNUMBER(K28),ISNUMBER(P28)),K28+P28,"") -> 
E30: Startliste kombinert - individuell kompakt
B32: Plass. Hopp 1. omg | C32: Start nr. | D32: Navn | E32: Klubb | F32: F.år | G32: Poeng hopp | H32: Start tid | I32: Tid i mål MM:SS,T | L32: Plassering
B33: =IF(COUNTIF($F$12:$F$27,"Komb")>0,1,"") ->  | C33: =_xlfn._xlws.SORT(_xlfn.HSTACK(_xlfn._xlws.FILTER($C$12:$E$27,$F$12:$F$27="Komb",$L$12:$L$27>0),_xlfn._xlws.FILTER($G$12:$G$27,$F$12:$F$27="Komb",$L$12:$L$27>0),_xlfn._xlws.FILTER($L$12:$L$27,$F$12:$F$27="Komb",$L$12:$L$27>0)),5,-1) ->  | H33: =TIME(0,0,0) -> 00:00:00 | I33: 00:04:29.800 | L33: =IF(C33="","",RANK(I33,$I$33:$I$48,1)+COUNTIF($I$33:I33,I33)-1) -> 
B34: =IFERROR(IF(B33+1>COUNTIF($F$12:$F$27,"Komb"),"",B33+1),"") ->  | H34: =IF(B34="","",H33+TIME(0,0,6)) ->  | L34: =IF(C34="","",RANK(I34,$I$33:$I$48,1)+COUNTIF($I$33:I34,I34)-1) -> 
B35: =IFERROR(IF(B34+1>COUNTIF($F$12:$F$27,"Komb"),"",B34+1),"") ->  | H35: =IF(B35="","",H34+TIME(0,0,6)) ->  | L35: =IF(C35="","",RANK(I35,$I$33:$I$48,1)+COUNTIF($I$33:I35,I35)-1) -> 
L36: =IF(C36="","",RANK(I36,$I$33:$I$48,1)+COUNTIF($I$33:I36,I36)-1) -> 
L37: =IF(C37="","",RANK(I37,$I$33:$I$48,1)+COUNTIF($I$33:I37,I37)-1) -> 
L38: =IF(C38="","",RANK(I38,$I$33:$I$48,1)+COUNTIF($I$33:I38,I38)-1) -> 
L39: =IF(C39="","",RANK(I39,$I$33:$I$48,1)+COUNTIF($I$33:I39,I39)-1) -> 
L40: =IF(C40="","",RANK(I40,$I$33:$I$48,1)+COUNTIF($I$33:I40,I40)-1) -> 
L41: =IF(C41="","",RANK(I41,$I$33:$I$48,1)+COUNTIF($I$33:I41,I41)-1) -> 
L42: =IF(C42="","",RANK(I42,$I$33:$I$48,1)+COUNTIF($I$33:I42,I42)-1) -> 
L43: =IF(C43="","",RANK(I43,$I$33:$I$48,1)+COUNTIF($I$33:I43,I43)-1) -> 
L44: =IF(C44="","",RANK(I44,$I$33:$I$48,1)+COUNTIF($I$33:I44,I44)-1) -> 
L45: =IF(C45="","",RANK(I45,$I$33:$I$48,1)+COUNTIF($I$33:I45,I45)-1) -> 
L46: =IF(C46="","",RANK(I46,$I$33:$I$48,1)+COUNTIF($I$33:I46,I46)-1) -> 
L47: =IF(C47="","",RANK(I47,$I$33:$I$48,1)+COUNTIF($I$33:I47,I47)-1) -> 
L48: =IF(C48="","",RANK(I48,$I$33:$I$48,1)+COUNTIF($I$33:I48,I48)-1) -> 
E51: Resultatliste kombinert - individuell kompakt
B53: Plass | C53: Start nr. | D53: Navn | E53: Klubb | F53: F.år | G53: Lengde | H53: A | I53: B | J53: C | K53: Poeng Hopp | L53: Starttid langrenn | M53: Tid langr | O53: Tid i mål
B54: =IF(COUNT($I$33:$I$48)>0,1,"") -> 1 | C54: =IF(B54="","",_xlfn.XLOOKUP($B54,$L$33:$L$48,$C$33:$C$48,"",0,1)) ->  | D54: =IF(C54="","",_xlfn.XLOOKUP($C54,$C$33:$C$48,D$33:D$48,"",0,1)) ->  | G54: =IF($C54="","",_xlfn.XLOOKUP($C54,$C$12:$C$27,H$12:H$27,"",0,1)) ->  | H54: =IF($C54="","",_xlfn.XLOOKUP($C54,$C$12:$C$27,I$12:I$27,"",0,1)) ->  | L54: =_xlfn.XLOOKUP(C54,$C$32:$C$48,$H$32:$H$48,"",0,1) ->  | M54: =IF(C54="","",_xlfn.XLOOKUP(C54,$C$32:$C$48,$I$32:$I$48,"",0,1)-L54) ->  | O54: =VLOOKUP(C54,C33:I48,7,FALSE) -> 
B55: =IFERROR(IF(B54+1>COUNT($I$33:$I$48),"",B54+1),"") ->  | C55: =IF(B55="","",_xlfn.XLOOKUP($B55,$L$33:$L$48,$C$33:$C$48,"",0,1)) ->  | G55: =IF($C55="","",_xlfn.XLOOKUP($C55,$C$12:$C$27,H$12:H$27,"",0,1)) ->  | L55: =_xlfn.XLOOKUP(C55,$C$32:$C$48,$H$32:$H$48,"",0,1) ->  | M55: =IF(C55="","",_xlfn.XLOOKUP(C55,$C$32:$C$48,$I$32:$I$48,"",0,1)-L55) ->  | N55: =IF(C55="","","+") ->  | O55: =IF(C55="","",VLOOKUP($C55,$C$33:$I$48,7,0)-VLOOKUP($C$54,$C$33:$I$48,7,0)) -> 
B56: =IFERROR(IF(B55+1>COUNT($I$33:$I$48),"",B55+1),"") ->  | O56: =IF(C56="","",VLOOKUP($C56,$C$33:$I$48,7,0)-VLOOKUP($C$54,$C$33:$I$48,7,0)) -> 

Sheet Ledig (5)
E2: =+'K2'!E2 -> Namsosrennet i hopp og kombinert 01.02.2026
E5: ="K"&F6 -> K120 | G5: Ledig klasse
E6: K-punkt: | F6: 120 | G6: meter
E7: Meterverdi: | F7: =VLOOKUP(F6,Meterverdier!A:B,2,FALSE) -> 1.8 | G7: poeng/meter
H9: 1. omgang | M9: 2. omgang
C10: Start- | F10: Hopp/ | R10: Poeng
B11: Plassering | C11: nr. | D11: Navn | E11: Klubb | F11: Komb | G11: F.år | H11: Lengde | I11: A | J11: B | K11: C | L11: Poeng | M11: Lengde | N11: A | O11: B | P11: C | Q11: Poeng | R11: totalt
B12: =IF(R12="","",RANK(R12,$R$12:$R$27,0)+COUNTIFS($R$12:R12,R12)-1) -> 1 | C12: 167 | D12: Ingrid Græsli | E12: Tydal il | F12: Komb | G12: A J15 | H12: 61.5 | I12: 16.5 | J12: 16 | K12: 17 | L12: =IF(H12="",0,60+$F$7*(H12-$F$6)+SUM(I12:K12)) -> 4.2 | M12: 62.5 | N12: 17 | O12: 16.5 | P12: 17.5 | Q12: =IF(M12="","",60+$F$7*(M12-$F$6)+SUM(N12:P12)) -> 7.5 | R12: =IF(AND(ISNUMBER(L12),ISNUMBER(Q12)),L12+Q12,0) -> 11.7
B13: =IF(R13="","",RANK(R13,$R$12:$R$27,0)+COUNTIFS($R$12:R13,R13)-1) -> 2 | L13: 0 | Q13: =IF(M13="","",60+$F$7*(M13-$F$6)+SUM(N13:P13)) ->  | R13: 0
B14: =IF(R14="","",RANK(R14,$R$12:$R$27,0)+COUNTIFS($R$12:R14,R14)-1) -> 3 | L14: 0 | Q14: =IF(M14="","",60+$F$7*(M14-$F$6)+SUM(N14:P14)) ->  | R14: 0
B15: =IF(R15="","",RANK(R15,$R$12:$R$27,0)+COUNTIFS($R$12:R15,R15)-1) -> 4 | L15: 0 | Q15: =IF(M15="","",60+$F$7*(M15-$F$6)+SUM(N15:P15)) ->  | R15: 0
B16: =IF(R16="","",RANK(R16,$R$12:$R$27,0)+COUNTIFS($R$12:R16,R16)-1) -> 5 | L16: 0 | R16: 0
B17: =IF(R17="","",RANK(R17,$R$12:$R$27,0)+COUNTIFS($R$12:R17,R17)-1) -> 6 | L17: 0 | R17: 0
B18: =IF(R18="","",RANK(R18,$R$12:$R$27,0)+COUNTIFS($R$12:R18,R18)-1) -> 7 | L18: 0 | R18: 0
B19: =IF(R19="","",RANK(R19,$R$12:$R$27,0)+COUNTIFS($R$12:R19,R19)-1) -> 8 | L19: 0 | R19: 0
B20: =IF(R20="","",RANK(R20,$R$12:$R$27,0)+COUNTIFS($R$12:R20,R20)-1) -> 9 | L20: 0 | R20: 0
B21: =IF(R21="","",RANK(R21,$R$12:$R$27,0)+COUNTIFS($R$12:R21,R21)-1) -> 10 | L21: 0 | R21: 0
B22: =IF(R22="","",RANK(R22,$R$12:$R$27,0)+COUNTIFS($R$12:R22,R22)-1) -> 11 | L22: 0 | R22: 0
B23: =IF(R23="","",RANK(R23,$R$12:$R$27,0)+COUNTIFS($R$12:R23,R23)-1) -> 12 | L23: 0 | R23: 0
B24: =IF(R24="","",RANK(R24,$R$12:$R$27,0)+COUNTIFS($R$12:R24,R24)-1) -> 13 | L24: 0 | R24: 0
B25: =IF(R25="","",RANK(R25,$R$12:$R$27,0)+COUNTIFS($R$12:R25,R25)-1) -> 14 | L25: 0 | R25: 0
B26: =IF(R26="","",RANK(R26,$R$12:$R$27,0)+COUNTIFS($R$12:R26,R26)-1) -> 15 | L26: 0 | R26: 0
B27: =IF(R27="","",RANK(R27,$R$12:$R$27,0)+COUNTIFS($R$12:R27,R27)-1) -> 16 | L27: 0 | R27: 0
K28: =IF(G28="","",60+$F$7*(G28-$F$6)+SUM(H28:J28)) ->  | P28: =IF(L28="","",60+$F$7*(L28-$F$6)+SUM(M28:O28)) ->  | Q28: =IF(AND(ISNUMBER(K28),ISNUMBER(P28)),K28+P28,"") -> 
E30: Startliste kombinert - individuell kompakt
B32: Plass. Hopp 1. omg | C32: Start nr. | D32: Navn | E32: Klubb | F32: F.år | G32: Poeng hopp | H32: Start tid | I32: Tid i mål MM:SS,T | L32: Plassering
B33: =IF(COUNTIF($F$12:$F$27,"Komb")>0,1,"") -> 1 | C33: =_xlfn._xlws.SORT(_xlfn.HSTACK(_xlfn._xlws.FILTER($C$12:$E$27,$F$12:$F$27="Komb",$L$12:$L$27>0),_xlfn._xlws.FILTER($G$12:$G$27,$F$12:$F$27="Komb",$L$12:$L$27>0),_xlfn._xlws.FILTER($L$12:$L$27,$F$12:$F$27="Komb",$L$12:$L$27>0)),5,-1) -> 167 | D33: Ingrid Græsli | E33: Tydal il | F33: A J15 | G33: 4.2 | H33: =TIME(0,0,0) -> 00:00:00 | I33: 00:04:29.800 | L33: =IF(C33="","",RANK(I33,$I$33:$I$48,1)+COUNTIF($I$33:I33,I33)-1) -> 1
B34: =IFERROR(IF(B33+1>COUNTIF($F$12:$F$27,"Komb"),"",B33+1),"") ->  | H34: =IF(B34="","",H33+TIME(0,0,6)) ->  | L34: =IF(C34="","",RANK(I34,$I$33:$I$48,1)+COUNTIF($I$33:I34,I34)-1) -> 
B35: =IFERROR(IF(B34+1>COUNTIF($F$12:$F$27,"Komb"),"",B34+1),"") ->  | H35: =IF(B35="","",H34+TIME(0,0,6)) ->  | L35: =IF(C35="","",RANK(I35,$I$33:$I$48,1)+COUNTIF($I$33:I35,I35)-1) -> 
L36: =IF(C36="","",RANK(I36,$I$33:$I$48,1)+COUNTIF($I$33:I36,I36)-1) -> 
L37: =IF(C37="","",RANK(I37,$I$33:$I$48,1)+COUNTIF($I$33:I37,I37)-1) -> 
L38: =IF(C38="","",RANK(I38,$I$33:$I$48,1)+COUNTIF($I$33:I38,I38)-1) -> 
L39: =IF(C39="","",RANK(I39,$I$33:$I$48,1)+COUNTIF($I$33:I39,I39)-1) -> 
L40: =IF(C40="","",RANK(I40,$I$33:$I$48,1)+COUNTIF($I$33:I40,I40)-1) -> 
L41: =IF(C41="","",RANK(I41,$I$33:$I$48,1)+COUNTIF($I$33:I41,I41)-1) -> 
L42: =IF(C42="","",RANK(I42,$I$33:$I$48,1)+COUNTIF($I$33:I42,I42)-1) -> 
L43: =IF(C43="","",RANK(I43,$I$33:$I$48,1)+COUNTIF($I$33:I43,I43)-1) -> 
L44: =IF(C44="","",RANK(I44,$I$33:$I$48,1)+COUNTIF($I$33:I44,I44)-1) -> 
L45: =IF(C45="","",RANK(I45,$I$33:$I$48,1)+COUNTIF($I$33:I45,I45)-1) -> 
L46: =IF(C46="","",RANK(I46,$I$33:$I$48,1)+COUNTIF($I$33:I46,I46)-1) -> 
L47: =IF(C47="","",RANK(I47,$I$33:$I$48,1)+COUNTIF($I$33:I47,I47)-1) -> 
L48: =IF(C48="","",RANK(I48,$I$33:$I$48,1)+COUNTIF($I$33:I48,I48)-1) -> 
E51: Resultatliste kombinert - individuell kompakt
B53: Plass | C53: Start nr. | D53: Navn | E53: Klubb | F53: F.år | G53: Lengde | H53: A | I53: B | J53: C | K53: Poeng Hopp | L53: Starttid langrenn | M53: Tid langr | O53: Tid i mål
B54: =IF(COUNT($I$33:$I$48)>0,1,"") -> 1 | C54: =IF(B54="","",_xlfn.XLOOKUP($B54,$L$33:$L$48,$C$33:$C$48,"",0,1)) -> 167 | D54: =IF(C54="","",_xlfn.XLOOKUP($C54,$C$33:$C$48,D$33:D$48,"",0,1)) -> Ingrid Græsli | E54: Tydal il | F54: A J15 | G54: =IF($C54="","",_xlfn.XLOOKUP($C54,$C$12:$C$27,H$12:H$27,"",0,1)) -> 61.5 | H54: =IF($C54="","",_xlfn.XLOOKUP($C54,$C$12:$C$27,I$12:I$27,"",0,1)) -> 16.5 | I54: 16 | J54: 17 | K54: 4.2 | L54: =_xlfn.XLOOKUP(C54,$C$32:$C$48,$H$32:$H$48,"",0,1) -> 00:00:00 | M54: =IF(C54="","",_xlfn.XLOOKUP(C54,$C$32:$C$48,$I$32:$I$48,"",0,1)-L54) -> 00:04:29.800 | O54: =VLOOKUP(C54,C33:I48,7,FALSE) -> 00:04:29.800
B55: =IFERROR(IF(B54+1>COUNT($I$33:$I$48),"",B54+1),"") ->  | C55: =IF(B55="","",_xlfn.XLOOKUP($B55,$L$33:$L$48,$C$33:$C$48,"",0,1)) ->  | G55: =IF($C55="","",_xlfn.XLOOKUP($C55,$C$12:$C$27,H$12:H$27,"",0,1)) ->  | L55: =_xlfn.XLOOKUP(C55,$C$32:$C$48,$H$32:$H$48,"",0,1) ->  | M55: =IF(C55="","",_xlfn.XLOOKUP(C55,$C$32:$C$48,$I$32:$I$48,"",0,1)-L55) ->  | N55: =IF(C55="","","+") ->  | O55: =IF(C55="","",VLOOKUP($C55,$C$33:$I$48,7,0)-VLOOKUP($C$54,$C$33:$I$48,7,0)) -> 
B56: =IFERROR(IF(B55+1>COUNT($I$33:$I$48),"",B55+1),"") ->  | O56: =IF(C56="","",VLOOKUP($C56,$C$33:$I$48,7,0)-VLOOKUP($C$54,$C$33:$I$48,7,0)) -> 

Sheet Ledig (6)
E2: =+'K2'!E2 -> Namsosrennet i hopp og kombinert 01.02.2026
E5: ="K"&F6 -> K120 | G5: Ledig klasse
E6: K-punkt: | F6: 120 | G6: meter
E7: Meterverdi: | F7: =VLOOKUP(F6,Meterverdier!A:B,2,FALSE) -> 1.8 | G7: poeng/meter
H9: 1. omgang | M9: 2. omgang
C10: Start- | F10: Hopp/ | R10: Poeng
B11: Plassering | C11: nr. | D11: Navn | E11: Klubb | F11: Komb | G11: F.år | H11: Lengde | I11: A | J11: B | K11: C | L11: Poeng | M11: Lengde | N11: A | O11: B | P11: C | Q11: Poeng | R11: totalt
B12: =IF(R12="","",RANK(R12,$R$12:$R$27,0)+COUNTIFS($R$12:R12,R12)-1) -> 1 | C12: 167 | D12: Ingrid Græsli | E12: Tydal il | F12: Komb | G12: A J15 | H12: 61.5 | I12: 16.5 | J12: 16 | K12: 17 | L12: =IF(H12="",0,60+$F$7*(H12-$F$6)+SUM(I12:K12)) -> 4.2 | M12: 62.5 | N12: 17 | O12: 16.5 | P12: 17.5 | Q12: =IF(M12="","",60+$F$7*(M12-$F$6)+SUM(N12:P12)) -> 7.5 | R12: =IF(AND(ISNUMBER(L12),ISNUMBER(Q12)),L12+Q12,0) -> 11.7
B13: =IF(R13="","",RANK(R13,$R$12:$R$27,0)+COUNTIFS($R$12:R13,R13)-1) -> 2 | L13: 0 | Q13: =IF(M13="","",60+$F$7*(M13-$F$6)+SUM(N13:P13)) ->  | R13: 0
B14: =IF(R14="","",RANK(R14,$R$12:$R$27,0)+COUNTIFS($R$12:R14,R14)-1) -> 3 | L14: 0 | Q14: =IF(M14="","",60+$F$7*(M14-$F$6)+SUM(N14:P14)) ->  | R14: 0
B15: =IF(R15="","",RANK(R15,$R$12:$R$27,0)+COUNTIFS($R$12:R15,R15)-1) -> 4 | L15: 0 | Q15: =IF(M15="","",60+$F$7*(M15-$F$6)+SUM(N15:P15)) ->  | R15: 0
B16: =IF(R16="","",RANK(R16,$R$12:$R$27,0)+COUNTIFS($R$12:R16,R16)-1) -> 5 | L16: 0 | R16: 0
B17: =IF(R17="","",RANK(R17,$R$12:$R$27,0)+COUNTIFS($R$12:R17,R17)-1) -> 6 | L17: 0 | R17: 0
B18: =IF(R18="","",RANK(R18,$R$12:$R$27,0)+COUNTIFS($R$12:R18,R18)-1) -> 7 | L18: 0 | R18: 0
B19: =IF(R19="","",RANK(R19,$R$12:$R$27,0)+COUNTIFS($R$12:R19,R19)-1) -> 8 | L19: 0 | R19: 0
B20: =IF(R20="","",RANK(R20,$R$12:$R$27,0)+COUNTIFS($R$12:R20,R20)-1) -> 9 | L20: 0 | R20: 0
B21: =IF(R21="","",RANK(R21,$R$12:$R$27,0)+COUNTIFS($R$12:R21,R21)-1) -> 10 | L21: 0 | R21: 0
B22: =IF(R22="","",RANK(R22,$R$12:$R$27,0)+COUNTIFS($R$12:R22,R22)-1) -> 11 | L22: 0 | R22: 0
B23: =IF(R23="","",RANK(R23,$R$12:$R$27,0)+COUNTIFS($R$12:R23,R23)-1) -> 12 | L23: 0 | R23: 0
B24: =IF(R24="","",RANK(R24,$R$12:$R$27,0)+COUNTIFS($R$12:R24,R24)-1) -> 13 | L24: 0 | R24: 0
B25: =IF(R25="","",RANK(R25,$R$12:$R$27,0)+COUNTIFS($R$12:R25,R25)-1) -> 14 | L25: 0 | R25: 0
B26: =IF(R26="","",RANK(R26,$R$12:$R$27,0)+COUNTIFS($R$12:R26,R26)-1) -> 15 | L26: 0 | R26: 0
B27: =IF(R27="","",RANK(R27,$R$12:$R$27,0)+COUNTIFS($R$12:R27,R27)-1) -> 16 | L27: 0 | R27: 0
K28: =IF(G28="","",60+$F$7*(G28-$F$6)+SUM(H28:J28)) ->  | P28: =IF(L28="","",60+$F$7*(L28-$F$6)+SUM(M28:O28)) ->  | Q28: =IF(AND(ISNUMBER(K28),ISNUMBER(P28)),K28+P28,"") -> 
E30: Startliste kombinert - individuell kompakt
B32: Plass. Hopp 1. omg | C32: Start nr. | D32: Navn | E32: Klubb | F32: F.år | G32: Poeng hopp | H32: Start tid | I32: Tid i mål MM:SS,T | L32: Plassering
B33: =IF(COUNTIF($F$12:$F$27,"Komb")>0,1,"") -> 1 | C33: =_xlfn._xlws.SORT(_xlfn.HSTACK(_xlfn._xlws.FILTER($C$12:$E$27,$F$12:$F$27="Komb",$L$12:$L$27>0),_xlfn._xlws.FILTER($G$12:$G$27,$F$12:$F$27="Komb",$L$12:$L$27>0),_xlfn._xlws.FILTER($L$12:$L$27,$F$12:$F$27="Komb",$L$12:$L$27>0)),5,-1) -> 167 | D33: Ingrid Græsli | E33: Tydal il | F33: A J15 | G33: 4.2 | H33: =TIME(0,0,0) -> 00:00:00 | I33: 00:04:29.800 | L33: =IF(C33="","",RANK(I33,$I$33:$I$48,1)+COUNTIF($I$33:I33,I33)-1) -> 1
B34: =IFERROR(IF(B33+1>COUNTIF($F$12:$F$27,"Komb"),"",B33+1),"") ->  | H34: =IF(B34="","",H33+TIME(0,0,6)) ->  | L34: =IF(C34="","",RANK(I34,$I$33:$I$48,1)+COUNTIF($I$33:I34,I34)-1) -> 
B35: =IFERROR(IF(B34+1>COUNTIF($F$12:$F$27,"Komb"),"",B34+1),"") ->  | H35: =IF(B35="","",H34+TIME(0,0,6)) ->  | L35: =IF(C35="","",RANK(I35,$I$33:$I$48,1)+COUNTIF($I$33:I35,I35)-1) -> 
L36: =IF(C36="","",RANK(I36,$I$33:$I$48,1)+COUNTIF($I$33:I36,I36)-1) -> 
L37: =IF(C37="","",RANK(I37,$I$33:$I$48,1)+COUNTIF($I$33:I37,I37)-1) -> 
L38: =IF(C38="","",RANK(I38,$I$33:$I$48,1)+COUNTIF($I$33:I38,I38)-1) -> 
L39: =IF(C39="","",RANK(I39,$I$33:$I$48,1)+COUNTIF($I$33:I39,I39)-1) -> 
L40: =IF(C40="","",RANK(I40,$I$33:$I$48,1)+COUNTIF($I$33:I40,I40)-1) -> 
L41: =IF(C41="","",RANK(I41,$I$33:$I$48,1)+COUNTIF($I$33:I41,I41)-1) -> 
L42: =IF(C42="","",RANK(I42,$I$33:$I$48,1)+COUNTIF($I$33:I42,I42)-1) -> 
L43: =IF(C43="","",RANK(I43,$I$33:$I$48,1)+COUNTIF($I$33:I43,I43)-1) -> 
L44: =IF(C44="","",RANK(I44,$I$33:$I$48,1)+COUNTIF($I$33:I44,I44)-1) -> 
L45: =IF(C45="","",RANK(I45,$I$33:$I$48,1)+COUNTIF($I$33:I45,I45)-1) -> 
L46: =IF(C46="","",RANK(I46,$I$33:$I$48,1)+COUNTIF($I$33:I46,I46)-1) -> 
L47: =IF(C47="","",RANK(I47,$I$33:$I$48,1)+COUNTIF($I$33:I47,I47)-1) -> 
L48: =IF(C48="","",RANK(I48,$I$33:$I$48,1)+COUNTIF($I$33:I48,I48)-1) -> 
E51: Resultatliste kombinert - individuell kompakt
B53: Plass | C53: Start nr. | D53: Navn | E53: Klubb | F53: F.år | G53: Lengde | H53: A | I53: B | J53: C | K53: Poeng Hopp | L53: Starttid langrenn | M53: Tid langr | O53: Tid i mål
B54: =IF(COUNT($I$33:$I$48)>0,1,"") -> 1 | C54: =IF(B54="","",_xlfn.XLOOKUP($B54,$L$33:$L$48,$C$33:$C$48,"",0,1)) -> 167 | D54: =IF(C54="","",_xlfn.XLOOKUP($C54,$C$33:$C$48,D$33:D$48,"",0,1)) -> Ingrid Græsli | E54: Tydal il | F54: A J15 | G54: =IF($C54="","",_xlfn.XLOOKUP($C54,$C$12:$C$27,H$12:H$27,"",0,1)) -> 61.5 | H54: =IF($C54="","",_xlfn.XLOOKUP($C54,$C$12:$C$27,I$12:I$27,"",0,1)) -> 16.5 | I54: 16 | J54: 17 | K54: 4.2 | L54: =_xlfn.XLOOKUP(C54,$C$32:$C$48,$H$32:$H$48,"",0,1) -> 00:00:00 | M54: =IF(C54="","",_xlfn.XLOOKUP(C54,$C$32:$C$48,$I$32:$I$48,"",0,1)-L54) -> 00:04:29.800 | O54: =VLOOKUP(C54,C33:I48,7,FALSE) -> 00:04:29.800
B55: =IFERROR(IF(B54+1>COUNT($I$33:$I$48),"",B54+1),"") ->  | C55: =IF(B55="","",_xlfn.XLOOKUP($B55,$L$33:$L$48,$C$33:$C$48,"",0,1)) ->  | G55: =IF($C55="","",_xlfn.XLOOKUP($C55,$C$12:$C$27,H$12:H$27,"",0,1)) ->  | L55: =_xlfn.XLOOKUP(C55,$C$32:$C$48,$H$32:$H$48,"",0,1) ->  | M55: =IF(C55="","",_xlfn.XLOOKUP(C55,$C$32:$C$48,$I$32:$I$48,"",0,1)-L55) ->  | N55: =IF(C55="","","+") ->  | O55: =IF(C55="","",VLOOKUP($C55,$C$33:$I$48,7,0)-VLOOKUP($C$54,$C$33:$I$48,7,0)) -> 
B56: =IFERROR(IF(B55+1>COUNT($I$33:$I$48),"",B55+1),"") ->  | O56: =IF(C56="","",VLOOKUP($C56,$C$33:$I$48,7,0)-VLOOKUP($C$54,$C$33:$I$48,7,0)) -> 

Sheet K65 RCB G (hidden)
E2: Granåsenrennet - SMN 1 Trøndercup i hopp og kombinert 11.02.2024
E5: ="K"&F6 -> K65 | G5: RCB Gutter
E6: K-punkt: | F6: 65 | G6: meter
E7: Meterverdi: | F7: =VLOOKUP(F6,Meterverdier!A:B,2,FALSE) -> 2.4 | G7: poeng/meter
H9: 1. omgang | M9: 2. omgang
C10: Start- | F10: Hopp/ | R10: Poeng
B11: Plassering | C11: nr. | D11: Navn | E11: Klubb | F11: Komb | G11: F.år | H11: Lengde | I11: A | J11: B | K11: C | L11: Poeng | M11: Lengde | N11: A | O11: B | P11: C | Q11: Poeng | R11: totalt
B12: =IF(R12="","",RANK(R12,$R$12:$R$27,0)+COUNTIFS($R$12:R12,R12)-1) -> 1 | L12: =IF(H12="",0,60+$F$7*(H12-$F$6)+SUM(I12:K12)) -> 0 | Q12: =IF(M12="","",60+$F$7*(M12-$F$6)+SUM(N12:P12)) ->  | R12: =IF(AND(ISNUMBER(L12),ISNUMBER(Q12)),L12+Q12,0) -> 0
B13: =IF(R13="","",RANK(R13,$R$12:$R$27,0)+COUNTIFS($R$12:R13,R13)-1) -> 2 | L13: 0 | Q13: =IF(M13="","",60+$F$7*(M13-$F$6)+SUM(N13:P13)) ->  | R13: 0
B14: =IF(R14="","",RANK(R14,$R$12:$R$27,0)+COUNTIFS($R$12:R14,R14)-1) -> 3 | L14: 0 | Q14: =IF(M14="","",60+$F$7*(M14-$F$6)+SUM(N14:P14)) ->  | R14: 0
B15: =IF(R15="","",RANK(R15,$R$12:$R$27,0)+COUNTIFS($R$12:R15,R15)-1) -> 4 | L15: 0 | Q15: =IF(M15="","",60+$F$7*(M15-$F$6)+SUM(N15:P15)) ->  | R15: 0
B16: =IF(R16="","",RANK(R16,$R$12:$R$27,0)+COUNTIFS($R$12:R16,R16)-1) -> 5 | L16: 0 | R16: 0
B17: =IF(R17="","",RANK(R17,$R$12:$R$27,0)+COUNTIFS($R$12:R17,R17)-1) -> 6 | L17: 0 | R17: 0
B18: =IF(R18="","",RANK(R18,$R$12:$R$27,0)+COUNTIFS($R$12:R18,R18)-1) -> 7 | L18: 0 | R18: 0
B19: =IF(R19="","",RANK(R19,$R$12:$R$27,0)+COUNTIFS($R$12:R19,R19)-1) -> 8 | L19: 0 | R19: 0
B20: =IF(R20="","",RANK(R20,$R$12:$R$27,0)+COUNTIFS($R$12:R20,R20)-1) -> 9 | L20: 0 | R20: 0
B21: =IF(R21="","",RANK(R21,$R$12:$R$27,0)+COUNTIFS($R$12:R21,R21)-1) -> 10 | L21: 0 | R21: 0
B22: =IF(R22="","",RANK(R22,$R$12:$R$27,0)+COUNTIFS($R$12:R22,R22)-1) -> 11 | L22: 0 | R22: 0
B23: =IF(R23="","",RANK(R23,$R$12:$R$27,0)+COUNTIFS($R$12:R23,R23)-1) -> 12 | L23: 0 | R23: 0
B24: =IF(R24="","",RANK(R24,$R$12:$R$27,0)+COUNTIFS($R$12:R24,R24)-1) -> 13 | L24: 0 | R24: 0
B25: =IF(R25="","",RANK(R25,$R$12:$R$27,0)+COUNTIFS($R$12:R25,R25)-1) -> 14 | L25: 0 | R25: 0
B26: =IF(R26="","",RANK(R26,$R$12:$R$27,0)+COUNTIFS($R$12:R26,R26)-1) -> 15 | L26: 0 | R26: 0
B27: =IF(R27="","",RANK(R27,$R$12:$R$27,0)+COUNTIFS($R$12:R27,R27)-1) -> 16 | L27: 0 | R27: 0
K28: =IF(G28="","",60+$F$7*(G28-$F$6)+SUM(H28:J28)) ->  | P28: =IF(L28="","",60+$F$7*(L28-$F$6)+SUM(M28:O28)) ->  | Q28: =IF(AND(ISNUMBER(K28),ISNUMBER(P28)),K28+P28,"") -> 
E30: Startliste kombinert - individuell kompakt
B32: Plass. Hopp 1. omg | C32: Start nr. | D32: Navn | E32: Klubb | F32: F.år | G32: Poeng hopp | H32: Start tid | I32: Tid i mål MM:SS,T | L32: Plassering
B33: =IF(COUNTIF($F$12:$F$27,"Komb")>0,1,"") ->  | C33: =_xlfn._xlws.SORT(_xlfn.HSTACK(_xlfn._xlws.FILTER($C$12:$E$27,$F$12:$F$27="Komb",$L$12:$L$27>0),_xlfn._xlws.FILTER($G$12:$G$27,$F$12:$F$27="Komb",$L$12:$L$27>0),_xlfn._xlws.FILTER($L$12:$L$27,$F$12:$F$27="Komb",$L$12:$L$27>0)),5,-1) ->  | H33: =TIME(0,0,0) -> 00:00:00 | I33: 00:01:11.300 | L33: =IF(C33="","",RANK(I33,$I$33:$I$48,1)+COUNTIF($I$33:I33,I33)-1) -> 
B34: =IFERROR(IF(B33+1>COUNTIF($F$12:$F$27,"Komb"),"",B33+1),"") ->  | H34: =IF(B34="","",H33+TIME(0,0,6)) ->  | I34: 00:01:10.100 | L34: =IF(C34="","",RANK(I34,$I$33:$I$48,1)+COUNTIF($I$33:I34,I34)-1) -> 
B35: =IFERROR(IF(B34+1>COUNTIF($F$12:$F$27,"Komb"),"",B34+1),"") ->  | H35: =IF(B35="","",H34+TIME(0,0,6)) ->  | I35: 00:02:03.400 | L35: =IF(C35="","",RANK(I35,$I$33:$I$48,1)+COUNTIF($I$33:I35,I35)-1) -> 
L36: =IF(C36="","",RANK(I36,$I$33:$I$48,1)+COUNTIF($I$33:I36,I36)-1) -> 
L37: =IF(C37="","",RANK(I37,$I$33:$I$48,1)+COUNTIF($I$33:I37,I37)-1) -> 
L38: =IF(C38="","",RANK(I38,$I$33:$I$48,1)+COUNTIF($I$33:I38,I38)-1) -> 
L39: =IF(C39="","",RANK(I39,$I$33:$I$48,1)+COUNTIF($I$33:I39,I39)-1) -> 
L40: =IF(C40="","",RANK(I40,$I$33:$I$48,1)+COUNTIF($I$33:I40,I40)-1) -> 
L41: =IF(C41="","",RANK(I41,$I$33:$I$48,1)+COUNTIF($I$33:I41,I41)-1) -> 
L42: =IF(C42="","",RANK(I42,$I$33:$I$48,1)+COUNTIF($I$33:I42,I42)-1) -> 
L43: =IF(C43="","",RANK(I43,$I$33:$I$48,1)+COUNTIF($I$33:I43,I43)-1) -> 
L44: =IF(C44="","",RANK(I44,$I$33:$I$48,1)+COUNTIF($I$33:I44,I44)-1) -> 
L45: =IF(C45="","",RANK(I45,$I$33:$I$48,1)+COUNTIF($I$33:I45,I45)-1) -> 
L46: =IF(C46="","",RANK(I46,$I$33:$I$48,1)+COUNTIF($I$33:I46,I46)-1) -> 
L47: =IF(C47="","",RANK(I47,$I$33:$I$48,1)+COUNTIF($I$33:I47,I47)-1) -> 
L48: =IF(C48="","",RANK(I48,$I$33:$I$48,1)+COUNTIF($I$33:I48,I48)-1) -> 
E51: Resultatliste kombinert - individuell kompakt
B53: Plass | C53: Start nr. | D53: Navn | E53: Klubb | F53: F.år | G53: Lengde | H53: A | I53: B | J53: C | K53: Poeng Hopp | L53: Starttid langrenn | M53: Tid langr | O53: Tid i mål
B54: =IF(COUNT($I$33:$I$48)>0,1,"") -> 1 | C54: =IF(B54="","",_xlfn.XLOOKUP($B54,$L$33:$L$48,$C$33:$C$48,"",0,1)) ->  | D54: =IF(C54="","",_xlfn.XLOOKUP($C54,$C$33:$C$48,D$33:D$48,"",0,1)) ->  | E54: =IF(D54="","",_xlfn.XLOOKUP($C54,$C$33:$C$48,E$33:E$48,"",0,1)) ->  | G54: =IF($C54="","",_xlfn.XLOOKUP($C54,$C$12:$C$27,H$12:H$27,"",0,1)) ->  | H54: =IF($C54="","",_xlfn.XLOOKUP($C54,$C$12:$C$27,I$12:I$27,"",0,1)) ->  | L54: =_xlfn.XLOOKUP(C54,$C$32:$C$48,$H$32:$H$48,"",0,1) ->  | M54: =IF(C54="","",_xlfn.XLOOKUP(C54,$C$32:$C$48,$I$32:$I$48,"",0,1)-L54) ->  | O54: =VLOOKUP(C54,C33:I48,7,FALSE) -> 
B55: =IFERROR(IF(B54+1>COUNT($I$33:$I$48),"",B54+1),"") -> 2 | C55: =IF(B55="","",_xlfn.XLOOKUP($B55,$L$33:$L$48,$C$33:$C$48,"",0,1)) ->  | G55: =IF($C55="","",_xlfn.XLOOKUP($C55,$C$12:$C$27,H$12:H$27,"",0,1)) ->  | L55: =_xlfn.XLOOKUP(C55,$C$32:$C$48,$H$32:$H$48,"",0,1) ->  | M55: =IF(C55="","",_xlfn.XLOOKUP(C55,$C$32:$C$48,$I$32:$I$48,"",0,1)-L55) ->  | N55: =IF(C55="","","+") ->  | O55: =IF(C55="","",VLOOKUP($C55,$C$33:$I$48,7,0)-VLOOKUP($C$54,$C$33:$I$48,7,0)) -> 
B56: =IFERROR(IF(B55+1>COUNT($I$33:$I$48),"",B55+1),"") -> 3 | O56: =IF(C56="","",VLOOKUP($C56,$C$33:$I$48,7,0)-VLOOKUP($C$54,$C$33:$I$48,7,0)) -> 

Sheet K65 RCB J (hidden)
E2: Granåsenrennet - SMN 1 Trøndercup i hopp og kombinert 11.02.2024
E5: ="K"&F6 -> K65 | G5: RCB Jenter
E6: K-punkt: | F6: 65 | G6: meter
E7: Meterverdi: | F7: =VLOOKUP(F6,Meterverdier!A:B,2,FALSE) -> 2.4 | G7: poeng/meter
H9: 1. omgang | M9: 2. omgang
C10: Start- | F10: Hopp/ | R10: Poeng
B11: Plassering | C11: nr. | D11: Navn | E11: Klubb | F11: Komb | G11: F.år | H11: Lengde | I11: A | J11: B | K11: C | L11: Poeng | M11: Lengde | N11: A | O11: B | P11: C | Q11: Poeng | R11: totalt
B12: =IF(R12="","",RANK(R12,$R$12:$R$27,0)+COUNTIFS($R$12:R12,R12)-1) -> 1 | L12: =IF(H12="",0,60+$F$7*(H12-$F$6)+SUM(I12:K12)) -> 0 | Q12: =IF(M12="","",60+$F$7*(M12-$F$6)+SUM(N12:P12)) ->  | R12: =IF(AND(ISNUMBER(L12),ISNUMBER(Q12)),L12+Q12,0) -> 0
B13: =IF(R13="","",RANK(R13,$R$12:$R$27,0)+COUNTIFS($R$12:R13,R13)-1) -> 2 | L13: 0 | Q13: =IF(M13="","",60+$F$7*(M13-$F$6)+SUM(N13:P13)) ->  | R13: 0
B14: =IF(R14="","",RANK(R14,$R$12:$R$27,0)+COUNTIFS($R$12:R14,R14)-1) -> 3 | L14: 0 | Q14: =IF(M14="","",60+$F$7*(M14-$F$6)+SUM(N14:P14)) ->  | R14: 0
B15: =IF(R15="","",RANK(R15,$R$12:$R$27,0)+COUNTIFS($R$12:R15,R15)-1) -> 4 | L15: 0 | Q15: =IF(M15="","",60+$F$7*(M15-$F$6)+SUM(N15:P15)) ->  | R15: 0
B16: =IF(R16="","",RANK(R16,$R$12:$R$27,0)+COUNTIFS($R$12:R16,R16)-1) -> 5 | L16: 0 | Q16: =IF(M16="","",60+$F$7*(M16-$F$6)+SUM(N16:P16)) ->  | R16: 0
B17: =IF(R17="","",RANK(R17,$R$12:$R$27,0)+COUNTIFS($R$12:R17,R17)-1) -> 6 | L17: 0 | Q17: =IF(M17="","",60+$F$7*(M17-$F$6)+SUM(N17:P17)) ->  | R17: 0
B18: =IF(R18="","",RANK(R18,$R$12:$R$27,0)+COUNTIFS($R$12:R18,R18)-1) -> 7 | L18: 0 | R18: 0
B19: =IF(R19="","",RANK(R19,$R$12:$R$27,0)+COUNTIFS($R$12:R19,R19)-1) -> 8 | L19: 0 | R19: 0
B20: =IF(R20="","",RANK(R20,$R$12:$R$27,0)+COUNTIFS($R$12:R20,R20)-1) -> 9 | L20: 0 | R20: 0
B21: =IF(R21="","",RANK(R21,$R$12:$R$27,0)+COUNTIFS($R$12:R21,R21)-1) -> 10 | L21: 0 | R21: 0
B22: =IF(R22="","",RANK(R22,$R$12:$R$27,0)+COUNTIFS($R$12:R22,R22)-1) -> 11 | L22: 0 | R22: 0
B23: =IF(R23="","",RANK(R23,$R$12:$R$27,0)+COUNTIFS($R$12:R23,R23)-1) -> 12 | L23: 0 | R23: 0
B24: =IF(R24="","",RANK(R24,$R$12:$R$27,0)+COUNTIFS($R$12:R24,R24)-1) -> 13 | L24: 0 | R24: 0
B25: =IF(R25="","",RANK(R25,$R$12:$R$27,0)+COUNTIFS($R$12:R25,R25)-1) -> 14 | L25: 0 | R25: 0
B26: =IF(R26="","",RANK(R26,$R$12:$R$27,0)+COUNTIFS($R$12:R26,R26)-1) -> 15 | L26: 0 | R26: 0
B27: =IF(R27="","",RANK(R27,$R$12:$R$27,0)+COUNTIFS($R$12:R27,R27)-1) -> 16 | L27: 0 | R27: 0
K28: =IF(G28="","",60+$F$7*(G28-$F$6)+SUM(H28:J28)) ->  | P28: =IF(L28="","",60+$F$7*(L28-$F$6)+SUM(M28:O28)) ->  | Q28: =IF(AND(ISNUMBER(K28),ISNUMBER(P28)),K28+P28,"") -> 
E30: Startliste kombinert - individuell kompakt
B32: Plass. Hopp 1. omg | C32: Start nr. | D32: Navn | E32: Klubb | F32: F.år | G32: Poeng hopp | H32: Start tid | I32: Tid i mål MM:SS,T | L32: Plassering
B33: =IF(COUNTIF($F$12:$F$27,"Komb")>0,1,"") ->  | C33: =_xlfn._xlws.SORT(_xlfn.HSTACK(_xlfn._xlws.FILTER($C$12:$E$27,$F$12:$F$27="Komb",$L$12:$L$27>0),_xlfn._xlws.FILTER($G$12:$G$27,$F$12:$F$27="Komb",$L$12:$L$27>0),_xlfn._xlws.FILTER($L$12:$L$27,$F$12:$F$27="Komb",$L$12:$L$27>0)),5,-1) ->  | H33: =TIME(0,0,0) -> 00:00:00 | I33: 00:01:11.300 | L33: =IF(C33="","",RANK(I33,$I$33:$I$48,1)+COUNTIF($I$33:I33,I33)-1) -> 
B34: =IFERROR(IF(B33+1>COUNTIF($F$12:$F$27,"Komb"),"",B33+1),"") ->  | H34: =IF(B34="","",H33+TIME(0,0,6)) ->  | I34: 00:01:10.100 | L34: =IF(C34="","",RANK(I34,$I$33:$I$48,1)+COUNTIF($I$33:I34,I34)-1) -> 
B35: =IFERROR(IF(B34+1>COUNTIF($F$12:$F$27,"Komb"),"",B34+1),"") ->  | H35: =IF(B35="","",H34+TIME(0,0,6)) ->  | I35: 00:02:03.400 | L35: =IF(C35="","",RANK(I35,$I$33:$I$48,1)+COUNTIF($I$33:I35,I35)-1) -> 
I36: 00:01:23.400 | L36: =IF(C36="","",RANK(I36,$I$33:$I$48,1)+COUNTIF($I$33:I36,I36)-1) -> 
I37: 00:02:12.900 | L37: =IF(C37="","",RANK(I37,$I$33:$I$48,1)+COUNTIF($I$33:I37,I37)-1) -> 
L38: =IF(C38="","",RANK(I38,$I$33:$I$48,1)+COUNTIF($I$33:I38,I38)-1) -> 
L39: =IF(C39="","",RANK(I39,$I$33:$I$48,1)+COUNTIF($I$33:I39,I39)-1) -> 
L40: =IF(C40="","",RANK(I40,$I$33:$I$48,1)+COUNTIF($I$33:I40,I40)-1) -> 
L41: =IF(C41="","",RANK(I41,$I$33:$I$48,1)+COUNTIF($I$33:I41,I41)-1) -> 
L42: =IF(C42="","",RANK(I42,$I$33:$I$48,1)+COUNTIF($I$33:I42,I42)-1) -> 
L43: =IF(C43="","",RANK(I43,$I$33:$I$48,1)+COUNTIF($I$33:I43,I43)-1) -> 
L44: =IF(C44="","",RANK(I44,$I$33:$I$48,1)+COUNTIF($I$33:I44,I44)-1) -> 
L45: =IF(C45="","",RANK(I45,$I$33:$I$48,1)+COUNTIF($I$33:I45,I45)-1) -> 
L46: =IF(C46="","",RANK(I46,$I$33:$I$48,1)+COUNTIF($I$33:I46,I46)-1) -> 
L47: =IF(C47="","",RANK(I47,$I$33:$I$48,1)+COUNTIF($I$33:I47,I47)-1) -> 
L48: =IF(C48="","",RANK(I48,$I$33:$I$48,1)+COUNTIF($I$33:I48,I48)-1) -> 
E51: Resultatliste kombinert - individuell kompakt
B53: Plass | C53: Start nr. | D53: Navn | E53: Klubb | F53: F.år | G53: Lengde | H53: A | I53: B | J53: C | K53: Poeng Hopp | L53: Starttid langrenn | M53: Tid langr | O53: Tid i mål
B54: =IF(COUNT($I$33:$I$48)>0,1,"") -> 1 | C54: =IF(B54="","",_xlfn.XLOOKUP($B54,$L$33:$L$48,$C$33:$C$48,"",0,1)) ->  | D54: =IF(C54="","",_xlfn.XLOOKUP($C54,$C$33:$C$48,D$33:D$48,"",0,1)) ->  | E54: =IF(D54="","",_xlfn.XLOOKUP($C54,$C$33:$C$48,E$33:E$48,"",0,1)) ->  | G54: =IF($C54="","",_xlfn.XLOOKUP($C54,$C$12:$C$27,H$12:H$27,"",0,1)) ->  | H54: =IF($C54="","",_xlfn.XLOOKUP($C54,$C$12:$C$27,I$12:I$27,"",0,1)) ->  | L54: =_xlfn.XLOOKUP(C54,$C$32:$C$48,$H$32:$H$48,"",0,1) ->  | M54: =IF(C54="","",_xlfn.XLOOKUP(C54,$C$32:$C$48,$I$32:$I$48,"",0,1)-L54) ->  | O54: =VLOOKUP(C54,C33:I48,7,FALSE) -> 
B55: =IFERROR(IF(B54+1>COUNT($I$33:$I$48),"",B54+1),"") -> 2 | C55: =IF(B55="","",_xlfn.XLOOKUP($B55,$L$33:$L$48,$C$33:$C$48,"",0,1)) ->  | G55: =IF($C55="","",_xlfn.XLOOKUP($C55,$C$12:$C$27,H$12:H$27,"",0,1)) ->  | L55: =_xlfn.XLOOKUP(C55,$C$32:$C$48,$H$32:$H$48,"",0,1) ->  | M55: =IF(C55="","",_xlfn.XLOOKUP(C55,$C$32:$C$48,$I$32:$I$48,"",0,1)-L55) ->  | N55: =IF(C55="","","+") ->  | O55: =IF(C55="","",VLOOKUP($C55,$C$33:$I$48,7,0)-VLOOKUP($C$54,$C$33:$I$48,7,0)) -> 
B56: =IFERROR(IF(B55+1>COUNT($I$33:$I$48),"",B55+1),"") -> 3 | O56: =IF(C56="","",VLOOKUP($C56,$C$33:$I$48,7,0)-VLOOKUP($C$54,$C$33:$I$48,7,0)) -> 
B57: 4
B58: 5

Sheet Meterverdier (hidden)
A1: Bakkestørrelse
A2: 1 | B2: =IF(A2<20,5.2,IF(A2<25,4.8,IF(A2<30,4.4,IF(A2<35,4,IF(A2<40,3.6,IF(A2<50,3.2,IF(A2<50,3.2,IF(A2<60,2.8,IF(A2<70,2.4,IF(A2<80,2.2,IF(A2<100,2,IF(A2<170,1.8,1.2)))))))))))) -> 5.2
A3: 2 | B3: =IF(A3<20,5.2,IF(A3<25,4.8,IF(A3<30,4.4,IF(A3<35,4,IF(A3<40,3.6,IF(A3<50,3.2,IF(A3<50,3.2,IF(A3<60,2.8,IF(A3<70,2.4,IF(A3<80,2.2,IF(A3<100,2,IF(A3<170,1.8,1.2)))))))))))) -> 5.2
A4: 3 | B4: 5.2
A5: 4 | B5: 5.2
A6: 5 | B6: 5.2
A7: 6 | B7: 5.2
A8: 7 | B8: 5.2
A9: 8 | B9: 5.2
A10: 9 | B10: 5.2
A11: 10 | B11: 5.2
A12: 11 | B12: 5.2
A13: 12 | B13: 5.2
A14: 13 | B14: 5.2
A15: 14 | B15: 5.2
A16: 15 | B16: 5.2
A17: 16 | B17: 5.2
A18: 17 | B18: 5.2
A19: 18 | B19: 5.2
A20: 19 | B20: 5.2
A21: 20 | B21: 4.8
A22: 21 | B22: 4.8
A23: 22 | B23: 4.8
A24: 23 | B24: 4.8
A25: 24 | B25: 4.8
A26: 25 | B26: 4.4
A27: 26 | B27: 4.4
A28: 27 | B28: 4.4
A29: 28 | B29: 4.4
A30: 29 | B30: 4.4
A31: 30 | B31: 4
A32: 31 | B32: 4
A33: 32 | B33: 4
A34: 33 | B34: 4
A35: 34 | B35: 4
A36: 35 | B36: 3.6
A37: 36 | B37: 3.6
A38: 37 | B38: 3.6
A39: 38 | B39: 3.6
A40: 39 | B40: 3.6
A41: 40 | B41: 3.2
A42: 41 | B42: 3.2
A43: 42 | B43: 3.2
A44: 43 | B44: 3.2
A45: 44 | B45: 3.2
A46: 45 | B46: 3.2
A47: 46 | B47: 3.2
A48: 47 | B48: 3.2
A49: 48 | B49: 3.2
A50: 49 | B50: 3.2
A51: 50 | B51: 2.8
A52: 51 | B52: 2.8
A53: 52 | B53: 2.8
A54: 53 | B54: 2.8
A55: 54 | B55: 2.8
A56: 55 | B56: 2.8
A57: 56 | B57: 2.8
A58: 57 | B58: 2.8
A59: 58 | B59: 2.8
A60: 59 | B60: 2.8
A61: 60 | B61: 2.4
A62: 61 | B62: 2.4
A63: 62 | B63: 2.4
A64: 63 | B64: 2.4
A65: 64 | B65: 2.4
A66: 65 | B66: 2.4
A67: 66 | B67: =IF(A67<20,5.2,IF(A67<25,4.8,IF(A67<30,4.4,IF(A67<35,4,IF(A67<40,3.6,IF(A67<50,3.2,IF(A67<50,3.2,IF(A67<60,2.8,IF(A67<70,2.4,IF(A67<80,2.2,IF(A67<100,2,IF(A67<170,1.8,1.2)))))))))))) -> 2.4
A68: 67 | B68: 2.4
A69: 68 | B69: 2.4
A70: 69 | B70: 2.4
A71: 70 | B71: 2.2
A72: 71 | B72: 2.2
A73: 72 | B73: 2.2
A74: 73 | B74: 2.2
A75: 74 | B75: 2.2
A76: 75 | B76: 2.2
A77: 76 | B77: 2.2
A78: 77 | B78: 2.2
A79: 78 | B79: 2.2
A80: 79 | B80: 2.2
A81: 80 | B81: 2
A82: 81 | B82: 2
A83: 82 | B83: 2
A84: 83 | B84: 2
A85: 84 | B85: 2
A86: 85 | B86: 2
A87: 86 | B87: 2
A88: 87 | B88: 2
A89: 88 | B89: 2
A90: 89 | B90: 2
A91: 90 | B91: 2
A92: 91 | B92: 2
A93: 92 | B93: 2
A94: 93 | B94: 2
A95: 94 | B95: 2
A96: 95 | B96: 2
A97: 96 | B97: 2
A98: 97 | B98: 2
A99: 98 | B99: 2
A100: 99 | B100: 2
A101: 100 | B101: 1.8
A102: 101 | B102: 1.8
A103: 102 | B103: 1.8
A104: 103 | B104: 1.8
A105: 104 | B105: 1.8
A106: 105 | B106: 1.8
A107: 106 | B107: 1.8
A108: 107 | B108: 1.8
A109: 108 | B109: 1.8
A110: 109 | B110: 1.8
A111: 110 | B111: 1.8
A112: 111 | B112: 1.8
A113: 112 | B113: 1.8
A114: 113 | B114: 1.8
A115: 114 | B115: 1.8
A116: 115 | B116: 1.8
A117: 116 | B117: 1.8
A118: 117 | B118: 1.8
A119: 118 | B119: 1.8
A120: 119 | B120: 1.8
A121: 120 | B121: 1.8
A122: 121 | B122: 1.8
A123: 122 | B123: 1.8
A124: 123 | B124: 1.8
A125: 124 | B125: 1.8
A126: 125 | B126: 1.8
A127: 126 | B127: 1.8
A128: 127 | B128: 1.8
A129: 128 | B129: 1.8
A130: 129 | B130: 1.8
A131: 130 | B131: =IF(A131<20,5.2,IF(A131<25,4.8,IF(A131<30,4.4,IF(A131<35,4,IF(A131<40,3.6,IF(A131<50,3.2,IF(A131<50,3.2,IF(A131<60,2.8,IF(A131<70,2.4,IF(A131<80,2.2,IF(A131<100,2,IF(A131<170,1.8,1.2)))))))))))) -> 1.8
A132: 131 | B132: 1.8
A133: 132 | B133: 1.8
A134: 133 | B134: 1.8
A135: 134 | B135: 1.8
A136: 135 | B136: 1.8
A137: 136 | B137: 1.8
A138: 137 | B138: 1.8
A139: 138 | B139: 1.8
A140: 139 | B140: 1.8
A141: 140 | B141: 1.8
A142: 141 | B142: 1.8
A143: 142 | B143: 1.8
A144: 143 | B144: 1.8
A145: 144 | B145: 1.8
A146: 145 | B146: 1.8
A147: 146 | B147: 1.8
A148: 147 | B148: 1.8
A149: 148 | B149: 1.8
A150: 149 | B150: 1.8
A151: 150 | B151: 1.8
A152: 151 | B152: 1.8
A153: 152 | B153: 1.8
A154: 153 | B154: 1.8
A155: 154 | B155: 1.8
A156: 155 | B156: 1.8
A157: 156 | B157: 1.8
A158: 157 | B158: 1.8
A159: 158 | B159: 1.8
A160: 159 | B160: 1.8
A161: 160 | B161: 1.8
A162: 161 | B162: 1.8
A163: 162 | B163: 1.8
A164: 163 | B164: 1.8
A165: 164 | B165: 1.8
A166: 165 | B166: 1.8
A167: 166 | B167: 1.8
A168: 167 | B168: 1.8
A169: 168 | B169: 1.8
A170: 169 | B170: 1.8
A171: 170 | B171: 1.2
A172: 171 | B172: 1.2
A173: 172 | B173: 1.2
A174: 173 | B174: 1.2
A175: 174 | B175: 1.2
A176: 175 | B176: 1.2
A177: 176 | B177: 1.2
A178: 177 | B178: 1.2
A179: 178 | B179: 1.2
A180: 179 | B180: 1.2
A181: 180 | B181: 1.2
A182: 181 | B182: 1.2
A183: 182 | B183: 1.2
A184: 183 | B184: 1.2
A185: 184 | B185: 1.2
A186: 185 | B186: 1.2
A187: 186 | B187: 1.2
A188: 187 | B188: 1.2
A189: 188 | B189: 1.2
A190: 189 | B190: 1.2
A191: 190 | B191: 1.2
A192: 191 | B192: 1.2
A193: 192 | B193: 1.2
A194: 193 | B194: 1.2
A195: 194 | B195: =IF(A195<20,5.2,IF(A195<25,4.8,IF(A195<30,4.4,IF(A195<35,4,IF(A195<40,3.6,IF(A195<50,3.2,IF(A195<50,3.2,IF(A195<60,2.8,IF(A195<70,2.4,IF(A195<80,2.2,IF(A195<100,2,IF(A195<170,1.8,1.2)))))))))))) -> 1.2
A196: 195 | B196: 1.2
A197: 196 | B197: 1.2
A198: 197 | B198: 1.2
A199: 198 | B199: 1.2
A200: 199 | B200: 1.2
... 31 more rows
